Workbook

Sheet 4. Smart Meter Rev & Adder (hidden)
A1: Smart Meter Revenue Requirement & Proposed Rates- Summary
A2: =#REF! -> 
A4: Summary of Actual Costs claimed in this application | B4: 2006 Actual | C4: 2006 Plus | D4: 2007 Actual | E4: Total Actual | G4: Perm Adjust
A5: Capital Costs (must be installed, and used and useful) | G5: 2006 | H5: 2007 | I5: Total
A6: Smart Meters | B6: ='9A. SM Avg Nt Fix Ass &UCC'!C13 ->  | D6: ='12. 2007A SM Nt Fix Ass &UCC'!C13 ->  | E6: =SUM(B6:D6) ->  | G6: =B6 ->  | H6: =D6 ->  | I6: =H6 -> 
A7: Computer Hardware | B7: ='9A. SM Avg Nt Fix Ass &UCC'!C27 ->  | D7: ='12. 2007A SM Nt Fix Ass &UCC'!C27 ->  | E7: =SUM(B7:D7) ->  | G7: =B7 ->  | H7: =D7 ->  | I7: =H7 -> 
A8: Computer Software | B8: ='9A. SM Avg Nt Fix Ass &UCC'!C41 ->  | D8: ='12. 2007A SM Nt Fix Ass &UCC'!C41 ->  | E8: =SUM(B8:D8) ->  | G8: =B8 ->  | H8: =D8 ->  | I8: =H8 -> 
A9: Tools & Equipment | B9: ='9A. SM Avg Nt Fix Ass &UCC'!C56 ->  | D9: ='12. 2007A SM Nt Fix Ass &UCC'!C56 ->  | E9: =SUM(B9:D9) ->  | G9: =B9 ->  | H9: =D9 ->  | I9: =H9 -> 
A10: Other Equipment (please specify) | B10: ='9A. SM Avg Nt Fix Ass &UCC'!C70 ->  | D10: ='12. 2007A SM Nt Fix Ass &UCC'!C70 ->  | E10: 0 | G10: =B10 ->  | H10: =D10 ->  | I10: =H10 -> 
A11: Total Capital Costs | B11: =SUM(B6:B10) ->  | D11: =SUM(D6:D10) ->  | E11: =SUM(E6:E10) ->  | G11: =SUM(G6:G10) ->  | H11: =SUM(H6:H10) ->  | I11: =SUM(I6:I10) -> 
A13: O M & A
A14: 2.1 Advanced metering communication device (AMCD) | B14: =#REF! ->  | D14: 0 | E14: =SUM(B14:D14) -> 
A15: 2.2 Advanced metering regional collector (AMRC) (includes LAN) | B15: =#REF! ->  | D15: 0 | E15: =SUM(B15:D15) -> 
A16: 2.3 Advanced metering control computer (AMCC) | B16: =#REF! ->  | D16: 0 | E16: =SUM(B16:D16) -> 
A17: 2.4 Wide area network (WAN) | B17: =#REF! ->  | D17: 0 | E17: =SUM(B17:D17) -> 
A18: 2.5 Other AMI OM&A costs related to minimum functionality | B18: =#REF! ->  | D18: =#REF! ->  | E18: =SUM(B18:D18) -> 
A19: Total O M & A Costs | B19: =SUM(B14:B18) ->  | D19: =SUM(D14:D18) ->  | E19: =SUM(E14:E18) -> 
A21: Summary of Revenue Requirement Calculation | B21: 2006 Actual | C21: 2006 Plus | D21: 2007 Actual | E21: Total Actual | G21: Perm Adjust
A22: Net Fixed Assets | G22: 2006 | H22: 2007 | I22: Total
A23: Net Fixed Assets Beginning of Year | B23: =SUM('9A. SM Avg Nt Fix Ass &UCC'!C20,'9A. SM Avg Nt Fix Ass &UCC'!C34,'9A. SM Avg Nt Fix Ass &UCC'!C48,'9A. SM Avg Nt Fix Ass &UCC'!C63,'9A. SM Avg Nt Fix Ass &UCC'!C77) -> 0 | C23: =SUM('9A. SM Avg Nt Fix Ass &UCC'!C20,'9A. SM Avg Nt Fix Ass &UCC'!C34,'9A. SM Avg Nt Fix Ass &UCC'!C48,'9A. SM Avg Nt Fix Ass &UCC'!C63,'9A. SM Avg Nt Fix Ass &UCC'!C77,) -> 0 | D23: =SUM('12. 2007A SM Nt Fix Ass &UCC'!C20,'12. 2007A SM Nt Fix Ass &UCC'!C34,'12. 2007A SM Nt Fix Ass &UCC'!C48,'12. 2007A SM Nt Fix Ass &UCC'!C63,'12. 2007A SM Nt Fix Ass &UCC'!C77) -> 0 | G23: =SUM('9A. SM Avg Nt Fix Ass &UCC'!C20,'9A. SM Avg Nt Fix Ass &UCC'!C34,'9A. SM Avg Nt Fix Ass &UCC'!C48,'9A. SM Avg Nt Fix Ass &UCC'!C63,'9A. SM Avg Nt Fix Ass &UCC'!C77,) -> 0 | H23: =SUM('12. 2007A SM Nt Fix Ass &UCC'!C20,'12. 2007A SM Nt Fix Ass &UCC'!C34,'12. 2007A SM Nt Fix Ass &UCC'!C48,'12. 2007A SM Nt Fix Ass &UCC'!C63,'12. 2007A SM Nt Fix Ass &UCC'!C77) -> 0 | I23: =SUM(G23:H23) -> 0
A24: Net Fixed Assets End of Year | B24: =SUM('9A. SM Avg Nt Fix Ass &UCC'!C21,'9A. SM Avg Nt Fix Ass &UCC'!C35,'9A. SM Avg Nt Fix Ass &UCC'!C49,'9A. SM Avg Nt Fix Ass &UCC'!C64,'9A. SM Avg Nt Fix Ass &UCC'!C78) ->  | C24: =SUM('9A. SM Avg Nt Fix Ass &UCC'!C21,'9A. SM Avg Nt Fix Ass &UCC'!C35,'9A. SM Avg Nt Fix Ass &UCC'!C49,'9A. SM Avg Nt Fix Ass &UCC'!C64,'9A. SM Avg Nt Fix Ass &UCC'!C78) ->  | D24: =SUM('12. 2007A SM Nt Fix Ass &UCC'!C21,'12. 2007A SM Nt Fix Ass &UCC'!C35,'12. 2007A SM Nt Fix Ass &UCC'!C49,'12. 2007A SM Nt Fix Ass &UCC'!C64,'12. 2007A SM Nt Fix Ass &UCC'!C78) ->  | G24: =SUM('9A. SM Avg Nt Fix Ass &UCC'!C21,'9A. SM Avg Nt Fix Ass &UCC'!C35,'9A. SM Avg Nt Fix Ass &UCC'!C49,'9A. SM Avg Nt Fix Ass &UCC'!C64,'9A. SM Avg Nt Fix Ass &UCC'!C78,) ->  | H24: =SUM('12. 2007A SM Nt Fix Ass &UCC'!C21,'12. 2007A SM Nt Fix Ass &UCC'!C35,'12. 2007A SM Nt Fix Ass &UCC'!C49,'12. 2007A SM Nt Fix Ass &UCC'!C64,'12. 2007A SM Nt Fix Ass &UCC'!C78) ->  | I24: =SUM(G24:H24) -> 
A25: Average Net Fixed Asset Values | B25: =(B23+B24)/2 ->  | C25: =(C23+C24)/2 ->  | D25: =(D23+D24)/2 ->  | G25: =(G23+G24)/2 ->  | H25: =(H23+H24)/2 ->  | I25: =(I23+I24)/2 -> 
A27: Working Capital Allowance
A28: Operation Expense | B28: =B19 ->  | C28: =C19 -> 0 | D28: =D19 ->  | G28: =G19 -> 0 | H28: =H19 -> 0 | I28: =SUM(G28:H28) -> 0
A29: ="Working Capital Allowance " &#REF!* 100 &"% (from approved 2006 EDR application)" ->  | B29: =B28*#REF! ->  | C29: =C28*#REF! ->  | D29: =D28*#REF! ->  | G29: =G28*#REF! ->  | H29: =H28*#REF! ->  | I29: =I28*#REF! -> 
A31: Smart Meters Rate Base | B31: =B25+B29 ->  | C31: =C25+C29 ->  | D31: =D25+D29 ->  | G31: =G25+G29 ->  | H31: =H25+H29 ->  | I31: =I25+I29 -> 
A33: Return on Rate Base
A34: ="Deemed Debt " &#REF! * 100& "% Times Weighted Debt Rate " &#REF!*100 & "%" ->  | B34: =B31*#REF!*#REF! ->  | C34: =C31*#REF!*#REF! ->  | D34: =D31*#REF!*#REF! ->  | E34: =SUM(B34:D34) ->  | G34: =G31*#REF!*#REF! ->  | H34: =H31*#REF!*#REF! ->  | I34: =I31*#REF!*#REF! -> 
A35: ="Deemed Equity "&#REF!*100&"% Times ROE "&#REF!*100&"%" ->  | B35: =B31*#REF!*#REF! ->  | C35: =C31*#REF!*#REF! ->  | D35: =D31*#REF!*#REF! ->  | E35: =SUM(B35:D35) ->  | G35: =G31*#REF!*#REF! ->  | H35: =H31*#REF!*#REF! ->  | I35: =I31*#REF!*#REF! -> 
A36: Return on Rate Base | B36: =SUM(B34:B35) ->  | C36: =SUM(C34:C35) ->  | D36: =SUM(D34:D35) ->  | E36: =SUM(E34:E35) ->  | G36: =SUM(G34:G35) ->  | H36: =SUM(H34:H35) ->  | I36: =SUM(I34:I35) -> 
A38: Operating Expenses
A39: Incremental Operating Expenses | B39: =B19 ->  | C39: =C19 -> 0 | D39: =D19 ->  | E39: =SUM(B39:D39) ->  | G39: =G19 -> 0 | H39: =H19 -> 0 | I39: =SUM(G39:H39) -> 0
A40: Amortization Expenses | B40: ='7A. Smart Meter Rate Calc'!C42 -> 0 | C40: ='7A. Smart Meter Rate Calc'!H42 ->  | D40: ='10. 2007A Smart Meter Rate Calc'!C42 -> 0 | E40: =SUM(B40:D40) ->  | G40: ='7A. Smart Meter Rate Calc'!E42 ->  | H40: ='10. 2007A Smart Meter Rate Calc'!E42 ->  | I40: =SUM(G40:H40) -> 
A41: Total Operating Expenses | B41: =SUM(B39:B40) ->  | C41: =SUM(C39:C40) ->  | D41: =SUM(D39:D40) ->  | E41: =SUM(E39:E40) ->  | G41: =SUM(G39:G40) ->  | H41: =SUM(H39:H40) ->  | I41: =SUM(I39:I40) -> 
G43: Perm Adjust
B44: 2006 Actual | C44: 2006 Plus | D44: 2007 Actual | E44: Total Actual | G44: 2006 | H44: 2007 | I44: Total
A45: Revenue Requirement Before PILs | B45: =B36+B41 ->  | C45: =C36+C41 ->  | D45: =D36+D41 ->  | E45: =SUM(B45:D45) ->  | G45: =G36+G41 ->  | H45: =H36+H41 ->  | I45: =SUM(G45:H45) -> 
A46: Grossed up PILs | B46: ='8A. PILs'!C46 ->  | C46: ='8A. PILs'!C46 ->  | D46: ='11. 2007A PILs'!C46 ->  | E46: =SUM(B46:D46) ->  | G46: ='8A. PILs'!C46 ->  | H46: ='11. 2007A PILs'!C46 ->  | I46: =SUM(G46:H46) -> 
A47: Revenue Requirement for Smart Meters | B47: =SUM(B45:B46) ->  | C47: =SUM(C45:C46) ->  | D47: =SUM(D45:D46) ->  | E47: =SUM(E45:E46) ->  | G47: =SUM(G45:G46) ->  | H47: =SUM(H45:H46) ->  | I47: =SUM(I45:I46) -> 
A50: Rate Rider to Clear Actual Expenses to April 2007
A51: Revenue Requirement for Smart Meters Installed | G51: =E47 -> 
A52: Carrying costs | G52: ='5. Clearing Actual'!H32 -> 
A53: Less Smart Meter Adder Recovery | B53: Rate Adder | C53: Metered Customers per 2006 EDR | D53: No. of Mths | E53: Amount Recovered
A54: May 2006 to April 2007 - Residential | B54: =#REF! ->  | C54: =#REF! ->  | D54: 12 | E54: =B54*C54*D54 -> 
A55: May 2006 to April 2007 - GS & LU | B55: =#REF! ->  | C55: =SUM(#REF!) ->  | D55: 12 | E55: =B55*C55*D55 -> 
A56: May 2007 to October 2007 - Residential | B56: =#REF! ->  | C56: =#REF! ->  | D56: 6 | E56: =B56*C56*D56 -> 
A57: May 2007 to October 2007 - GS & LU | B57: =#REF! ->  | C57: =SUM(#REF!) ->  | D57: 6 | E57: =B57*C57*D57 -> 
A58: November 2007 to April 2008 (proposed no change) | B58: ='6. Adder Recovery'!H26 -> 0.73 | C58: =#REF! ->  | D58: 6 | E58: =B58*C58*D58 ->  | G58: =-SUM(E54:E58) -> 
G59: =SUM(G51:G58) -> 
A61: Rate Adder for Capital and Operating Exp April 2007 to December 2007 | B61: Rate Adder | C61: Metered Customers per 2006 EDR | D61: No. of Mths | E61: Amount Recovered
A62: November 2007 to April 2008 (new deferral account) | B62: =E62/C62/D62 ->  | C62: =#REF! ->  | D62: 6 | E62: =#REF! -> 
A65: Permanent Capital Rate Adjustustment | B65: Rate Adder | C65: Metered Customers per 2006 EDR | D65: No. of Mths | E65: Amount Recovered
A66: May 2008 | B66: =E66/C66/D66 ->  | C66: =#REF! ->  | D66: 12 | E66: =I47 -> 

Sheet 5. Clearing Actual (hidden)
A1: Clearing Actuals Smart Meter Revenue Requirement
A2: =#REF! -> 
B3: Opening | C3: 2006 Rev Req | D3: 2006 Plus Rev Req | E3: 2007 Rev Req | F3: Recovery | G3: Int. Rate | H3: Interest | I3: Closing
A4: 2006-01-01 | B4: 0 | C4: ='4. Smart Meter Rev & Adder'!$B$47/12 ->  | F4: =-'6. Adder Recovery'!D4 ->  | G4: 0.0704 | H4: =(B4*G4)/12 -> 0 | I4: =SUM(B4:F4,H4) -> 
A5: 2006-02-01 | B5: =I4 ->  | C5: ='4. Smart Meter Rev & Adder'!$B$47/12 ->  | F5: =-'6. Adder Recovery'!D5 ->  | G5: 0.0704
A6: 2006-03-01 | C6: ='4. Smart Meter Rev & Adder'!$B$47/12 ->  | F6: =-'6. Adder Recovery'!D6 ->  | G6: 0.0704
A7: 2006-04-01 | C7: ='4. Smart Meter Rev & Adder'!$B$47/12 ->  | F7: =-'6. Adder Recovery'!D7 ->  | G7: 0.0414
A8: 2006-05-01 | C8: ='4. Smart Meter Rev & Adder'!$B$47/12 ->  | F8: =-'6. Adder Recovery'!D8 ->  | G8: 0.0414
A9: 2006-06-01 | C9: ='4. Smart Meter Rev & Adder'!$B$47/12 ->  | F9: =-'6. Adder Recovery'!D9 ->  | G9: 0.0414
A10: 2006-07-01 | C10: ='4. Smart Meter Rev & Adder'!$B$47/12 ->  | F10: =-'6. Adder Recovery'!D10 ->  | G10: 0.0459
A11: 2006-08-01 | C11: ='4. Smart Meter Rev & Adder'!$B$47/12 ->  | F11: =-'6. Adder Recovery'!D11 ->  | G11: 0.0459
A12: 2006-09-01 | C12: ='4. Smart Meter Rev & Adder'!$B$47/12 ->  | F12: =-'6. Adder Recovery'!D12 ->  | G12: 0.0459
A13: 2006-10-01 | C13: ='4. Smart Meter Rev & Adder'!$B$47/12 ->  | F13: =-'6. Adder Recovery'!D13 ->  | G13: 0.0459
A14: 2006-11-01 | C14: ='4. Smart Meter Rev & Adder'!$B$47/12 ->  | F14: =-'6. Adder Recovery'!D14 ->  | G14: 0.0459
A15: 2006-12-01 | C15: ='4. Smart Meter Rev & Adder'!$B$47/12 ->  | F15: =-'6. Adder Recovery'!D15 ->  | G15: 0.0459
A16: 2007-01-01 | C16: 0 | D16: ='4. Smart Meter Rev & Adder'!$C$47/12 ->  | E16: ='4. Smart Meter Rev & Adder'!$D$47/12 ->  | F16: =-'6. Adder Recovery'!D16 ->  | G16: 0.0459
A17: 2007-02-01 | C17: 0 | D17: ='4. Smart Meter Rev & Adder'!$C$47/12 ->  | E17: ='4. Smart Meter Rev & Adder'!$D$47/12 ->  | F17: =-'6. Adder Recovery'!D17 ->  | G17: 0.0459
A18: 2007-03-01 | C18: 0 | D18: ='4. Smart Meter Rev & Adder'!$C$47/12 ->  | E18: ='4. Smart Meter Rev & Adder'!$D$47/12 ->  | F18: =-'6. Adder Recovery'!D18 ->  | G18: 0.0459
A19: 2007-04-01 | C19: 0 | D19: ='4. Smart Meter Rev & Adder'!$C$47/12 ->  | E19: ='4. Smart Meter Rev & Adder'!$D$47/12 ->  | F19: =-'6. Adder Recovery'!D19 ->  | G19: 0.0459
A20: 2007-05-01 | C20: 0 | D20: ='4. Smart Meter Rev & Adder'!$C$47/12 ->  | E20: ='4. Smart Meter Rev & Adder'!$D$47/12 ->  | F20: =-'6. Adder Recovery'!D20 ->  | G20: 0.0459
A21: 2007-06-01 | C21: 0 | D21: ='4. Smart Meter Rev & Adder'!$C$47/12 ->  | E21: ='4. Smart Meter Rev & Adder'!$D$47/12 ->  | F21: =-'6. Adder Recovery'!D21 ->  | G21: 0.0459
A22: 2007-07-01 | C22: 0 | D22: ='4. Smart Meter Rev & Adder'!$C$47/12 ->  | E22: ='4. Smart Meter Rev & Adder'!$D$47/12 ->  | F22: =-'6. Adder Recovery'!D22 ->  | G22: 0.0459
A23: 2007-08-01 | C23: 0 | D23: ='4. Smart Meter Rev & Adder'!$C$47/12 ->  | E23: ='4. Smart Meter Rev & Adder'!$D$47/12 ->  | F23: =-'6. Adder Recovery'!D23 ->  | G23: 0.0459
A24: 2007-09-01 | C24: 0 | D24: ='4. Smart Meter Rev & Adder'!$C$47/12 ->  | E24: ='4. Smart Meter Rev & Adder'!$D$47/12 ->  | F24: =-'6. Adder Recovery'!D24 ->  | G24: 0.0459
A25: 2007-10-01 | C25: 0 | D25: ='4. Smart Meter Rev & Adder'!$C$47/12 ->  | E25: ='4. Smart Meter Rev & Adder'!$D$47/12 ->  | F25: =-'6. Adder Recovery'!D25 ->  | G25: 0.0459
A26: 2007-11-01 | C26: 0 | D26: ='4. Smart Meter Rev & Adder'!$C$47/12 ->  | E26: ='4. Smart Meter Rev & Adder'!$D$47/12 ->  | F26: =-'6. Adder Recovery'!D26 ->  | G26: 0.0459
A27: 2007-12-01 | C27: 0 | D27: ='4. Smart Meter Rev & Adder'!$C$47/12 ->  | E27: ='4. Smart Meter Rev & Adder'!$D$47/12 ->  | F27: =-'6. Adder Recovery'!D27 ->  | G27: 0.0459
A28: 2008-01-01 | C28: 0 | F28: =-'6. Adder Recovery'!D28 ->  | G28: 0.0459
A29: 2008-02-01 | C29: 0 | F29: =-'6. Adder Recovery'!D29 ->  | G29: 0.0459
A30: 2008-03-01 | C30: 0 | F30: =-'6. Adder Recovery'!D30 ->  | G30: 0.0459
A31: 2008-04-01 | C31: 0 | F31: =-'6. Adder Recovery'!D31 ->  | G31: 0.0459
A32: Revenue Requirement | C32: =SUM(C4:C31) ->  | D32: =SUM(D4:D31) ->  | E32: =SUM(E4:E31) ->  | G32: Carrying Costs | H32: =SUM(H4:H31) -> 

Sheet 6. Adder Recovery (hidden)
A1: Smart Meter Rate Adder Recovery | G1: Smart Meter Rate Adder Recovery - Residential | M1: Smart Meter Rate Adder Recovery - GS & LU
A2: =#REF! ->  | G2: =#REF! ->  | M2: =#REF! -> 
A3: Month | B3: Residential | C3: GS & LU | D3: Total | E3: Cummulative | G3: Month | H3: SM Rate Adder | I3: Customers | J3: Recovery | K3: Cummulative | M3: Month | N3: SM Rate Adder | O3: Customers | P3: Recovery | Q3: Cummulative
A4: 2006-01-01 | B4: =J4 ->  | C4: =P4 ->  | D4: =SUM(B4:C4) ->  | E4: =SUM($D$4:D4) ->  | G4: 2006-01-01 | H4: 0 | I4: =#REF! ->  | J4: =H4*I4 ->  | K4: =SUM($J$4:$J4) ->  | M4: 2006-01-01 | N4: 0 | O4: =SUM(#REF!) ->  | P4: =N4*O4 ->  | Q4: =SUM($P$4:$P4) -> 
A5: 2006-02-01 | B5: =J5 ->  | C5: =P5 ->  | D5: =SUM(B5:C5) ->  | E5: =SUM($D$4:D5) ->  | G5: 2006-02-01 | H5: 0 | I5: =I4 ->  | K5: =SUM($J$4:$J5) ->  | M5: 2006-02-01 | N5: 0 | O5: =O4 ->  | Q5: =SUM($P$4:$P5) -> 
A6: 2006-03-01 | E6: =SUM($D$4:D6) ->  | G6: 2006-03-01 | H6: 0 | I6: =I5 ->  | K6: =SUM($J$4:$J6) ->  | M6: 2006-03-01 | N6: 0 | O6: =O5 ->  | Q6: =SUM($P$4:$P6) -> 
A7: 2006-04-01 | E7: =SUM($D$4:D7) ->  | G7: 2006-04-01 | H7: 0 | K7: =SUM($J$4:$J7) ->  | M7: 2006-04-01 | N7: 0 | Q7: =SUM($P$4:$P7) -> 
A8: 2006-05-01 | E8: =SUM($D$4:D8) ->  | G8: 2006-05-01 | H8: =#REF! ->  | K8: =SUM($J$4:$J8) ->  | M8: 2006-05-01 | N8: =#REF! ->  | Q8: =SUM($P$4:$P8) -> 
A9: 2006-06-01 | E9: =SUM($D$4:D9) ->  | G9: 2006-06-01 | H9: =H8 ->  | K9: =SUM($J$4:$J9) ->  | M9: 2006-06-01 | N9: =N8 ->  | Q9: =SUM($P$4:$P9) -> 
A10: 2006-07-01 | E10: =SUM($D$4:D10) ->  | G10: 2006-07-01 | H10: =H9 ->  | K10: =SUM($J$4:$J10) ->  | M10: 2006-07-01 | N10: =N9 ->  | Q10: =SUM($P$4:$P10) -> 
A11: 2006-08-01 | E11: =SUM($D$4:D11) ->  | G11: 2006-08-01 | K11: =SUM($J$4:$J11) ->  | M11: 2006-08-01 | Q11: =SUM($P$4:$P11) -> 
A12: 2006-09-01 | E12: =SUM($D$4:D12) ->  | G12: 2006-09-01 | K12: =SUM($J$4:$J12) ->  | M12: 2006-09-01 | Q12: =SUM($P$4:$P12) -> 
A13: 2006-10-01 | E13: =SUM($D$4:D13) ->  | G13: 2006-10-01 | K13: =SUM($J$4:$J13) ->  | M13: 2006-10-01 | Q13: =SUM($P$4:$P13) -> 
A14: 2006-11-01 | E14: =SUM($D$4:D14) ->  | G14: 2006-11-01 | K14: =SUM($J$4:$J14) ->  | M14: 2006-11-01 | Q14: =SUM($P$4:$P14) -> 
A15: 2006-12-01 | E15: =SUM($D$4:D15) ->  | G15: 2006-12-01 | K15: =SUM($J$4:$J15) ->  | M15: 2006-12-01 | Q15: =SUM($P$4:$P15) -> 
A16: 2007-01-01 | E16: =SUM($D$4:D16) ->  | G16: 2007-01-01 | K16: =SUM($J$4:$J16) ->  | M16: 2007-01-01 | Q16: =SUM($P$4:$P16) -> 
A17: 2007-02-01 | E17: =SUM($D$4:D17) ->  | G17: 2007-02-01 | K17: =SUM($J$4:$J17) ->  | M17: 2007-02-01 | Q17: =SUM($P$4:$P17) -> 
A18: 2007-03-01 | E18: =SUM($D$4:D18) ->  | G18: 2007-03-01 | K18: =SUM($J$4:$J18) ->  | M18: 2007-03-01 | Q18: =SUM($P$4:$P18) -> 
A19: 2007-04-01 | E19: =SUM($D$4:D19) ->  | G19: 2007-04-01 | K19: =SUM($J$4:$J19) ->  | M19: 2007-04-01 | Q19: =SUM($P$4:$P19) -> 
A20: 2007-05-01 | E20: =SUM($D$4:D20) ->  | G20: 2007-05-01 | H20: =#REF! ->  | K20: =SUM($J$4:$J20) ->  | M20: 2007-05-01 | N20: =#REF! ->  | Q20: =SUM($P$4:$P20) -> 
A21: 2007-06-01 | E21: =SUM($D$4:D21) ->  | G21: 2007-06-01 | H21: =H20 ->  | K21: =SUM($J$4:$J21) ->  | M21: 2007-06-01 | N21: =N20 ->  | Q21: =SUM($P$4:$P21) -> 
A22: 2007-07-01 | E22: =SUM($D$4:D22) ->  | G22: 2007-07-01 | H22: =H21 ->  | K22: =SUM($J$4:$J22) ->  | M22: 2007-07-01 | N22: =N21 ->  | Q22: =SUM($P$4:$P22) -> 
A23: 2007-08-01 | E23: =SUM($D$4:D23) ->  | G23: 2007-08-01 | H23: =H22 ->  | K23: =SUM($J$4:$J23) ->  | M23: 2007-08-01 | N23: =N22 ->  | Q23: =SUM($P$4:$P23) -> 
A24: 2007-09-01 | E24: =SUM($D$4:D24) ->  | G24: 2007-09-01 | H24: =H23 ->  | K24: =SUM($J$4:$J24) ->  | M24: 2007-09-01 | N24: =N23 ->  | Q24: =SUM($P$4:$P24) -> 
A25: 2007-10-01 | E25: =SUM($D$4:D25) ->  | G25: 2007-10-01 | H25: =H24 ->  | K25: =SUM($J$4:$J25) ->  | M25: 2007-10-01 | N25: =N24 ->  | Q25: =SUM($P$4:$P25) -> 
A26: 2007-11-01 | E26: =SUM($D$4:D26) ->  | G26: 2007-11-01 | H26: 0.73 | K26: =SUM($J$4:$J26) ->  | M26: 2007-11-01 | N26: =H26 -> 0.73 | Q26: =SUM($P$4:$P26) -> 
A27: 2007-12-01 | E27: =SUM($D$4:D27) ->  | G27: 2007-12-01 | H27: =H26 -> 0.73 | K27: =SUM($J$4:$J27) ->  | M27: 2007-12-01 | N27: 0.73 | Q27: =SUM($P$4:$P27) -> 
A28: 2008-01-01 | E28: =SUM($D$4:D28) ->  | G28: 2008-01-01 | H28: =H27 -> 0.73 | K28: =SUM($J$4:$J28) ->  | M28: 2008-01-01 | N28: 0.73 | Q28: =SUM($P$4:$P28) -> 
A29: 2008-02-01 | E29: =SUM($D$4:D29) ->  | G29: 2008-02-01 | H29: =H28 -> 0.73 | K29: =SUM($J$4:$J29) ->  | M29: 2008-02-01 | N29: 0.73 | Q29: =SUM($P$4:$P29) -> 
A30: 2008-03-01 | E30: =SUM($D$4:D30) ->  | G30: 2008-03-01 | H30: =H29 -> 0.73 | K30: =SUM($J$4:$J30) ->  | M30: 2008-03-01 | N30: 0.73 | Q30: =SUM($P$4:$P30) -> 
A31: 2008-04-01 | E31: =SUM($D$4:D31) ->  | G31: 2008-04-01 | H31: =H30 -> 0.73 | K31: =SUM($J$4:$J31) ->  | M31: 2008-04-01 | N31: 0.73 | Q31: =SUM($P$4:$P31) -> 

Sheet 7A. Smart Meter Rate Calc (hidden)
B2: =#REF! -> 
B3: =#REF! -> 
B4: =#REF! -> 
B5: Sheet 7. Smart Meter Rate Calc
A8: Smart Meter Rate Calculation
B10: Average Asset Values | C10: 2006 | F10: 2007 | I10: 2008 | L10: 2009 | O10: 2010
B11: Net Fixed Assets Smart Meters | C11: ='9A. SM Avg Nt Fix Ass &UCC'!C22 ->  | F11: ='9A. SM Avg Nt Fix Ass &UCC'!D22 ->  | I11: ='9A. SM Avg Nt Fix Ass &UCC'!E22 ->  | L11: ='9A. SM Avg Nt Fix Ass &UCC'!F22 ->  | O11: ='9A. SM Avg Nt Fix Ass &UCC'!G22 -> 
B12: Net Fixed Assets Computer Hardware | C12: ='9A. SM Avg Nt Fix Ass &UCC'!C36 ->  | F12: ='9A. SM Avg Nt Fix Ass &UCC'!D36 ->  | I12: ='9A. SM Avg Nt Fix Ass &UCC'!E36 ->  | L12: ='9A. SM Avg Nt Fix Ass &UCC'!F36 ->  | O12: ='9A. SM Avg Nt Fix Ass &UCC'!G36 -> 
B13: Net Fixed Assets Computer Software | C13: ='9A. SM Avg Nt Fix Ass &UCC'!C50 ->  | F13: ='9A. SM Avg Nt Fix Ass &UCC'!D50 ->  | I13: ='9A. SM Avg Nt Fix Ass &UCC'!E50 ->  | L13: ='9A. SM Avg Nt Fix Ass &UCC'!F50 ->  | O13: ='9A. SM Avg Nt Fix Ass &UCC'!G50 -> 
B14: Net Fixed Assets Tools & Equipment | C14: ='9A. SM Avg Nt Fix Ass &UCC'!C65 ->  | F14: ='9A. SM Avg Nt Fix Ass &UCC'!D65 ->  | I14: ='9A. SM Avg Nt Fix Ass &UCC'!E65 ->  | L14: ='9A. SM Avg Nt Fix Ass &UCC'!F65 ->  | O14: ='9A. SM Avg Nt Fix Ass &UCC'!G65 -> 
B15: Net Fixed Assets Other Equipment | C15: ='9A. SM Avg Nt Fix Ass &UCC'!C79 ->  | F15: ='9A. SM Avg Nt Fix Ass &UCC'!D79 ->  | I15: ='9A. SM Avg Nt Fix Ass &UCC'!E79 ->  | L15: ='9A. SM Avg Nt Fix Ass &UCC'!F79 ->  | O15: ='9A. SM Avg Nt Fix Ass &UCC'!G79 -> 
B16: Total Net Fixed Assets | C16: =SUM(C11:C15) ->  | D16: =C16 ->  | F16: =SUM(F11:F15) ->  | G16: =F16 ->  | I16: =SUM(I11:I15) ->  | J16: =I16 ->  | L16: =SUM(L11:L15) ->  | M16: =L16 ->  | O16: =SUM(O11:O15) ->  | P16: =O16 -> 
B18: Working Capital
B19: Operation Expense | C19: =E34 ->  | F19: =H34 ->  | I19: =K34 ->  | L19: =N34 ->  | O19: =Q34 -> 
B20: ="Working Capital "&#REF!*100&" %" ->  | C20: =C19*#REF! ->  | D20: =C20 ->  | F20: =F19*#REF! ->  | G20: =F20 ->  | I20: =I19*#REF! ->  | J20: =I20 ->  | L20: =L19*#REF! ->  | M20: =L20 ->  | O20: =O19*#REF! ->  | P20: =O20 -> 
B22: Smart Meters included in Rate Base | D22: =SUM(D12:D20) ->  | G22: =SUM(G12:G20) ->  | J22: =SUM(J12:J20) ->  | M22: =SUM(M12:M20) ->  | P22: =SUM(P12:P20) -> 
B24: Return on Rate Base
B25: Deemed Debt (3. LDC Assumptions and Data) | C25: =#REF! ->  | D25: =D22*C25 ->  | F25: =#REF! ->  | G25: =G22*F25 ->  | I25: =#REF! ->  | J25: =J22*I25 ->  | L25: =#REF! ->  | M25: =M22*L25 ->  | O25: =#REF! ->  | P25: =P22*O25 -> 
B26: Deemed Equity (3. LDC Assumptions and Data) | C26: =#REF! ->  | D26: =D22*C26 ->  | F26: =#REF! ->  | G26: =G22*F26 ->  | I26: =#REF! ->  | J26: =J22*I26 ->  | L26: =#REF! ->  | M26: =M22*L26 ->  | O26: =#REF! ->  | P26: =P22*O26 -> 
D27: =SUM(D25:D26) ->  | G27: =SUM(G25:G26) ->  | J27: =SUM(J25:J26) ->  | M27: =SUM(M25:M26) ->  | P27: =SUM(P25:P26) -> 
B29: Weighted Debt Rate (3. LDC Assumptions and Data) | C29: =#REF! ->  | D29: =D25*C29 ->  | F29: =#REF! ->  | G29: =G25*F29 ->  | I29: =#REF! ->  | J29: =J25*I29 ->  | L29: =#REF! ->  | M29: =M25*L29 ->  | O29: =#REF! ->  | P29: =P25*O29 -> 
B30: Proposed ROE (3. LDC Assumptions and Data) | C30: =#REF! ->  | D30: =D26*C30 ->  | F30: =#REF! ->  | G30: =G26*F30 ->  | I30: =#REF! ->  | J30: =J26*I30 ->  | L30: =#REF! ->  | M30: =M26*L30 ->  | O30: =#REF! ->  | P30: =P26*O30 -> 
B31: Return on Rate Base | D31: =SUM(D29:D30) ->  | E31: =D31 ->  | G31: =SUM(G29:G30) ->  | H31: =G31 ->  | J31: =SUM(J29:J30) ->  | K31: =J31 ->  | M31: =SUM(M29:M30) ->  | N31: =M31 ->  | P31: =SUM(P29:P30) ->  | Q31: =P31 -> 
B33: Operating Expenses
B34: Incremental Operating Expenses (3. LDC Assumptions and Data) | E34: =#REF! ->  | H34: =#REF! ->  | K34: =#REF! ->  | N34: =#REF! ->  | Q34: =#REF! -> 
B36: Amortization Expenses
B37: Amortization Expenses - Smart Meters | D37: =SUM('9A. SM Avg Nt Fix Ass &UCC'!C17:C17) ->  | G37: =SUM('9A. SM Avg Nt Fix Ass &UCC'!D17:D17) ->  | J37: =SUM('9A. SM Avg Nt Fix Ass &UCC'!E17:E17) ->  | M37: =SUM('9A. SM Avg Nt Fix Ass &UCC'!F17:F17) ->  | P37: =SUM('9A. SM Avg Nt Fix Ass &UCC'!G17:G17) -> 
B38: Amortization Expenses - Computer Hardware | D38: =SUM('9A. SM Avg Nt Fix Ass &UCC'!C31:C31) ->  | G38: =SUM('9A. SM Avg Nt Fix Ass &UCC'!D31:D31) ->  | J38: =SUM('9A. SM Avg Nt Fix Ass &UCC'!E31:E31) ->  | M38: =SUM('9A. SM Avg Nt Fix Ass &UCC'!F31:F31) ->  | P38: =SUM('9A. SM Avg Nt Fix Ass &UCC'!G31:G31) -> 
B39: Amortization Expenses - Computer Software | D39: =SUM('9A. SM Avg Nt Fix Ass &UCC'!C45:C45) ->  | G39: =SUM('9A. SM Avg Nt Fix Ass &UCC'!D45:D45) ->  | J39: =SUM('9A. SM Avg Nt Fix Ass &UCC'!E45:E45) ->  | M39: =SUM('9A. SM Avg Nt Fix Ass &UCC'!F45:F45) ->  | P39: =SUM('9A. SM Avg Nt Fix Ass &UCC'!G45:G45) -> 
B40: Amortization Expenses - Tools & Equipment | D40: =SUM('9A. SM Avg Nt Fix Ass &UCC'!C60:C60) ->  | G40: =SUM('9A. SM Avg Nt Fix Ass &UCC'!D60:D60) ->  | J40: =SUM('9A. SM Avg Nt Fix Ass &UCC'!E60:E60) ->  | M40: =SUM('9A. SM Avg Nt Fix Ass &UCC'!F60:F60) ->  | P40: =SUM('9A. SM Avg Nt Fix Ass &UCC'!G60:G60) -> 
B41: Amortization Expenses - Other Equipment | D41: =SUM('9A. SM Avg Nt Fix Ass &UCC'!C74:C74) ->  | G41: =SUM('9A. SM Avg Nt Fix Ass &UCC'!D74:D74) ->  | J41: =SUM('9A. SM Avg Nt Fix Ass &UCC'!E74:E74) ->  | M41: =SUM('9A. SM Avg Nt Fix Ass &UCC'!F74:F74) ->  | P41: =SUM('9A. SM Avg Nt Fix Ass &UCC'!G74:G74) -> 
B42: Total Amortization Expenses | E42: =SUM(D37:D41) ->  | H42: =SUM(G37:G41) ->  | K42: =SUM(J37:J41) ->  | N42: =SUM(M37:M41) ->  | Q42: =SUM(P37:P41) -> 
B44: Revenue Requirement Before PILs | E44: =SUM(E31,E42,E34) ->  | H44: =SUM(H31,H42,H34) ->  | K44: =SUM(K31,K42,K34) ->  | N44: =SUM(N31,N42,N34) ->  | Q44: =SUM(Q31,Q42,Q34) -> 
B46: Calculation of Taxable Income
B47: Incremental Operating Expenses | E47: =-E34 ->  | H47: =-H34 ->  | K47: =-K34 ->  | N47: =-N34 ->  | Q47: =-Q34 -> 
B48: Depreciation Expenses | E48: =-E42 ->  | H48: =-H42 ->  | K48: =-K42 ->  | N48: =-N42 ->  | Q48: =-Q42 -> 
B49: Interest Expense | E49: =-D29 ->  | H49: =-G29 ->  | K49: =-J29 ->  | N49: =-M29 ->  | Q49: =-P29 -> 
B50: Taxable Income For PILs | E50: =SUM(E44:E49) ->  | H50: =SUM(H44:H49) ->  | K50: =SUM(K44:K49) ->  | N50: =SUM(N44:N49) ->  | Q50: =SUM(Q44:Q49) -> 
B52: Grossed up PILs (5. PILs) | E52: ='8A. PILs'!C46 ->  | H52: ='8A. PILs'!D46 ->  | K52: ='8A. PILs'!E46 ->  | N52: ='8A. PILs'!F46 ->  | Q52: ='8A. PILs'!G46 -> 
B54: =B44 -> Revenue Requirement Before PILs | E54: =E44 ->  | H54: =H44 ->  | K54: =K44 ->  | N54: =N44 ->  | Q54: =Q44 -> 
B55: Grossed up PILs (5. PILs) | E55: =E52 ->  | H55: =H52 ->  | K55: =K52 ->  | N55: =N52 ->  | Q55: =Q52 -> 
B56: Revenue Requirement for Smart Meters | E56: =SUM(E54:E55) ->  | H56: =SUM(H54:H55) ->  | K56: =SUM(K54:K55) ->  | N56: =SUM(N54:N55) ->  | Q56: =SUM(Q54:Q55) -> 
B58: 2007 Smart Meter Rate Adder
B59: Revenue Requirement for Smart Meters | E59: =E56 ->  | H59: =H56 ->  | K59: =K56 ->  | N59: =N56 ->  | Q59: =Q56 -> 
B60: 2006 EDR Total Metered Customers (3. LDC Assumptions and Data) | E60: =#REF! ->  | H60: =#REF! ->  | K60: =#REF! ->  | N60: =#REF! ->  | Q60: =#REF! -> 
B61: Annualized amount required per metered customer | E61: =IF(ISERROR(E59/E60),0,E59/E60) -> 0 | H61: =IF(ISERROR(H59/H60),0,H59/H60) -> 0 | K61: =IF(ISERROR(K59/K60),0,K59/K60) -> 0 | N61: =IF(ISERROR(N59/N60),0,N59/N60) -> 0 | Q61: =IF(ISERROR(Q59/Q60),0,Q59/Q60) -> 0
B62: Number of months in year | E62: 12 | H62: 12 | K62: 12 | N62: 12 | Q62: 12
B63: 2007 Smart Meter Rate Adder | E63: =E61/E62 -> 0 | H63: =H61/H62 -> 0 | K63: =K61/K62 -> 0 | N63: =N61/N62 -> 0 | Q63: =Q61/Q62 -> 0

Sheet 8A. PILs (hidden)
B2: =#REF! -> 
B3: =#REF! -> 
B4: =#REF! -> 
B5: Sheet 8A. PILs
B8: PILs Calculation
C10: 2006 | D10: 2007 | E10: 2008 | F10: 2009 | G10: 2010
B11: INCOME TAX
B12: Net Income | C12: ='7A. Smart Meter Rate Calc'!E50 ->  | D12: ='7A. Smart Meter Rate Calc'!H50 ->  | E12: ='7A. Smart Meter Rate Calc'!K50 ->  | F12: ='7A. Smart Meter Rate Calc'!N50 ->  | G12: ='7A. Smart Meter Rate Calc'!Q50 -> 
B13: Amortization | C13: =-'7A. Smart Meter Rate Calc'!E48 ->  | D13: =-'7A. Smart Meter Rate Calc'!H48 ->  | E13: =-'7A. Smart Meter Rate Calc'!K48 ->  | F13: =-'7A. Smart Meter Rate Calc'!N48 ->  | G13: =-'7A. Smart Meter Rate Calc'!Q48 -> 
B14: CCA - Class 47 (8%) Smart Meters | C14: =-'9A. SM Avg Nt Fix Ass &UCC'!C93 ->  | D14: =-'9A. SM Avg Nt Fix Ass &UCC'!D93 ->  | E14: =-'9A. SM Avg Nt Fix Ass &UCC'!E93 ->  | F14: =-'9A. SM Avg Nt Fix Ass &UCC'!F93 ->  | G14: =-'9A. SM Avg Nt Fix Ass &UCC'!G93 -> 
B15: CCA - Class 45 (45%) Computers | C15: =-'9A. SM Avg Nt Fix Ass &UCC'!C106 ->  | D15: =-'9A. SM Avg Nt Fix Ass &UCC'!D106 ->  | E15: =-'9A. SM Avg Nt Fix Ass &UCC'!E106 ->  | F15: =-'9A. SM Avg Nt Fix Ass &UCC'!F106 ->  | G15: =-'9A. SM Avg Nt Fix Ass &UCC'!G106 -> 
B16: CCA - Class 8 (20%) Other Equipment | C16: =-'9A. SM Avg Nt Fix Ass &UCC'!C119 ->  | D16: =-'9A. SM Avg Nt Fix Ass &UCC'!D119 ->  | E16: =-'9A. SM Avg Nt Fix Ass &UCC'!E119 ->  | F16: =-'9A. SM Avg Nt Fix Ass &UCC'!F119 ->  | G16: =-'9A. SM Avg Nt Fix Ass &UCC'!G119 -> 
B17: Change in taxable income | C17: =SUM(C12:C16) ->  | D17: =SUM(D12:D16) ->  | E17: =SUM(E12:E16) ->  | F17: =SUM(F12:F16) ->  | G17: =SUM(G12:G16) -> 
B18: Tax Rate (3. LDC Assumptions and Data) | C18: =#REF! ->  | D18: =#REF! ->  | E18: =#REF! ->  | F18: =#REF! ->  | G18: =#REF! -> 
B19: Income Taxes Payable | C19: =C17*C18 ->  | D19: =D17*D18 ->  | E19: =E17*E18 ->  | F19: =F17*F18 ->  | G19: =G17*G18 -> 
B21: ONTARIO CAPITAL TAX
B22: Smart Meters | C22: ='9A. SM Avg Nt Fix Ass &UCC'!C21 ->  | D22: ='9A. SM Avg Nt Fix Ass &UCC'!D21 ->  | E22: ='9A. SM Avg Nt Fix Ass &UCC'!E21 ->  | F22: ='9A. SM Avg Nt Fix Ass &UCC'!F21 ->  | G22: ='9A. SM Avg Nt Fix Ass &UCC'!G21 -> 
B23: Computer Hardware | C23: ='9A. SM Avg Nt Fix Ass &UCC'!C35 ->  | D23: ='9A. SM Avg Nt Fix Ass &UCC'!D35 ->  | E23: ='9A. SM Avg Nt Fix Ass &UCC'!E35 ->  | F23: ='9A. SM Avg Nt Fix Ass &UCC'!F35 ->  | G23: ='9A. SM Avg Nt Fix Ass &UCC'!G35 -> 
B24: Computer Software | C24: ='9A. SM Avg Nt Fix Ass &UCC'!C49 ->  | D24: ='9A. SM Avg Nt Fix Ass &UCC'!D49 ->  | E24: ='9A. SM Avg Nt Fix Ass &UCC'!E49 ->  | F24: ='9A. SM Avg Nt Fix Ass &UCC'!F49 ->  | G24: ='9A. SM Avg Nt Fix Ass &UCC'!G49 -> 
B25: Tools & Equipment | C25: ='9A. SM Avg Nt Fix Ass &UCC'!C64 ->  | D25: ='9A. SM Avg Nt Fix Ass &UCC'!D64 ->  | E25: ='9A. SM Avg Nt Fix Ass &UCC'!E64 ->  | F25: ='9A. SM Avg Nt Fix Ass &UCC'!F64 ->  | G25: ='9A. SM Avg Nt Fix Ass &UCC'!G64 -> 
B26: Other Equipment | C26: ='9A. SM Avg Nt Fix Ass &UCC'!C78 ->  | D26: ='9A. SM Avg Nt Fix Ass &UCC'!D78 ->  | E26: ='9A. SM Avg Nt Fix Ass &UCC'!E78 ->  | F26: ='9A. SM Avg Nt Fix Ass &UCC'!F78 ->  | G26: ='9A. SM Avg Nt Fix Ass &UCC'!G78 -> 
B27: Rate Base | C27: =SUM(C22:C24) ->  | D27: =SUM(D22:D24) ->  | E27: =SUM(E22:E24) ->  | F27: =SUM(F22:F24) ->  | G27: =SUM(G22:G24) -> 
B28: Less: Exemption | C28: 0 | D28: 0 | E28: 0 | F28: 0 | G28: 0
B29: Deemed Taxable Capital | C29: =C27-C28 ->  | D29: =D27-D28 ->  | E29: =E27-E28 ->  | F29: =F27-F28 ->  | G29: =G27-G28 -> 
B30: Ontario Capital Tax Rate | C30: 0.003 | D30: 0.003 | E30: 0.003 | F30: 0.003 | G30: 0.003
B31: Net Amount (Taxable Capital x Rate) | C31: =C29*C30 ->  | D31: =D29*D30 ->  | E31: =E29*E30 ->  | F31: =F29*F30 ->  | G31: =G29*G30 -> 
B34: Gross Up
C35: PILs Payable | D35: PILs Payable | E35: PILs Payable | F35: PILs Payable | G35: PILs Payable
B36: Change in Income Taxes Payable | C36: =C19 ->  | D36: =D19 ->  | E36: =E19 ->  | F36: =F19 ->  | G36: =G19 -> 
B37: Change in OCT | C37: =C31 ->  | D37: =D31 ->  | E37: =E31 ->  | F37: =F31 ->  | G37: =G31 -> 
B38: PIL's | C38: =SUM(C36:C37) ->  | D38: =SUM(D36:D37) ->  | E38: =SUM(E36:E37) ->  | F38: =SUM(F36:F37) ->  | G38: =SUM(G36:G37) ->  | I38: 4. Smart Meter Rate Calc
C40: Gross Up | D40: Gross Up | E40: Gross Up | F40: Gross Up | G40: Gross Up
C41: =$C$18 ->  | D41: =$C$18 ->  | E41: =$C$18 ->  | F41: =$C$18 ->  | G41: =$C$18 -> 
C43: Grossed Up PILs | D43: Grossed Up PILs | E43: Grossed Up PILs | F43: Grossed Up PILs | G43: Grossed Up PILs
B44: Change in Income Taxes Payable | C44: =C36/(1-C41) ->  | D44: =D36/(1-D41) ->  | E44: =E36/(1-E41) ->  | F44: =F36/(1-F41) ->  | G44: =G36/(1-G41) -> 
B45: Change in OCT | C45: =C37 ->  | D45: =D37 ->  | E45: =E37 ->  | F45: =F37 ->  | G45: =G37 -> 
B46: PIL's | C46: =SUM(C44:C45) ->  | D46: =SUM(D44:D45) ->  | E46: =SUM(E44:E45) ->  | F46: =SUM(F44:F45) ->  | G46: =SUM(G44:G45) -> 

Sheet 9A. SM Avg Nt Fix Ass &UCC (hidden)
B2: =#REF! -> 
B3: =#REF! -> 
B4: =#REF! -> 
B5: Sheet 9. SM Avg Net Fixed Assets &UCC
B8: Smart Meter Average Net Fixed Assets
B10: Net Fixed Assets - Smart Meters | C10: 2006 | D10: 2007 | E10: 2008 | F10: 2009 | G10: 2010
B12: Opening Capital Investment | C12: 0 | D12: =C14 ->  | E12: =D14 ->  | F12: =E14 ->  | G12: =F14 -> 
B13: Capital Investment (3. LDC Assumptions and Data) | C13: =#REF! ->  | D13: =#REF! ->  | E13: =#REF! ->  | F13: =#REF! ->  | G13: =#REF! -> 
B14: Closing Capital Investment | C14: =SUM(C12:C13) ->  | D14: =SUM(D12:D13) ->  | E14: =SUM(E12:E13) ->  | F14: =SUM(F12:F13) ->  | G14: =SUM(G12:G13) -> 
B16: Opening Accumulated Amortization | C16: 0 | D16: =C18 ->  | E16: =D18 ->  | F16: =E18 ->  | G16: =F18 -> 
B17: ="Amortization Year 1 (" &#REF! &" Years Straight Line)" ->  | C17: =IF(C16+(C12/#REF!)+(C13/#REF!/2)<C14,(C12/#REF!)+(C13/#REF!/2),C14-C16) ->  | D17: =IF(D16+(D12/#REF!)+(D13/#REF!/2)<D14,(D12/#REF!)+(D13/#REF!/2),D14-D16) ->  | E17: =IF(E16+(E12/#REF!)+(E13/#REF!/2)<E14,(E12/#REF!)+(E13/#REF!/2),E14-E16) ->  | F17: =IF(F16+(F12/#REF!)+(F13/#REF!/2)<F14,(F12/#REF!)+(F13/#REF!/2),F14-F16) ->  | G17: =IF(G16+(G12/#REF!)+(G13/#REF!/2)<G14,(G12/#REF!)+(G13/#REF!/2),G14-G16) -> 
B18: Closing Accumulated Amortization | C18: =SUM(C16:C17) ->  | D18: =SUM(D16:D17) ->  | E18: =SUM(E16:E17) ->  | F18: =SUM(F16:F17) ->  | G18: =SUM(G16:G17) -> 
B20: Opening Net Fixed Assets | C20: =0 -> 0 | D20: =C21 ->  | E20: =D21 ->  | F20: =E21 ->  | G20: =F21 -> 
B21: Closing Net Fixed Assets | C21: =C14-C18 ->  | D21: =D14-D18 ->  | E21: =E14-E18 ->  | F21: =F14-F18 ->  | G21: =G14-G18 -> 
B22: Average Net Fixed Assets | C22: =(C21+C20)/2 ->  | D22: =(D21+D20)/2 ->  | E22: =(E21+E20)/2 ->  | F22: =(F21+F20)/2 ->  | G22: =(G21+G20)/2 -> 
B24: Net Fixed Assets - Computer Hardware | C24: 2006 | D24: 2007 | E24: 2008 | F24: 2009 | G24: 2010
B26: Opening Capital Investment | C26: 0 | D26: =C28 ->  | E26: =D28 ->  | F26: =E28 ->  | G26: =F28 -> 
B27: Capital Investment (3. LDC Assumptions and Data) | C27: =#REF! ->  | D27: =#REF! ->  | E27: =#REF! ->  | F27: =#REF! ->  | G27: =#REF! -> 
B28: Closing Capital Investment | C28: =SUM(C26:C27) ->  | D28: =SUM(D26:D27) ->  | E28: =SUM(E26:E27) ->  | F28: =SUM(F26:F27) ->  | G28: =SUM(G26:G27) -> 
B30: Opening Accumulated Amortization | C30: 0 | D30: =C32 ->  | E30: =D32 ->  | F30: =E32 ->  | G30: =F32 -> 
B31: ="Amortization Year 1 (" &#REF! &" Years Straight Line)" ->  | C31: =IF(C30+(C26/#REF!)+(C27/#REF!/2)<C28,(C26/#REF!)+(C27/#REF!/2),C28-C30) ->  | D31: =IF(D30+(D26/#REF!)+(D27/#REF!/2)<D28,(D26/#REF!)+(D27/#REF!/2),D28-D30) ->  | E31: =IF(E30+(E26/#REF!)+(E27/#REF!/2)<E28,(E26/#REF!)+(E27/#REF!/2),E28-E30) ->  | F31: =IF(F30+(F26/#REF!)+(F27/#REF!/2)<F28,(F26/#REF!)+(F27/#REF!/2),F28-F30) ->  | G31: =IF(G30+(G26/#REF!)+(G27/#REF!/2)<G28,(G26/#REF!)+(G27/#REF!/2),G28-G30) -> 
B32: Closing Accumulated Amortization | C32: =SUM(C30:C31) ->  | D32: =SUM(D30:D31) ->  | E32: =SUM(E30:E31) ->  | F32: =SUM(F30:F31) ->  | G32: =SUM(G30:G31) -> 
B34: Opening Net Fixed Assets | C34: =0 -> 0 | D34: =C35 ->  | E34: =D35 ->  | F34: =E35 ->  | G34: =F35 -> 
B35: Closing Net Fixed Assets | C35: =C28-C32 ->  | D35: =D28-D32 ->  | E35: =E28-E32 ->  | F35: =F28-F32 ->  | G35: =G28-G32 -> 
B36: Average Net Fixed Assets | C36: =(C35+C34)/2 ->  | D36: =(D35+D34)/2 ->  | E36: =(E35+E34)/2 ->  | F36: =(F35+F34)/2 ->  | G36: =(G35+G34)/2 -> 
B38: Net Fixed Assets - Computer Software | C38: 2006 | D38: 2007 | E38: 2008 | F38: 2009 | G38: 2010
B40: Opening Capital Investment | C40: 0 | D40: =C42 ->  | E40: =D42 ->  | F40: =E42 ->  | G40: =F42 -> 
B41: Capital Investment (3. LDC Assumptions and Data) | C41: =#REF! ->  | D41: =#REF! ->  | E41: =#REF! ->  | F41: =#REF! ->  | G41: =#REF! -> 
B42: Closing Capital Investment | C42: =SUM(C40:C41) ->  | D42: =SUM(D40:D41) ->  | E42: =SUM(E40:E41) ->  | F42: =SUM(F40:F41) ->  | G42: =SUM(G40:G41) -> 
B44: Opening Accumulated Amortization | C44: 0 | D44: =C46 ->  | E44: =D46 ->  | F44: =E46 ->  | G44: =F46 -> 
B45: ="Amortization Year 1 (" &#REF! &" Years Straight Line)" ->  | C45: =IF(C44+(C40/#REF!)+(C41/#REF!/2)<C42,(C40/#REF!)+(C41/#REF!/2),C42-C44) ->  | D45: =IF(D44+(D40/#REF!)+(D41/#REF!/2)<D42,(D40/#REF!)+(D41/#REF!/2),D42-D44) ->  | E45: =IF(E44+(E40/#REF!)+(E41/#REF!/2)<E42,(E40/#REF!)+(E41/#REF!/2),E42-E44) ->  | F45: =IF(F44+(F40/#REF!)+(F41/#REF!/2)<F42,(F40/#REF!)+(F41/#REF!/2),F42-F44) ->  | G45: =IF(G44+(G40/#REF!)+(G41/#REF!/2)<G42,(G40/#REF!)+(G41/#REF!/2),G42-G44) -> 
B46: Closing Accumulated Amortization | C46: =SUM(C44:C45) ->  | D46: =SUM(D44:D45) ->  | E46: =SUM(E44:E45) ->  | F46: =SUM(F44:F45) ->  | G46: =SUM(G44:G45) -> 
B48: Opening Net Fixed Assets | C48: =0 -> 0 | D48: =C49 ->  | E48: =D49 ->  | F48: =E49 ->  | G48: =F49 -> 
B49: Closing Net Fixed Assets | C49: =C42-C46 ->  | D49: =D42-D46 ->  | E49: =E42-E46 ->  | F49: =F42-F46 ->  | G49: =G42-G46 -> 
B50: Average Net Fixed Assets | C50: =(C49+C48)/2 ->  | D50: =(D49+D48)/2 ->  | E50: =(E49+E48)/2 ->  | F50: =(F49+F48)/2 ->  | G50: =(G49+G48)/2 -> 
B53: Net Fixed Assets - Tools & Equipment | C53: 2006 | D53: 2007 | E53: 2008 | F53: 2009 | G53: 2010
B55: Opening Capital Investment | C55: 0 | D55: =C57 ->  | E55: =D57 ->  | F55: =E57 ->  | G55: =F57 -> 
B56: Capital Investment (3. LDC Assumptions and Data) | C56: =#REF! ->  | D56: =#REF! ->  | E56: =#REF! ->  | F56: =#REF! ->  | G56: =#REF! -> 
B57: Closing Capital Investment | C57: =SUM(C55:C56) ->  | D57: =SUM(D55:D56) ->  | E57: =SUM(E55:E56) ->  | F57: =SUM(F55:F56) ->  | G57: =SUM(G55:G56) -> 
B59: Opening Accumulated Amortization | C59: 0 | D59: =C61 ->  | E59: =D61 ->  | F59: =E61 ->  | G59: =F61 -> 
B60: ="Amortization Year 1 (" &#REF! &" Years Straight Line)" ->  | C60: =IF(C59+(C55/#REF!)+(C56/#REF!/2)<C57,(C55/#REF!)+(C56/#REF!/2),C57-C59) ->  | D60: =IF(D59+(D55/#REF!)+(D56/#REF!/2)<D57,(D55/#REF!)+(D56/#REF!/2),D57-D59) ->  | E60: =IF(E59+(E55/#REF!)+(E56/#REF!/2)<E57,(E55/#REF!)+(E56/#REF!/2),E57-E59) ->  | F60: =IF(F59+(F55/#REF!)+(F56/#REF!/2)<F57,(F55/#REF!)+(F56/#REF!/2),F57-F59) ->  | G60: =IF(G59+(G55/#REF!)+(G56/#REF!/2)<G57,(G55/#REF!)+(G56/#REF!/2),G57-G59) -> 
B61: Closing Accumulated Amortization | C61: =SUM(C59:C60) ->  | D61: =SUM(D59:D60) ->  | E61: =SUM(E59:E60) ->  | F61: =SUM(F59:F60) ->  | G61: =SUM(G59:G60) -> 
B63: Opening Net Fixed Assets | C63: =0 -> 0 | D63: =C64 ->  | E63: =D64 ->  | F63: =E64 ->  | G63: =F64 -> 
B64: Closing Net Fixed Assets | C64: =C57-C61 ->  | D64: =D57-D61 ->  | E64: =E57-E61 ->  | F64: =F57-F61 ->  | G64: =G57-G61 -> 
B65: Average Net Fixed Assets | C65: =(C64+C63)/2 ->  | D65: =(D64+D63)/2 ->  | E65: =(E64+E63)/2 ->  | F65: =(F64+F63)/2 ->  | G65: =(G64+G63)/2 -> 
B67: Net Fixed Assets - Other Equipment | C67: 2006 | D67: 2007 | E67: 2008 | F67: 2009 | G67: 2010
B69: Opening Capital Investment | C69: 0 | D69: =C71 ->  | E69: =D71 ->  | F69: =E71 ->  | G69: =F71 -> 
B70: Capital Investment (3. LDC Assumptions and Data) | C70: =#REF! ->  | D70: =#REF! ->  | E70: =#REF! ->  | F70: =#REF! ->  | G70: =#REF! -> 
B71: Closing Capital Investment | C71: =SUM(C69:C70) ->  | D71: =SUM(D69:D70) ->  | E71: =SUM(E69:E70) ->  | F71: =SUM(F69:F70) ->  | G71: =SUM(G69:G70) -> 
B73: Opening Accumulated Amortization | C73: 0 | D73: =C75 ->  | E73: =D75 ->  | F73: =E75 ->  | G73: =F75 -> 
B74: ="Amortization Year 1 (" &#REF! &" Years Straight Line)" ->  | C74: =IF(C73+(C69/#REF!)+(C70/#REF!/2)<C71,(C69/#REF!)+(C70/#REF!/2),C71-C73) ->  | D74: =IF(D73+(D69/#REF!)+(D70/#REF!/2)<D71,(D69/#REF!)+(D70/#REF!/2),D71-D73) ->  | E74: =IF(E73+(E69/#REF!)+(E70/#REF!/2)<E71,(E69/#REF!)+(E70/#REF!/2),E71-E73) ->  | F74: =IF(F73+(F69/#REF!)+(F70/#REF!/2)<F71,(F69/#REF!)+(F70/#REF!/2),F71-F73) ->  | G74: =IF(G73+(G69/#REF!)+(G70/#REF!/2)<G71,(G69/#REF!)+(G70/#REF!/2),G71-G73) -> 
B75: Closing Accumulated Amortization | C75: =SUM(C73:C74) ->  | D75: =SUM(D73:D74) ->  | E75: =SUM(E73:E74) ->  | F75: =SUM(F73:F74) ->  | G75: =SUM(G73:G74) -> 
B77: Opening Net Fixed Assets | C77: =0 -> 0 | D77: =C78 ->  | E77: =D78 ->  | F77: =E78 ->  | G77: =F78 -> 
B78: Closing Net Fixed Assets | C78: =C71-C75 ->  | D78: =D71-D75 ->  | E78: =E71-E75 ->  | F78: =F71-F75 ->  | G78: =G71-G75 -> 
B79: Average Net Fixed Assets | C79: =(C78+C77)/2 ->  | D79: =(D78+D77)/2 ->  | E79: =(E78+E77)/2 ->  | F79: =(F78+F77)/2 ->  | G79: =(G78+G77)/2 -> 
B82: For PILs Calculation
B84: UCC - Smart Meters
B85: CCA Class 47 (8%) | C85: 2006 | D85: 2007 | E85: 2008 | F85: 2009 | G85: 2010
B87: Opening UCC | C87: 0 | D87: =C89-C93 ->  | E87: =D89-D93 ->  | F87: =E89-E93 ->  | G87: =F89-F93 -> 
B88: Capital Additions | C88: =C13 ->  | D88: =D13 ->  | E88: =E13 ->  | F88: =F13 ->  | G88: =G13 -> 
B89: UCC Before Half Year Rule | C89: =SUM(C87:C88) ->  | D89: =SUM(D87:D88) ->  | E89: =SUM(E87:E88) ->  | F89: =SUM(F87:F88) ->  | G89: =SUM(G87:G88) -> 
B90: Half Year Rule (1/2 Additions - Disposals) | C90: =SUM(C88:C88)/2 ->  | D90: =SUM(D88:D88)/2 ->  | E90: =SUM(E88:E88)/2 ->  | F90: =SUM(F88:F88)/2 ->  | G90: =SUM(G88:G88)/2 -> 
B91: Reduced UCC | C91: =C87+C90 ->  | D91: =D87+D90 ->  | E91: =E87+E90 ->  | F91: =F87+F90 ->  | G91: =G87+G90 -> 
B92: CCA Rate Class 47 | C92: 0.08 | D92: 0.08 | E92: 0.08 | F92: 0.08 | G92: 0.08
B93: CCA | C93: =IF((C91*C92)<C91,(C91*C92),C91) ->  | D93: =IF((D91*D92)<D91,(D91*D92),D91) ->  | E93: =IF((E91*E92)<E91,(E91*E92),E91) ->  | F93: =IF((F91*F92)<F91,(F91*F92),F91) ->  | G93: =IF((G91*G92)<G91,(G91*G92),G91) -> 
B94: Closing UCC | C94: =IF((C89-C93)<0,0,(C89-C93)) ->  | D94: =IF((D89-D93)<0,0,(D89-D93)) ->  | E94: =IF((E89-E93)<0,0,(E89-E93)) ->  | F94: =IF((F89-F93)<0,0,(F89-F93)) ->  | G94: =IF((G89-G93)<0,0,(G89-G93)) -> 
B96: UCC - Computer Equipment
B97: CCA Class 45 (45%) | C97: 2006 | D97: 2007 | E97: 2008 | F97: 2009 | G97: 2010
B99: Opening UCC | C99: 0 | D99: =C107 ->  | E99: =D107 ->  | F99: =E107 ->  | G99: =F107 -> 
B100: Capital Additions Computer Hardware | C100: =C27 ->  | D100: =D27 ->  | E100: =E27 ->  | F100: =F27 ->  | G100: =G27 -> 
B101: Capital Additions Computer Software | C101: =C41 ->  | D101: =D41 ->  | E101: =E41 ->  | F101: =F41 ->  | G101: =G41 -> 
B102: UCC Before Half Year Rule | C102: =SUM(C99:C101) ->  | D102: =SUM(D99:D101) ->  | E102: =SUM(E99:E101) ->  | F102: =SUM(F99:F101) ->  | G102: =SUM(G99:G101) -> 
B103: Half Year Rule (1/2 Additions - Disposals) | C103: =SUM(C100:C101)/2 ->  | D103: =SUM(D100:D101)/2 ->  | E103: =SUM(E100:E101)/2 ->  | F103: =SUM(F100:F101)/2 ->  | G103: =SUM(G100:G101)/2 -> 
B104: Reduced UCC | C104: =C99+C103 ->  | D104: =D99+D103 ->  | E104: =E99+E103 ->  | F104: =F99+F103 ->  | G104: =G99+G103 -> 
B105: CCA Rate Class 45 | C105: 0.45 | D105: 0.45 | E105: 0.45 | F105: 0.45 | G105: 0.45
B106: CCA | C106: =IF((C104*C105)<C104,(C104*C105),C104) ->  | D106: =IF((D104*D105)<D104,(D104*D105),D104) ->  | E106: =IF((E104*E105)<E104,(E104*E105),E104) ->  | F106: =IF((F104*F105)<F104,(F104*F105),F104) ->  | G106: =IF((G104*G105)<G104,(G104*G105),G104) -> 
B107: Closing UCC | C107: =IF((C102-C106)<0,0,(C102-C106)) ->  | D107: =IF((D102-D106)<0,0,(D102-D106)) ->  | E107: =IF((E102-E106)<0,0,(E102-E106)) ->  | F107: =IF((F102-F106)<0,0,(F102-F106)) ->  | G107: =IF((G102-G106)<0,0,(G102-G106)) -> 
B109: UCC - General Equipment
B110: CCA Class 8 (20%) | C110: 2006 | D110: 2007 | E110: 2008 | F110: 2009 | G110: 2010
B112: Opening UCC | C112: 0 | D112: =C120 ->  | E112: =D120 ->  | F112: =E120 ->  | G112: =F120 -> 
B113: Capital Additions Tools & Equipment | C113: =C56 ->  | D113: =D56 ->  | E113: =E56 ->  | F113: =F56 ->  | G113: =G56 -> 
B114: Capital Additions Other Equipment | C114: =C70 ->  | D114: =D70 ->  | E114: =E70 ->  | F114: =F70 ->  | G114: =G70 -> 
B115: UCC Before Half Year Rule | C115: =SUM(C112:C114) ->  | D115: =SUM(D112:D114) ->  | E115: =SUM(E112:E114) ->  | F115: =SUM(F112:F114) ->  | G115: =SUM(G112:G114) -> 
B116: Half Year Rule (1/2 Additions - Disposals) | C116: =SUM(C113:C114)/2 ->  | D116: =SUM(D113:D114)/2 ->  | E116: =SUM(E113:E114)/2 ->  | F116: =SUM(F113:F114)/2 ->  | G116: =SUM(G113:G114)/2 -> 
B117: Reduced UCC | C117: =C112+C116 ->  | D117: =D112+D116 ->  | E117: =E112+E116 ->  | F117: =F112+F116 ->  | G117: =G112+G116 -> 
B118: CCA Rate Class 8 | C118: 0.2 | D118: 0.2 | E118: 0.2 | F118: 0.2 | G118: 0.2
B119: CCA | C119: =IF((C117*C118)<C117,(C117*C118),C117) ->  | D119: =IF((D117*D118)<D117,(D117*D118),D117) ->  | E119: =IF((E117*E118)<E117,(E117*E118),E117) ->  | F119: =IF((F117*F118)<F117,(F117*F118),F117) ->  | G119: =IF((G117*G118)<G117,(G117*G118),G117) -> 
B120: Closing UCC | C120: =IF((C115-C119)<0,0,(C115-C119)) ->  | D120: =IF((D115-D119)<0,0,(D115-D119)) ->  | E120: =IF((E115-E119)<0,0,(E115-E119)) ->  | F120: =IF((F115-F119)<0,0,(F115-F119)) ->  | G120: =IF((G115-G119)<0,0,(G115-G119)) -> 

Sheet 10. 2007A Smart Meter Rate Calc (hidden)
B2: =#REF! -> 
B3: =#REF! -> 
B4: =#REF! -> 
B5: Sheet 10. Smart Meter Rate Calc
A8: Smart Meter Rate Calculation
B10: Average Asset Values | C10: 2007 | F10: 2008 | I10: 2009 | L10: 2010
B11: Net Fixed Assets Smart Meters | C11: ='12. 2007A SM Nt Fix Ass &UCC'!C22 ->  | F11: ='12. 2007A SM Nt Fix Ass &UCC'!D22 ->  | I11: ='12. 2007A SM Nt Fix Ass &UCC'!E22 ->  | L11: ='12. 2007A SM Nt Fix Ass &UCC'!F22 -> 
B12: Net Fixed Assets Computer Hardware | C12: ='12. 2007A SM Nt Fix Ass &UCC'!C36 ->  | F12: ='12. 2007A SM Nt Fix Ass &UCC'!D36 ->  | I12: ='12. 2007A SM Nt Fix Ass &UCC'!E36 ->  | L12: ='12. 2007A SM Nt Fix Ass &UCC'!F36 -> 
B13: Net Fixed Assets Computer Software | C13: ='12. 2007A SM Nt Fix Ass &UCC'!C50 ->  | F13: ='12. 2007A SM Nt Fix Ass &UCC'!D50 ->  | I13: ='12. 2007A SM Nt Fix Ass &UCC'!E50 ->  | L13: ='12. 2007A SM Nt Fix Ass &UCC'!F50 -> 
B14: Net Fixed Assets Tools & Equipment | C14: ='12. 2007A SM Nt Fix Ass &UCC'!C65 ->  | F14: ='12. 2007A SM Nt Fix Ass &UCC'!D65 ->  | I14: ='12. 2007A SM Nt Fix Ass &UCC'!E65 ->  | L14: ='12. 2007A SM Nt Fix Ass &UCC'!F65 -> 
B15: Net Fixed Assets Other Equipment | C15: ='12. 2007A SM Nt Fix Ass &UCC'!C79 ->  | F15: ='12. 2007A SM Nt Fix Ass &UCC'!D79 ->  | I15: ='12. 2007A SM Nt Fix Ass &UCC'!E79 ->  | L15: ='12. 2007A SM Nt Fix Ass &UCC'!F79 -> 
B16: Total Net Fixed Assets | C16: =SUM(C11:C15) ->  | D16: =C16 ->  | F16: =SUM(F11:F15) ->  | G16: =F16 ->  | I16: =SUM(I11:I15) ->  | J16: =I16 ->  | L16: =SUM(L11:L15) ->  | M16: =L16 -> 
B18: Working Capital
B19: Operation Expense | C19: =E34 ->  | F19: =H34 ->  | I19: =K34 ->  | L19: =N34 -> 
B20: ="Working Capital "&#REF!*100&" %" ->  | C20: =C19*#REF! ->  | D20: =C20 ->  | F20: =F19*#REF! ->  | G20: =F20 ->  | I20: =I19*#REF! ->  | J20: =I20 ->  | L20: =L19*#REF! ->  | M20: =L20 -> 
B22: Smart Meters included in Rate Base | D22: =SUM(D12:D20) ->  | G22: =SUM(G12:G20) ->  | J22: =SUM(J12:J20) ->  | M22: =SUM(M12:M20) -> 
B24: Return on Rate Base
B25: Deemed Debt (3. LDC Assumptions and Data) | C25: =#REF! ->  | D25: =D22*C25 ->  | F25: =#REF! ->  | G25: =G22*F25 ->  | I25: =#REF! ->  | J25: =J22*I25 ->  | L25: =#REF! ->  | M25: =M22*L25 -> 
B26: Deemed Equity (3. LDC Assumptions and Data) | C26: =#REF! ->  | D26: =D22*C26 ->  | F26: =#REF! ->  | G26: =G22*F26 ->  | I26: =#REF! ->  | J26: =J22*I26 ->  | L26: =#REF! ->  | M26: =M22*L26 -> 
D27: =SUM(D25:D26) ->  | G27: =SUM(G25:G26) ->  | J27: =SUM(J25:J26) ->  | M27: =SUM(M25:M26) -> 
B29: Weighted Debt Rate (3. LDC Assumptions and Data) | C29: =#REF! ->  | D29: =D25*C29 ->  | F29: =#REF! ->  | G29: =G25*F29 ->  | I29: =#REF! ->  | J29: =J25*I29 ->  | L29: =#REF! ->  | M29: =M25*L29 -> 
B30: Proposed ROE (3. LDC Assumptions and Data) | C30: =#REF! ->  | D30: =D26*C30 ->  | F30: =#REF! ->  | G30: =G26*F30 ->  | I30: =#REF! ->  | J30: =J26*I30 ->  | L30: =#REF! ->  | M30: =M26*L30 -> 
B31: Return on Rate Base | D31: =SUM(D29:D30) ->  | E31: =D31 ->  | G31: =SUM(G29:G30) ->  | H31: =G31 ->  | J31: =SUM(J29:J30) ->  | K31: =J31 ->  | M31: =SUM(M29:M30) ->  | N31: =M31 -> 
B33: Operating Expenses
B34: Incremental Operating Expenses (3. LDC Assumptions and Data) | E34: =#REF! ->  | H34: =#REF! ->  | K34: =#REF! ->  | N34: =#REF! -> 
B36: Amortization Expenses
B37: Amortization Expenses - Smart Meters | D37: =SUM('12. 2007A SM Nt Fix Ass &UCC'!C17:C17) ->  | G37: =SUM('12. 2007A SM Nt Fix Ass &UCC'!D17:D17) ->  | J37: =SUM('12. 2007A SM Nt Fix Ass &UCC'!E17:E17) ->  | M37: =SUM('12. 2007A SM Nt Fix Ass &UCC'!F17:F17) -> 
B38: Amortization Expenses - Computer Hardware | D38: =SUM('12. 2007A SM Nt Fix Ass &UCC'!C31:C31) ->  | G38: =SUM('12. 2007A SM Nt Fix Ass &UCC'!D31:D31) ->  | J38: =SUM('12. 2007A SM Nt Fix Ass &UCC'!E31:E31) ->  | M38: =SUM('12. 2007A SM Nt Fix Ass &UCC'!F31:F31) -> 
B39: Amortization Expenses - Computer Software | D39: =SUM('12. 2007A SM Nt Fix Ass &UCC'!C45:C45) ->  | G39: =SUM('12. 2007A SM Nt Fix Ass &UCC'!D45:D45) ->  | J39: =SUM('12. 2007A SM Nt Fix Ass &UCC'!E45:E45) ->  | M39: =SUM('12. 2007A SM Nt Fix Ass &UCC'!F45:F45) -> 
B40: Amortization Expenses - Tools & Equipment | D40: =SUM('12. 2007A SM Nt Fix Ass &UCC'!C60:C60) ->  | G40: =SUM('12. 2007A SM Nt Fix Ass &UCC'!D60:D60) ->  | J40: =SUM('12. 2007A SM Nt Fix Ass &UCC'!E60:E60) ->  | M40: =SUM('12. 2007A SM Nt Fix Ass &UCC'!F60:F60) -> 
B41: Amortization Expenses - Other Equipment | D41: =SUM('12. 2007A SM Nt Fix Ass &UCC'!C74:C74) ->  | G41: =SUM('12. 2007A SM Nt Fix Ass &UCC'!D74:D74) ->  | J41: =SUM('12. 2007A SM Nt Fix Ass &UCC'!E74:E74) ->  | M41: =SUM('12. 2007A SM Nt Fix Ass &UCC'!F74:F74) -> 
B42: Total Amortization Expenses | E42: =SUM(D37:D41) ->  | H42: =SUM(G37:G41) ->  | K42: =SUM(J37:J41) ->  | N42: =SUM(M37:M41) -> 
B44: Revenue Requirement Before PILs | E44: =SUM(E31,E42,E34) ->  | H44: =SUM(H31,H42,H34) ->  | K44: =SUM(K31,K42,K34) ->  | N44: =SUM(N31,N42,N34) -> 
B46: Calculation of Taxable Income
B47: Incremental Operating Expenses | E47: =-E34 ->  | H47: =-H34 ->  | K47: =-K34 ->  | N47: =-N34 -> 
B48: Depreciation Expenses | E48: =-E42 ->  | H48: =-H42 ->  | K48: =-K42 ->  | N48: =-N42 -> 
B49: Interest Expense | E49: =-D29 ->  | H49: =-G29 ->  | K49: =-J29 ->  | N49: =-M29 -> 
B50: Taxable Income For PILs | E50: =SUM(E44:E49) ->  | H50: =SUM(H44:H49) ->  | K50: =SUM(K44:K49) ->  | N50: =SUM(N44:N49) -> 
B52: Grossed up PILs (5. PILs) | E52: ='11. 2007A PILs'!C46 ->  | H52: ='11. 2007A PILs'!D46 ->  | K52: ='11. 2007A PILs'!E46 ->  | N52: ='11. 2007A PILs'!F46 -> 
B54: =B44 -> Revenue Requirement Before PILs | E54: =E44 ->  | H54: =H44 ->  | K54: =K44 ->  | N54: =N44 -> 
B55: Grossed up PILs (5. PILs) | E55: =E52 ->  | H55: =H52 ->  | K55: =K52 ->  | N55: =N52 -> 
B56: Revenue Requirement for Smart Meters | E56: =SUM(E54:E55) ->  | H56: =SUM(H54:H55) ->  | K56: =SUM(K54:K55) ->  | N56: =SUM(N54:N55) -> 
B58: 2007 Smart Meter Rate Adder
B59: Revenue Requirement for Smart Meters | E59: =E56 ->  | H59: =H56 ->  | K59: =K56 ->  | N59: =N56 -> 
B60: 2006 EDR Total Metered Customers (3. LDC Assumptions and Data) | E60: =#REF! ->  | H60: =#REF! ->  | K60: =#REF! ->  | N60: =#REF! -> 
B61: Annualized amount required per metered customer | E61: =IF(ISERROR(E59/E60),0,E59/E60) -> 0 | H61: =IF(ISERROR(H59/H60),0,H59/H60) -> 0 | K61: =IF(ISERROR(K59/K60),0,K59/K60) -> 0 | N61: =IF(ISERROR(N59/N60),0,N59/N60) -> 0
B62: Number of months in year | E62: 12 | H62: 12 | K62: 12 | N62: 12
B63: 2007 Smart Meter Rate Adder | E63: =E61/E62 -> 0 | H63: =H61/H62 -> 0 | K63: =K61/K62 -> 0 | N63: =N61/N62 -> 0

Sheet 11. 2007A PILs (hidden)
B2: =#REF! -> 
B3: =#REF! -> 
B4: =#REF! -> 
B5: Sheet 11. PILs
B8: PILs Calculation
C10: 2007 | D10: 2008 | E10: 2009 | F10: 2010
B11: INCOME TAX
B12: Net Income | C12: ='10. 2007A Smart Meter Rate Calc'!E50 ->  | D12: ='10. 2007A Smart Meter Rate Calc'!H50 ->  | E12: ='10. 2007A Smart Meter Rate Calc'!K50 ->  | F12: ='10. 2007A Smart Meter Rate Calc'!N50 -> 
B13: Amortization | C13: =-'10. 2007A Smart Meter Rate Calc'!E48 ->  | D13: =-'10. 2007A Smart Meter Rate Calc'!H48 ->  | E13: =-'10. 2007A Smart Meter Rate Calc'!K48 ->  | F13: =-'10. 2007A Smart Meter Rate Calc'!N48 -> 
B14: CCA - Class 47 (8%) Smart Meters | C14: =-'12. 2007A SM Nt Fix Ass &UCC'!C93 ->  | D14: =-'12. 2007A SM Nt Fix Ass &UCC'!D93 ->  | E14: =-'12. 2007A SM Nt Fix Ass &UCC'!E93 ->  | F14: =-'12. 2007A SM Nt Fix Ass &UCC'!F93 -> 
B15: CCA - Class 45 (45%) Computers | C15: =-'12. 2007A SM Nt Fix Ass &UCC'!C106 ->  | D15: =-'12. 2007A SM Nt Fix Ass &UCC'!D106 ->  | E15: =-'12. 2007A SM Nt Fix Ass &UCC'!E106 ->  | F15: =-'12. 2007A SM Nt Fix Ass &UCC'!F106 -> 
B16: CCA - Class 8 (20%) Other Equipment | C16: =-'12. 2007A SM Nt Fix Ass &UCC'!C119 ->  | D16: =-'12. 2007A SM Nt Fix Ass &UCC'!D119 ->  | E16: =-'12. 2007A SM Nt Fix Ass &UCC'!E119 ->  | F16: =-'12. 2007A SM Nt Fix Ass &UCC'!F119 -> 
B17: Change in taxable income | C17: =SUM(C12:C16) ->  | D17: =SUM(D12:D16) ->  | E17: =SUM(E12:E16) ->  | F17: =SUM(F12:F16) -> 
B18: Tax Rate (3. LDC Assumptions and Data) | C18: =#REF! ->  | D18: =#REF! ->  | E18: =#REF! ->  | F18: =#REF! -> 
B19: Income Taxes Payable | C19: =C17*C18 ->  | D19: =D17*D18 ->  | E19: =E17*E18 ->  | F19: =F17*F18 -> 
B21: ONTARIO CAPITAL TAX
B22: Smart Meters | C22: ='12. 2007A SM Nt Fix Ass &UCC'!C21 ->  | D22: ='12. 2007A SM Nt Fix Ass &UCC'!D21 ->  | E22: ='12. 2007A SM Nt Fix Ass &UCC'!E21 ->  | F22: ='12. 2007A SM Nt Fix Ass &UCC'!F21 -> 
B23: Computer Hardware | C23: ='12. 2007A SM Nt Fix Ass &UCC'!C35 ->  | D23: ='12. 2007A SM Nt Fix Ass &UCC'!D35 ->  | E23: ='12. 2007A SM Nt Fix Ass &UCC'!E35 ->  | F23: ='12. 2007A SM Nt Fix Ass &UCC'!F35 -> 
B24: Computer Software | C24: ='12. 2007A SM Nt Fix Ass &UCC'!C49 ->  | D24: ='12. 2007A SM Nt Fix Ass &UCC'!D49 ->  | E24: ='12. 2007A SM Nt Fix Ass &UCC'!E49 ->  | F24: ='12. 2007A SM Nt Fix Ass &UCC'!F49 -> 
B25: Tools & Equipment | C25: ='12. 2007A SM Nt Fix Ass &UCC'!C64 ->  | D25: ='12. 2007A SM Nt Fix Ass &UCC'!D64 ->  | E25: ='12. 2007A SM Nt Fix Ass &UCC'!E64 ->  | F25: ='12. 2007A SM Nt Fix Ass &UCC'!F64 -> 
B26: Other Equipment | C26: ='12. 2007A SM Nt Fix Ass &UCC'!C78 ->  | D26: ='12. 2007A SM Nt Fix Ass &UCC'!D78 ->  | E26: ='12. 2007A SM Nt Fix Ass &UCC'!E78 ->  | F26: ='12. 2007A SM Nt Fix Ass &UCC'!F78 -> 
B27: Rate Base | C27: =SUM(C22:C24) ->  | D27: =SUM(D22:D24) ->  | E27: =SUM(E22:E24) ->  | F27: =SUM(F22:F24) -> 
B28: Less: Exemption | C28: 0 | D28: 0 | E28: 0 | F28: 0
B29: Deemed Taxable Capital | C29: =C27-C28 ->  | D29: =D27-D28 ->  | E29: =E27-E28 ->  | F29: =F27-F28 -> 
B30: Ontario Capital Tax Rate | C30: 0.003 | D30: 0.003 | E30: 0.003 | F30: 0.003
B31: Net Amount (Taxable Capital x Rate) | C31: =C29*C30 ->  | D31: =D29*D30 ->  | E31: =E29*E30 ->  | F31: =F29*F30 -> 
B34: Gross Up
C35: PILs Payable | D35: PILs Payable | E35: PILs Payable | F35: PILs Payable
B36: Change in Income Taxes Payable | C36: =C19 ->  | D36: =D19 ->  | E36: =E19 ->  | F36: =F19 -> 
B37: Change in OCT | C37: =C31 ->  | D37: =D31 ->  | E37: =E31 ->  | F37: =F31 -> 
B38: PIL's | C38: =SUM(C36:C37) ->  | D38: =SUM(D36:D37) ->  | E38: =SUM(E36:E37) ->  | F38: =SUM(F36:F37) -> 
C40: Gross Up | D40: Gross Up | E40: Gross Up | F40: Gross Up
C41: =$C$18 ->  | D41: =$C$18 ->  | E41: =$C$18 ->  | F41: =$C$18 -> 
C43: Grossed Up PILs | D43: Grossed Up PILs | E43: Grossed Up PILs | F43: Grossed Up PILs
B44: Change in Income Taxes Payable | C44: =C36/(1-C41) ->  | D44: =D36/(1-D41) ->  | E44: =E36/(1-E41) ->  | F44: =F36/(1-F41) -> 
B45: Change in OCT | C45: =C37 ->  | D45: =D37 ->  | E45: =E37 ->  | F45: =F37 -> 
B46: PIL's | C46: =SUM(C44:C45) ->  | D46: =SUM(D44:D45) ->  | E46: =SUM(E44:E45) ->  | F46: =SUM(F44:F45) -> 

Sheet 12. 2007A SM Nt Fix Ass &UCC (hidden)
B2: =#REF! -> 
B3: =#REF! -> 
B4: =#REF! -> 
B5: Sheet 12. SM Avg Net Fixed Assets &UCC
B8: Smart Meter Average Net Fixed Assets
B10: Net Fixed Assets - Smart Meters | C10: 2007 | D10: 2008 | E10: 2009 | F10: 2010
B12: Opening Capital Investment | C12: 0 | D12: =C14 ->  | E12: =D14 ->  | F12: =E14 -> 
B13: Capital Investment (3. LDC Assumptions and Data) | C13: =#REF! ->  | D13: =#REF! ->  | E13: =#REF! ->  | F13: =#REF! -> 
B14: Closing Capital Investment | C14: =SUM(C12:C13) ->  | D14: =SUM(D12:D13) ->  | E14: =SUM(E12:E13) ->  | F14: =SUM(F12:F13) -> 
B16: Opening Accumulated Amortization | C16: 0 | D16: =C18 ->  | E16: =D18 ->  | F16: =E18 -> 
B17: ="Amortization Year 1 (" &#REF! &" Years Straight Line)" ->  | C17: =IF(C16+(C12/#REF!)+(C13/#REF!/2)<C14,(C12/#REF!)+(C13/#REF!/2),C14-C16) ->  | D17: =IF(D16+(D12/#REF!)+(D13/#REF!/2)<D14,(D12/#REF!)+(D13/#REF!/2),D14-D16) ->  | E17: =IF(E16+(E12/#REF!)+(E13/#REF!/2)<E14,(E12/#REF!)+(E13/#REF!/2),E14-E16) ->  | F17: =IF(F16+(F12/#REF!)+(F13/#REF!/2)<F14,(F12/#REF!)+(F13/#REF!/2),F14-F16) -> 
B18: Closing Accumulated Amortization | C18: =SUM(C16:C17) ->  | D18: =SUM(D16:D17) ->  | E18: =SUM(E16:E17) ->  | F18: =SUM(F16:F17) -> 
B20: Opening Net Fixed Assets | C20: =0 -> 0 | D20: =C21 ->  | E20: =D21 ->  | F20: =E21 -> 
B21: Closing Net Fixed Assets | C21: =C14-C18 ->  | D21: =D14-D18 ->  | E21: =E14-E18 ->  | F21: =F14-F18 -> 
B22: Average Net Fixed Assets | C22: =(C21+C20)/2 ->  | D22: =(D21+D20)/2 ->  | E22: =(E21+E20)/2 ->  | F22: =(F21+F20)/2 -> 
B24: Net Fixed Assets - Computer Hardware | C24: 2007 | D24: 2008 | E24: 2009 | F24: 2010
B26: Opening Capital Investment | C26: 0 | D26: =C28 ->  | E26: =D28 ->  | F26: =E28 -> 
B27: Capital Investment (3. LDC Assumptions and Data) | C27: =#REF! ->  | D27: =#REF! ->  | E27: =#REF! ->  | F27: =#REF! -> 
B28: Closing Capital Investment | C28: =SUM(C26:C27) ->  | D28: =SUM(D26:D27) ->  | E28: =SUM(E26:E27) ->  | F28: =SUM(F26:F27) -> 
B30: Opening Accumulated Amortization | C30: 0 | D30: =C32 ->  | E30: =D32 ->  | F30: =E32 -> 
B31: ="Amortization Year 1 (" &#REF! &" Years Straight Line)" ->  | C31: =IF(C30+(C26/#REF!)+(C27/#REF!/2)<C28,(C26/#REF!)+(C27/#REF!/2),C28-C30) ->  | D31: =IF(D30+(D26/#REF!)+(D27/#REF!/2)<D28,(D26/#REF!)+(D27/#REF!/2),D28-D30) ->  | E31: =IF(E30+(E26/#REF!)+(E27/#REF!/2)<E28,(E26/#REF!)+(E27/#REF!/2),E28-E30) ->  | F31: =IF(F30+(F26/#REF!)+(F27/#REF!/2)<F28,(F26/#REF!)+(F27/#REF!/2),F28-F30) -> 
B32: Closing Accumulated Amortization | C32: =SUM(C30:C31) ->  | D32: =SUM(D30:D31) ->  | E32: =SUM(E30:E31) ->  | F32: =SUM(F30:F31) -> 
B34: Opening Net Fixed Assets | C34: =0 -> 0 | D34: =C35 ->  | E34: =D35 ->  | F34: =E35 -> 
B35: Closing Net Fixed Assets | C35: =C28-C32 ->  | D35: =D28-D32 ->  | E35: =E28-E32 ->  | F35: =F28-F32 -> 
B36: Average Net Fixed Assets | C36: =(C35+C34)/2 ->  | D36: =(D35+D34)/2 ->  | E36: =(E35+E34)/2 ->  | F36: =(F35+F34)/2 -> 
B38: Net Fixed Assets - Computer Software | C38: 2007 | D38: 2008 | E38: 2009 | F38: 2010
B40: Opening Capital Investment | C40: 0 | D40: =C42 ->  | E40: =D42 ->  | F40: =E42 -> 
B41: Capital Investment (3. LDC Assumptions and Data) | C41: =#REF! ->  | D41: =#REF! ->  | E41: =#REF! ->  | F41: =#REF! -> 
B42: Closing Capital Investment | C42: =SUM(C40:C41) ->  | D42: =SUM(D40:D41) ->  | E42: =SUM(E40:E41) ->  | F42: =SUM(F40:F41) -> 
B44: Opening Accumulated Amortization | C44: 0 | D44: =C46 ->  | E44: =D46 ->  | F44: =E46 -> 
B45: ="Amortization Year 1 (" &#REF! &" Years Straight Line)" ->  | C45: =IF(C44+(C40/#REF!)+(C41/#REF!/2)<C42,(C40/#REF!)+(C41/#REF!/2),C42-C44) ->  | D45: =IF(D44+(D40/#REF!)+(D41/#REF!/2)<D42,(D40/#REF!)+(D41/#REF!/2),D42-D44) ->  | E45: =IF(E44+(E40/#REF!)+(E41/#REF!/2)<E42,(E40/#REF!)+(E41/#REF!/2),E42-E44) ->  | F45: =IF(F44+(F40/#REF!)+(F41/#REF!/2)<F42,(F40/#REF!)+(F41/#REF!/2),F42-F44) -> 
B46: Closing Accumulated Amortization | C46: =SUM(C44:C45) ->  | D46: =SUM(D44:D45) ->  | E46: =SUM(E44:E45) ->  | F46: =SUM(F44:F45) -> 
B48: Opening Net Fixed Assets | C48: =0 -> 0 | D48: =C49 ->  | E48: =D49 ->  | F48: =E49 -> 
B49: Closing Net Fixed Assets | C49: =C42-C46 ->  | D49: =D42-D46 ->  | E49: =E42-E46 ->  | F49: =F42-F46 -> 
B50: Average Net Fixed Assets | C50: =(C49+C48)/2 ->  | D50: =(D49+D48)/2 ->  | E50: =(E49+E48)/2 ->  | F50: =(F49+F48)/2 -> 
B53: Net Fixed Assets - Tools & Equipment | C53: 2007 | D53: 2008 | E53: 2009 | F53: 2010
B55: Opening Capital Investment | C55: 0 | D55: =C57 ->  | E55: =D57 ->  | F55: =E57 -> 
B56: Capital Investment (3. LDC Assumptions and Data) | C56: =#REF! ->  | D56: =#REF! ->  | E56: =#REF! ->  | F56: =#REF! -> 
B57: Closing Capital Investment | C57: =SUM(C55:C56) ->  | D57: =SUM(D55:D56) ->  | E57: =SUM(E55:E56) ->  | F57: =SUM(F55:F56) -> 
B59: Opening Accumulated Amortization | C59: 0 | D59: =C61 ->  | E59: =D61 ->  | F59: =E61 -> 
B60: ="Amortization Year 1 (" &#REF! &" Years Straight Line)" ->  | C60: =IF(C59+(C55/#REF!)+(C56/#REF!/2)<C57,(C55/#REF!)+(C56/#REF!/2),C57-C59) ->  | D60: =IF(D59+(D55/#REF!)+(D56/#REF!/2)<D57,(D55/#REF!)+(D56/#REF!/2),D57-D59) ->  | E60: =IF(E59+(E55/#REF!)+(E56/#REF!/2)<E57,(E55/#REF!)+(E56/#REF!/2),E57-E59) ->  | F60: =IF(F59+(F55/#REF!)+(F56/#REF!/2)<F57,(F55/#REF!)+(F56/#REF!/2),F57-F59) -> 
B61: Closing Accumulated Amortization | C61: =SUM(C59:C60) ->  | D61: =SUM(D59:D60) ->  | E61: =SUM(E59:E60) ->  | F61: =SUM(F59:F60) -> 
B63: Opening Net Fixed Assets | C63: =0 -> 0 | D63: =C64 ->  | E63: =D64 ->  | F63: =E64 -> 
B64: Closing Net Fixed Assets | C64: =C57-C61 ->  | D64: =D57-D61 ->  | E64: =E57-E61 ->  | F64: =F57-F61 -> 
B65: Average Net Fixed Assets | C65: =(C64+C63)/2 ->  | D65: =(D64+D63)/2 ->  | E65: =(E64+E63)/2 ->  | F65: =(F64+F63)/2 -> 
B67: Net Fixed Assets - Other Equipment | C67: 2007 | D67: 2008 | E67: 2009 | F67: 2010
B69: Opening Capital Investment | C69: 0 | D69: =C71 ->  | E69: =D71 ->  | F69: =E71 -> 
B70: Capital Investment (3. LDC Assumptions and Data) | C70: =#REF! ->  | D70: =#REF! ->  | E70: =#REF! ->  | F70: =#REF! -> 
B71: Closing Capital Investment | C71: =SUM(C69:C70) ->  | D71: =SUM(D69:D70) ->  | E71: =SUM(E69:E70) ->  | F71: =SUM(F69:F70) -> 
B73: Opening Accumulated Amortization | C73: 0 | D73: =C75 ->  | E73: =D75 ->  | F73: =E75 -> 
B74: ="Amortization Year 1 (" &#REF! &" Years Straight Line)" ->  | C74: =IF(C73+(C69/#REF!)+(C70/#REF!/2)<C71,(C69/#REF!)+(C70/#REF!/2),C71-C73) ->  | D74: =IF(D73+(D69/#REF!)+(D70/#REF!/2)<D71,(D69/#REF!)+(D70/#REF!/2),D71-D73) ->  | E74: =IF(E73+(E69/#REF!)+(E70/#REF!/2)<E71,(E69/#REF!)+(E70/#REF!/2),E71-E73) ->  | F74: =IF(F73+(F69/#REF!)+(F70/#REF!/2)<F71,(F69/#REF!)+(F70/#REF!/2),F71-F73) -> 
B75: Closing Accumulated Amortization | C75: =SUM(C73:C74) ->  | D75: =SUM(D73:D74) ->  | E75: =SUM(E73:E74) ->  | F75: =SUM(F73:F74) -> 
B77: Opening Net Fixed Assets | C77: =0 -> 0 | D77: =C78 ->  | E77: =D78 ->  | F77: =E78 -> 
B78: Closing Net Fixed Assets | C78: =C71-C75 ->  | D78: =D71-D75 ->  | E78: =E71-E75 ->  | F78: =F71-F75 -> 
B79: Average Net Fixed Assets | C79: =(C78+C77)/2 ->  | D79: =(D78+D77)/2 ->  | E79: =(E78+E77)/2 ->  | F79: =(F78+F77)/2 -> 
B82: For PILs Calculation
B84: UCC - Smart Meters
B85: CCA Class 47 (8%) | C85: 2007 | D85: 2008 | E85: 2009 | F85: 2010
B87: Opening UCC | C87: 0 | D87: =C89-C93 ->  | E87: =D89-D93 ->  | F87: =E89-E93 -> 
B88: Capital Additions | C88: =C13 ->  | D88: =D13 ->  | E88: =E13 ->  | F88: =F13 -> 
B89: UCC Before Half Year Rule | C89: =SUM(C87:C88) ->  | D89: =SUM(D87:D88) ->  | E89: =SUM(E87:E88) ->  | F89: =SUM(F87:F88) -> 
B90: Half Year Rule (1/2 Additions - Disposals) | C90: =SUM(C88:C88)/2 ->  | D90: =SUM(D88:D88)/2 ->  | E90: =SUM(E88:E88)/2 ->  | F90: =SUM(F88:F88)/2 -> 
B91: Reduced UCC | C91: =C87+C90 ->  | D91: =D87+D90 ->  | E91: =E87+E90 ->  | F91: =F87+F90 -> 
B92: CCA Rate Class 47 | C92: 0.08 | D92: 0.08 | E92: 0.08 | F92: 0.08
B93: CCA | C93: =IF((C91*C92)<C91,(C91*C92),C91) ->  | D93: =IF((D91*D92)<D91,(D91*D92),D91) ->  | E93: =IF((E91*E92)<E91,(E91*E92),E91) ->  | F93: =IF((F91*F92)<F91,(F91*F92),F91) -> 
B94: Closing UCC | C94: =IF((C89-C93)<0,0,(C89-C93)) ->  | D94: =IF((D89-D93)<0,0,(D89-D93)) ->  | E94: =IF((E89-E93)<0,0,(E89-E93)) ->  | F94: =IF((F89-F93)<0,0,(F89-F93)) -> 
B96: UCC - Computer Equipment
B97: CCA Class 45 (45%) | C97: 2007 | D97: 2008 | E97: 2009 | F97: 2010
B99: Opening UCC | C99: 0 | D99: =C107 ->  | E99: =D107 ->  | F99: =E107 -> 
B100: Capital Additions Computer Hardware | C100: =C27 ->  | D100: =D27 ->  | E100: =E27 ->  | F100: =F27 -> 
B101: Capital Additions Computer Software | C101: =C41 ->  | D101: =D41 ->  | E101: =E41 ->  | F101: =F41 -> 
B102: UCC Before Half Year Rule | C102: =SUM(C99:C101) ->  | D102: =SUM(D99:D101) ->  | E102: =SUM(E99:E101) ->  | F102: =SUM(F99:F101) -> 
B103: Half Year Rule (1/2 Additions - Disposals) | C103: =SUM(C100:C101)/2 ->  | D103: =SUM(D100:D101)/2 ->  | E103: =SUM(E100:E101)/2 ->  | F103: =SUM(F100:F101)/2 -> 
B104: Reduced UCC | C104: =C99+C103 ->  | D104: =D99+D103 ->  | E104: =E99+E103 ->  | F104: =F99+F103 -> 
B105: CCA Rate Class 45 | C105: 0.45 | D105: 0.45 | E105: 0.45 | F105: 0.45
B106: CCA | C106: =IF((C104*C105)<C104,(C104*C105),C104) ->  | D106: =IF((D104*D105)<D104,(D104*D105),D104) ->  | E106: =IF((E104*E105)<E104,(E104*E105),E104) ->  | F106: =IF((F104*F105)<F104,(F104*F105),F104) -> 
B107: Closing UCC | C107: =IF((C102-C106)<0,0,(C102-C106)) ->  | D107: =IF((D102-D106)<0,0,(D102-D106)) ->  | E107: =IF((E102-E106)<0,0,(E102-E106)) ->  | F107: =IF((F102-F106)<0,0,(F102-F106)) -> 
B109: UCC - General Equipment
B110: CCA Class 8 (20%) | C110: 2007 | D110: 2008 | E110: 2009 | F110: 2010
B112: Opening UCC | C112: 0 | D112: =C120 ->  | E112: =D120 ->  | F112: =E120 -> 
B113: Capital Additions Tools & Equipment | C113: =C56 ->  | D113: =D56 ->  | E113: =E56 ->  | F113: =F56 -> 
B114: Capital Additions Other Equipment | C114: =C70 ->  | D114: =D70 ->  | E114: =E70 ->  | F114: =F70 -> 
B115: UCC Before Half Year Rule | C115: =SUM(C112:C114) ->  | D115: =SUM(D112:D114) ->  | E115: =SUM(E112:E114) ->  | F115: =SUM(F112:F114) -> 
B116: Half Year Rule (1/2 Additions - Disposals) | C116: =SUM(C113:C114)/2 ->  | D116: =SUM(D113:D114)/2 ->  | E116: =SUM(E113:E114)/2 ->  | F116: =SUM(F113:F114)/2 -> 
B117: Reduced UCC | C117: =C112+C116 ->  | D117: =D112+D116 ->  | E117: =E112+E116 ->  | F117: =F112+F116 -> 
B118: CCA Rate Class 8 | C118: 0.2 | D118: 0.2 | E118: 0.2 | F118: 0.2
B119: CCA | C119: =IF((C117*C118)<C117,(C117*C118),C117) ->  | D119: =IF((D117*D118)<D117,(D117*D118),D117) ->  | E119: =IF((E117*E118)<E117,(E117*E118),E117) ->  | F119: =IF((F117*F118)<F117,(F117*F118),F117) -> 
B120: Closing UCC | C120: =IF((C115-C119)<0,0,(C115-C119)) ->  | D120: =IF((D115-D119)<0,0,(D115-D119)) ->  | E120: =IF((E115-E119)<0,0,(E115-E119)) ->  | F120: =IF((F115-F119)<0,0,(F115-F119)) -> 

Sheet 16. Carry Cost Required to May (hidden)
A1: Smart Meter Rate Carrying Cost Recovery Required
A2: =#REF! -> 
B3: Opening | C3: Rev Req | D3: Recovery | E3: Int. Rate | F3: Interest | G3: Closing
A4: 2006-01-01 | B4: 0 | C4: 0 | D4: 0 | E4: 0.0704 | F4: =(B4*E4)/12 -> 0 | G4: =SUM(B4:D4,F4) -> 0
A5: 2006-02-01 | B5: =G4 -> 0 | C5: 0 | D5: 0 | E5: 0.0704 | F5: 0 | G5: 0
A6: 2006-03-01 | B6: 0 | C6: 0 | D6: 0 | E6: 0.0704 | F6: 0 | G6: 0
A7: 2006-04-01 | B7: 0 | C7: 0 | D7: 0 | E7: 0.0414 | F7: 0 | G7: 0
A8: 2006-05-01 | B8: 0 | C8: 0 | D8: 0 | E8: 0.0414 | F8: 0 | G8: 0
A9: 2006-06-01 | B9: 0 | C9: 0 | D9: 0 | E9: 0.0414 | F9: 0 | G9: 0
A10: 2006-07-01 | B10: 0 | C10: 0 | D10: 0 | E10: 0.0459 | F10: 0 | G10: 0
A11: 2006-08-01 | B11: 0 | C11: 0 | D11: 0 | E11: 0.0459 | F11: 0 | G11: 0
A12: 2006-09-01 | B12: 0 | C12: 0 | D12: 0 | E12: 0.0459 | F12: 0 | G12: 0
A13: 2006-10-01 | B13: 0 | C13: 0 | D13: 0 | E13: 0.0459 | F13: 0 | G13: 0
A14: 2006-11-01 | B14: 0 | C14: 0 | D14: 0 | E14: 0.0459 | F14: 0 | G14: 0
A15: 2006-12-01 | B15: 0 | C15: 0 | D15: 0 | E15: 0.0459 | F15: 0 | G15: 0
A16: 2007-01-01 | B16: 0 | C16: 0 | D16: 0 | E16: 0.0459 | F16: 0 | G16: 0
A17: 2007-02-01 | B17: 0 | C17: 0 | D17: 0 | E17: 0.0459 | F17: 0 | G17: 0
A18: 2007-03-01 | B18: 0 | C18: 0 | D18: 0 | E18: 0.0459 | F18: 0 | G18: 0
A19: 2007-04-01 | B19: 0 | C19: 0 | D19: 0 | E19: 0.0459 | F19: 0 | G19: 0
A20: 2007-05-01 | B20: 0 | C20: 0 | D20: 0 | E20: 0.0459 | F20: 0 | G20: 0
A21: 2007-06-01 | B21: 0 | C21: 0 | D21: 0 | E21: 0.0459 | F21: 0 | G21: 0
A22: 2007-07-01 | B22: 0 | C22: 0 | D22: 0 | E22: 0.0459 | F22: 0 | G22: 0
A23: 2007-08-01 | B23: 0 | C23: 0 | D23: 0 | E23: 0.0459 | F23: 0 | G23: 0
A24: 2007-09-01 | B24: 0 | C24: 0 | D24: 0 | E24: 0.0459 | F24: 0 | G24: 0
A25: 2007-10-01 | B25: 0 | C25: 0 | D25: 0 | E25: 0.0459 | F25: 0 | G25: 0
A26: 2007-11-01 | B26: 0 | C26: 0 | D26: 0 | E26: 0.0459 | F26: 0 | G26: 0
A27: 2007-12-01 | B27: 0 | C27: 0 | D27: 0 | E27: 0.0459 | F27: 0 | G27: 0
A28: 2008-01-01 | B28: 0 | C28: ='4. Smart Meter Rev & Adder'!I47/12 ->  | D28: 0 | E28: 0.0459 | F28: 0
A29: 2008-02-01 | C29: =C28 ->  | D29: 0 | E29: 0.0459
A30: 2008-03-01 | C30: =C29 ->  | D30: 0 | E30: 0.0459
A31: 2008-04-01 | C31: =C30 ->  | D31: 0 | E31: 0.0459
A32: Carrying Cost Recovery Required on Permanent Adder | F32: =SUM(F4:F31) -> 
B34: Monthly | C34: Months | D34: Perm Rev Req
B35: =C28 ->  | C35: 12 | D35: =B35*C35 -> 

Sheet 1. Cost of Service_parameters
D4: MIST Meters True-up Model
B9: Sheet 1: Parameters and Rates
G11: 2018 | H11: 2019 | I11: 2020 | J11: 2021 | K11: 2022 | L11: 2023 | M11: 2024 | N11: 2025 | O11: 2026
B12: Cost of Capital
C13: Capital Structure
D14: Deemed Short-term Debt Capitalization | G14: 0.04 | H14: 0.04 | I14: 0.04 | J14: 0.04 | K14: 0.04 | L14: 0.04 | M14: 0.04 | N14: 0.04 | O14: 0.04
D15: Deemed Long-term Debt Capitalization | G15: =60%-G14 -> 0.56 | H15: =G15-(H14-G14) -> 0.56 | I15: =H15-(I14-H14) -> 0.56 | J15: 0.56 | K15: 0.56 | L15: 0.56 | M15: 0.56 | N15: =M15-(N14-M14) -> 0.56 | O15: =N15-(O14-N14) -> 0.56
D16: Deemed Equity Capitalization | G16: =100%-G15-G17-G14 -> 0.4 | H16: =100%-H15-H17-H14 -> 0.4 | I16: =100%-I15-I17-I14 -> 0.4 | J16: 0.4 | K16: 0.4 | L16: 0.4 | M16: 0.4 | N16: =100%-N15-N17-N14 -> 0.4 | O16: =100%-O15-O17-O14 -> 0.4
D17: Preferred Shares
C18: Total | G18: =SUM(G14:G17) -> 1 | H18: =SUM(H14:H17) -> 1 | I18: =SUM(I14:I17) -> 1 | J18: 1 | K18: 1 | L18: 1 | M18: 1 | N18: 1 | O18: 1
C20: Cost of Capital Parameters
D21: Deemed Short-term Debt Rate | G21: 0.0216 | H21: 0.0216 | I21: 0.0216 | J21: 0.0216 | K21: 0.0216 | L21: 0.0216 | M21: 0.0216 | N21: 0.0216 | O21: 0.0216
D22: Long-term Debt Rate (actual/embedded/deemed)1 | G22: 0.0607 | H22: 0.0607 | I22: 0.0607 | J22: 0.0607 | K22: 0.0607 | L22: 0.0607 | M22: 0.0607 | N22: 0.0607 | O22: 0.0607
D23: Target Return on Equity (ROE) | G23: 0.093 | H23: 0.093 | I23: 0.093 | J23: 0.093 | K23: 0.093 | L23: 0.093 | M23: 0.093 | N23: 0.093 | O23: 0.093
D24: Return on Preferred Shares
C25: WACC | G25: =SUMPRODUCT(G14:G17,G21:G24) -> 0.072056 | H25: =SUMPRODUCT(H14:H17,H21:H24) -> 0.072056 | I25: =SUMPRODUCT(I14:I17,I21:I24) -> 0.072056 | J25: 0.072056 | K25: 0.072056 | L25: 0.072056 | M25: 0.072056 | N25: 0.072056 | O25: 0.072056
B27: Working Capital Allowance
C28: Working Capital Allowance Rate | G28: 0.13 | H28: 0.13 | I28: 0.13 | J28: 0.13 | K28: 0.13 | L28: 0.13 | M28: 0.13 | N28: 0.13 | O28: 0.13
C29: (% of the sum of Cost of Power + controllable expenses)
B31: Taxes/PILs
C32: Aggregate Corporate Income Tax Rate | G32: 0.265 | H32: 0.265 | I32: 0.265 | J32: 0.265 | K32: 0.265 | L32: 0.265 | M32: 0.265 | N32: 0.265 | O32: 0.265
C33: Capital Tax (until July 1st, 2010) | G33: 0 | H33: 0 | I33: 0 | J33: 0 | K33: 0 | L33: 0 | M33: 0 | N33: 0 | O33: 0
B35: Depreciation Rates | E35: Account
B36: (expressed as expected useful life in years)
D38: Year | E38: 1822 | G38: 20 | H38: 20 | I38: 20 | J38: 20 | K38: 20 | L38: 20 | M38: 20 | N38: 20 | O38: 20
C39: - rate (%) | D39: Rate (%) | G39: =IF(G38=0,0,1/G38) -> 0.05 | H39: =IF(H38=0,0,1/H38) -> 0.05 | I39: =IF(I38=0,0,1/I38) -> 0.05 | J39: 0.05 | K39: 0.05 | L39: 0.05 | M39: 0.05 | N39: 0.05 | O39: 0.05
D41: Year | E41: 1845 | G41: 45 | H41: 45 | I41: 45 | J41: 45 | K41: 45 | L41: 45 | M41: 45 | N41: 45 | O41: 45
C42: - rate (%) | D42: Rate (%) | G42: =IF(G41=0,0,1/G41) -> 0.02222222222 | H42: =IF(H41=0,0,1/H41) -> 0.02222222222 | I42: =IF(I41=0,0,1/I41) -> 0.02222222222 | J42: 0.02222222222 | K42: 0.02222222222 | L42: 0.02222222222 | M42: 0.02222222222 | N42: 0.02222222222 | O42: 0.02222222222
D44: Year | E44: 1930 | G44: 7 | H44: 7 | I44: 7 | J44: 7 | K44: 7 | L44: 7 | M44: 7 | N44: 7 | O44: 7
C45: - rate (%) | D45: Rate (%) | G45: =IF(G44=0,0,1/G44) -> 0.1428571429 | H45: =IF(H44=0,0,1/H44) -> 0.1428571429 | I45: =IF(I44=0,0,1/I44) -> 0.1428571429 | J45: 0.1428571429 | K45: 0.1428571429 | L45: 0.1428571429 | M45: 0.1428571429 | N45: 0.1428571429 | O45: 0.1428571429
D47: Year | E47: 1835 | G47: 40 | H47: 40 | I47: 40 | J47: 40 | K47: 40 | L47: 40 | M47: 40 | N47: 40 | O47: 40
C48: - rate (%) | D48: Rate (%) | G48: =IF(G47=0,0,1/G47) -> 0.025 | H48: =IF(H47=0,0,1/H47) -> 0.025 | I48: =IF(I47=0,0,1/I47) -> 0.025 | J48: 0.025 | K48: 0.025 | L48: 0.025 | M48: 0.025 | N48: 0.025 | O48: 0.025
D50: Year | E50: 1921 | G50: 4 | H50: 4 | I50: 4 | J50: 4 | K50: 4 | L50: 4 | M50: 4 | N50: 4 | O50: 4
C51: - rate (%) | D51: Rate (%) | G51: =IF(G50=0,0,1/G50) -> 0.25 | H51: =IF(H50=0,0,1/H50) -> 0.25 | I51: =IF(I50=0,0,1/I50) -> 0.25 | J51: 0.25 | K51: 0.25 | L51: 0.25 | M51: 0.25 | N51: 0.25 | O51: 0.25
D53: Year | E53: 1935 | G53: 10 | H53: 10 | I53: 10 | J53: 10 | K53: 10 | L53: 10 | M53: 10 | N53: 10 | O53: 10
C54: - rate (%) | D54: Rate (%) | G54: =IF(G53=0,0,1/G53) -> 0.1 | H54: =IF(H53=0,0,1/H53) -> 0.1 | I54: =IF(I53=0,0,1/I53) -> 0.1 | J54: 0.1 | K54: 0.1 | L54: 0.1 | M54: 0.1 | N54: 0.1 | O54: 0.1
D56: Year | E56: 1926 | G56: 3 | H56: 3 | I56: 3 | J56: 3 | K56: 3 | L56: 3 | M56: 3 | N56: 3 | O56: 3
C57: - rate (%) | D57: Rate (%) | G57: =IF(G56=0,0,1/G56) -> 0.3333333333 | H57: =IF(H56=0,0,1/H56) -> 0.3333333333 | I57: =IF(I56=0,0,1/I56) -> 0.3333333333 | J57: 0.3333333333 | K57: 0.3333333333 | L57: 0.3333333333 | M57: 0.3333333333 | N57: 0.3333333333 | O57: 0.3333333333
D59: Year | E59: 1860 | G59: 15 | H59: 15 | I59: 15 | J59: 15 | K59: 15 | L59: 15 | M59: 15 | N59: 15 | O59: 15
C60: - rate (%) | D60: Rate (%) | G60: =IF(G59=0,0,1/G59) -> 0.06666666667 | H60: =IF(H59=0,0,1/H59) -> 0.06666666667 | I60: =IF(I59=0,0,1/I59) -> 0.06666666667 | J60: 0.06666666667 | K60: 0.06666666667 | L60: 0.06666666667 | M60: 0.06666666667 | N60: 0.06666666667 | O60: 0.06666666667
D62: Year | E62: 1924 | G62: 6 | H62: 6 | I62: 6 | J62: 6 | K62: 6 | L62: 6 | M62: 6 | N62: 6 | O62: 6
C63: - rate (%) | D63: Rate (%) | G63: =IF(G62=0,0,1/G62) -> 0.1666666667 | H63: =IF(H62=0,0,1/H62) -> 0.1666666667 | I63: =IF(I62=0,0,1/I62) -> 0.1666666667 | J63: 0.1666666667 | K63: 0.1666666667 | L63: 0.1666666667 | M63: 0.1666666667 | N63: 0.1666666667 | O63: 0.1666666667
D65: Year | E65: 1850 | G65: 30 | H65: 30 | I65: 30 | J65: 30 | K65: 30 | L65: 30 | M65: 30 | N65: 30 | O65: 30
C66: - rate (%) | D66: Rate (%) | G66: =IF(G65=0,0,1/G65) -> 0.03333333333 | H66: =IF(H65=0,0,1/H65) -> 0.03333333333 | I66: =IF(I65=0,0,1/I65) -> 0.03333333333 | J66: 0.03333333333 | K66: 0.03333333333 | L66: 0.03333333333 | M66: 0.03333333333 | N66: 0.03333333333 | O66: 0.03333333333
D68: Year | E68: 1982 | G68: 10 | H68: 10 | I68: 10 | J68: 10 | K68: 10 | L68: 10 | M68: 10 | N68: 10 | O68: 10
C69: - rate (%) | D69: Rate (%) | G69: =IF(G68=0,0,1/G68) -> 0.1 | H69: =IF(H68=0,0,1/H68) -> 0.1 | I69: =IF(I68=0,0,1/I68) -> 0.1 | J69: 0.1 | K69: 0.1 | L69: 0.1 | M69: 0.1 | N69: 0.1 | O69: 0.1
D71: Year | E71: 1955 | G71: 6 | H71: 6 | I71: 6 | J71: 6 | K71: 6 | L71: 6 | M71: 6 | N71: 6 | O71: 6
C72: - rate (%) | D72: Rate (%) | G72: =IF(G71=0,0,1/G71) -> 0.1666666667 | H72: =IF(H71=0,0,1/H71) -> 0.1666666667 | I72: =IF(I71=0,0,1/I71) -> 0.1666666667 | J72: 0.1666666667 | K72: 0.1666666667 | L72: 0.1666666667 | M72: 0.1666666667 | N72: 0.1666666667 | O72: 0.1666666667
B74: CCA Rates
D75: CCA Class | E75: 1822 | G75: 47 | H75: 47 | I75: 47 | J75: 47 | K75: 47 | L75: 47 | M75: 47 | N75: 47 | O75: 47
D76: CCA Rate | G76: 0.08 | H76: 0.08 | I76: 0.08 | J76: 0.08 | K76: 0.08 | L76: 0.08 | M76: 0.08 | N76: 0.08 | O76: 0.08
D78: CCA Class | E78: 1845 | G78: 47 | H78: 47 | I78: 47 | J78: 47 | K78: 47 | L78: 47 | M78: 47 | N78: 47 | O78: 47
D79: CCA Rate | G79: 0.08 | H79: 0.08 | I79: 0.08 | J79: 0.08 | K79: 0.08 | L79: 0.08 | M79: 0.08 | N79: 0.08 | O79: 0.08
D81: CCA Class | E81: 1930 | G81: 10 | H81: 10 | I81: 10 | J81: 10 | K81: 10 | L81: 10 | M81: 10 | N81: 10 | O81: 10
D82: CCA Rate | G82: 0.3 | H82: 0.3 | I82: 0.3 | J82: 0.3 | K82: 0.3 | L82: 0.3 | M82: 0.3 | N82: 0.3 | O82: 0.3
D84: CCA Class | E84: 1835 | G84: 47 | H84: 47 | I84: 47 | J84: 47 | K84: 47 | L84: 47 | M84: 47 | N84: 47 | O84: 47
D85: CCA Rate | G85: 0.08 | H85: 0.08 | I85: 0.08 | J85: 0.08 | K85: 0.08 | L85: 0.08 | M85: 0.08 | N85: 0.08 | O85: 0.08
D87: CCA Class | E87: 1921 | G87: 50 | H87: 50 | I87: 50 | J87: 50 | K87: 50 | L87: 50 | M87: 50 | N87: 50 | O87: 50
D88: CCA Rate | G88: 0.55 | H88: 0.55 | I88: 0.55 | J88: 0.55 | K88: 0.55 | L88: 0.55 | M88: 0.55 | N88: 0.55 | O88: 0.55
D90: CCA Class | E90: 1935 | G90: 8 | H90: 8 | I90: 8 | J90: 8 | K90: 8 | L90: 8 | M90: 8 | N90: 8 | O90: 8
D91: CCA Rate | G91: 0.2 | H91: 0.2 | I91: 0.2 | J91: 0.2 | K91: 0.2 | L91: 0.2 | M91: 0.2 | N91: 0.2 | O91: 0.2
D93: CCA Class | E93: 1926 | G93: 12 | H93: 12 | I93: 12 | J93: 12 | K93: 12 | L93: 12 | M93: 12 | N93: 12 | O93: 12
D94: CCA Rate | G94: 1 | H94: 1 | I94: 1 | J94: 1 | K94: 1 | L94: 1 | M94: 1 | N94: 1 | O94: 1
D96: CCA Class | E96: 1860 | G96: 47 | H96: 47 | I96: 47 | J96: 47 | K96: 47 | L96: 47 | M96: 47 | N96: 47 | O96: 47
D97: CCA Rate | G97: 0.08 | H97: 0.08 | I97: 0.08 | J97: 0.08 | K97: 0.08 | L97: 0.08 | M97: 0.08 | N97: 0.08 | O97: 0.08
D99: CCA Class | E99: 1924 | G99: 50 | H99: 50 | I99: 50 | J99: 50 | K99: 50 | L99: 50 | M99: 50 | N99: 50 | O99: 50
D100: CCA Rate | G100: 0.55 | H100: 0.55 | I100: 0.55 | J100: 0.55 | K100: 0.55 | L100: 0.55 | M100: 0.55 | N100: 0.55 | O100: 0.55
D102: CCA Class | E102: 1850 | G102: 47 | H102: 47 | I102: 47 | J102: 47 | K102: 47 | L102: 47 | M102: 47 | N102: 47 | O102: 47
D103: CCA Rate | G103: 0.08 | H103: 0.08 | I103: 0.08 | J103: 0.08 | K103: 0.08 | L103: 0.08 | M103: 0.08 | N103: 0.08 | O103: 0.08
D105: CCA Class | E105: 1982 | G105: 8 | H105: 8 | I105: 8 | J105: 8 | K105: 8 | L105: 8 | M105: 8 | N105: 8 | O105: 8
D106: CCA Rate | G106: 0.2 | H106: 0.2 | I106: 0.2 | J106: 0.2 | K106: 0.2 | L106: 0.2 | M106: 0.2 | N106: 0.2 | O106: 0.2
D108: CCA Class | E108: 1955 | G108: 8 | H108: 8 | I108: 8 | J108: 8 | K108: 8 | L108: 8 | M108: 8 | N108: 8 | O108: 8
D109: CCA Rate | G109: 0.2 | H109: 0.2 | I109: 0.2 | J109: 0.2 | K109: 0.2 | L109: 0.2 | M109: 0.2 | N109: 0.2 | O109: 0.2
B112: Assumptions
B113: 1 | C113: Fiscal calendar year (January 1 to December 31) used.
B114: 3 | C114: Amortization is done on a striaght line basis and no "half-year" rule applied.

Sheet 2. MIST Meters Assets_Rate Base
D4: MIST Meters True-up Model
B9: Sheet 2: 1557 - Net Book Value
E10: 2018 | F10: 2019 | G10: 2020 | H10: 2021 | I10: 2022 | J10: 2023 | K10: 2024 | L10: 2025 | M10: 2026
B11: Net Fixed Assets - 1860
C13: Gross Book Value
D14: Opening Balance | E14: 0 | F14: =E17 -> 507923.77 | G14: =F17 -> 499979.88 | H14: 963735.37 | I14: 1190429.79 | J14: 1545630.44 | K14: 1423798.2 | L14: 1423798.2 | M14: 1423798.2
D15: Capital Additions during year | E15: 507923.77 | F15: -7943.89 | G15: 463755.49 | H15: 226694.42 | I15: 355200.65 | J15: -121832.24 | K15: 0 | L15: 0 | M15: 0
D16: Retirements/Removals (if applicable) | F16: 0 | H16: 0 | J16: 0 | K16: 0 | L16: 0 | M16: 0
D17: Closing Balance | E17: =E14+E15-E16 -> 507923.77 | F17: =F14+F15-F16 -> 499979.88 | G17: =G14+G15-G16 -> 963735.37 | H17: 1190429.79 | I17: 1545630.44 | J17: 1423798.2 | K17: 1423798.2 | L17: 1423798.2 | M17: 1423798.2
C19: Accumulated Depreciation
D20: Opening Balance | E20: 0 | F20: =E23 -> 0 | G20: =F23 -> 0 | H20: 0 | I20: -139405.66 | J20: -229229.74 | K20: -325993.98 | L20: -420913.86 | M20: -515833.74
D21: Amortization expense during year | E21: =E290 -> 0 | F21: =F290 -> 0 | G21: 0 | H21: -139405.66 | I21: -89824.08 | J21: -96764.24 | K21: -94919.88 | L21: -94919.88 | M21: -94919.88
D22: Retirements/Removals (if applicable)
D23: Closing Balance | E23: =E20+E21-E22 -> 0 | F23: =F20+F21-F22 -> 0 | G23: =G20+G21-G22 -> 0 | H23: =H20+H21-H22 -> -139405.66 | I23: =I20+I21-I22 -> -229229.74 | J23: =J20+J21-J22 -> -325993.98 | K23: =K20+K21-K22 -> -420913.86 | L23: =L20+L21-L22 -> -515833.74 | M23: =M20+M21-M22 -> -610753.62
C25: Net Book Value
D26: Opening Balance | E26: =E14+E20 -> 0 | F26: =E27 -> 507923.77 | G26: =F27 -> 499979.88 | H26: 963735.37 | I26: 1051024.13 | J26: 1316400.7 | K26: 1097804.22 | L26: 1002884.34 | M26: 907964.46
D27: Closing Balance | E27: =E17+E23 -> 507923.77 | F27: =F17+F23 -> 499979.88 | G27: =G17+G23 -> 963735.37 | H27: 1051024.13 | I27: 1316400.7 | J27: 1097804.22 | K27: 1002884.34 | L27: 907964.46 | M27: 813044.58
D28: Net Fixed Assets (NFA) | E28: =SUM(E26:E27)/2 -> 253961.885 | F28: =AVERAGE(F26:F27) -> 503951.825 | G28: =AVERAGE(G26:G27) -> 731857.625 | H28: 1007379.75 | I28: 1183712.415 | J28: 1207102.46 | K28: 1050344.28 | L28: 955424.4 | M28: 860504.52
B30: Net Fixed Assets - 1845
C32: Gross Book Value
D33: Opening Balance | F33: =E36 -> 0 | G33: =F36 -> 0 | H33: 0 | I33: 0 | J33: 0 | K33: 0 | L33: 0 | M33: 0
D34: Capital Additions during year (from ICM Costs)
D35: Retirements/Removals (if applicable)
D36: Closing Balance | E36: =E33+E34-E35 -> 0 | F36: =F33+F34-F35 -> 0 | G36: =G33+G34-G35 -> 0 | H36: 0 | I36: 0 | J36: 0 | K36: 0 | L36: 0 | M36: 0
C38: Accumulated Depreciation
D39: Opening Balance | F39: =E42 -> 0 | G39: =F42 -> 0 | H39: 0 | I39: 0 | J39: 0 | K39: 0 | L39: 0 | M39: 0
D40: Amortization expense during year | E40: =-E34/'1. Cost of Service_parameters'!G41/2 -> 0 | F40: =-F33/'1. Cost of Service_parameters'!G41-'2. MIST Meters Assets_Rate Base'!F34/'1. Cost of Service_parameters'!G41/2 -> 0 | G40: =-G33/'1. Cost of Service_parameters'!H41-'2. MIST Meters Assets_Rate Base'!G34/'1. Cost of Service_parameters'!H41/2 -> 0 | H40: =-H33/'1. Cost of Service_parameters'!I41-'2. MIST Meters Assets_Rate Base'!H34/'1. Cost of Service_parameters'!I41/2 -> 0 | I40: =-I33/'1. Cost of Service_parameters'!J41-'2. MIST Meters Assets_Rate Base'!I34/'1. Cost of Service_parameters'!J41/2 -> 0 | J40: =-J33/'1. Cost of Service_parameters'!K41-'2. MIST Meters Assets_Rate Base'!J34/'1. Cost of Service_parameters'!K41/2 -> 0 | K40: =-K33/'1. Cost of Service_parameters'!L41-'2. MIST Meters Assets_Rate Base'!K34/'1. Cost of Service_parameters'!L41/2 -> 0 | L40: =-L33/'1. Cost of Service_parameters'!M41-'2. MIST Meters Assets_Rate Base'!L34/'1. Cost of Service_parameters'!M41/2 -> 0 | M40: =-M33/'1. Cost of Service_parameters'!N41-'2. MIST Meters Assets_Rate Base'!M34/'1. Cost of Service_parameters'!N41/2 -> 0
D41: Retirements/Removals (if applicable)
D42: Closing Balance | E42: =E39+E40-E41 -> 0 | F42: =F39+F40-F41 -> 0 | G42: =G39+G40-G41 -> 0 | H42: 0 | I42: 0 | J42: 0 | K42: 0 | L42: 0 | M42: 0
C44: Net Book Value
D45: Opening Balance | E45: =E33+E39 -> 0 | F45: =E46 -> 0 | G45: =F46 -> 0 | H45: 0 | I45: 0 | J45: 0 | K45: 0 | L45: 0 | M45: 0
D46: Closing Balance | E46: =E36+E42 -> 0 | F46: =F36+F42 -> 0 | G46: =G36+G42 -> 0 | H46: 0 | I46: 0 | J46: 0 | K46: 0 | L46: 0 | M46: 0
D47: Net Fixed Assets (NFA) | E47: =AVERAGE(E45:E46) -> 0 | F47: =AVERAGE(F45:F46) -> 0 | G47: =AVERAGE(G45:G46) -> 0 | H47: 0 | I47: 0 | J47: 0 | K47: 0 | L47: 0 | M47: 0
B49: Net Fixed Assets - 1930
C51: Gross Book Value
D52: Opening Balance | F52: =E55 -> 0 | G52: =F55 -> 0 | H52: 0 | I52: 0 | J52: 0 | K52: 0 | L52: 0 | M52: 0
D53: Capital Additions during year (from ICM Costs) | F53: 0
D54: Retirements/Removals (if applicable)
D55: Closing Balance | E55: =E52+E53-E54 -> 0 | F55: =F52+F53-F54 -> 0 | G55: =G52+G53-G54 -> 0 | H55: 0 | I55: 0 | J55: 0 | K55: 0 | L55: 0 | M55: 0
C57: Accumulated Depreciation
D58: Opening Balance | F58: =E61 -> 0 | G58: =F61 -> 0 | H58: 0 | I58: 0 | J58: 0 | K58: 0 | L58: 0 | M58: 0
D59: Amortization expense during year | E59: =-E53/'1. Cost of Service_parameters'!G44/2 -> 0 | F59: =-F52/'1. Cost of Service_parameters'!G44 -> 0 | G59: =-G52/'1. Cost of Service_parameters'!H44 -> 0 | H59: =-H52/'1. Cost of Service_parameters'!I44 -> 0 | I59: =-I52/'1. Cost of Service_parameters'!J44 -> 0 | J59: =-J52/'1. Cost of Service_parameters'!K44 -> 0 | K59: =-K52/'1. Cost of Service_parameters'!L44 -> 0 | L59: =-L52/'1. Cost of Service_parameters'!M44 -> 0 | M59: =-M52/'1. Cost of Service_parameters'!N44 -> 0
D60: Retirements/Removals (if applicable)
D61: Closing Balance | E61: =E58+E59-E60 -> 0 | F61: =F58+F59-F60 -> 0 | G61: =G58+G59-G60 -> 0 | H61: 0 | I61: 0 | J61: 0 | K61: 0 | L61: 0 | M61: 0
C63: Net Book Value
D64: Opening Balance | E64: =E52+E58 -> 0 | F64: =E65 -> 0 | G64: =F65 -> 0 | H64: 0 | I64: 0 | J64: 0 | K64: 0 | L64: 0 | M64: 0
D65: Closing Balance | E65: =E55+E61 -> 0 | F65: =F55+F61 -> 0 | G65: =G55+G61 -> 0 | H65: 0 | I65: 0 | J65: 0 | K65: 0 | L65: 0 | M65: 0
D66: Net Fixed Assets (NFA) | E66: =AVERAGE(E64:E65) -> 0 | F66: =AVERAGE(F64:F65) -> 0 | G66: =AVERAGE(G64:G65) -> 0 | H66: 0 | I66: 0 | J66: 0 | K66: 0 | L66: 0 | M66: 0
B68: Net Fixed Assets - 1835
C70: Gross Book Value
D71: Opening Balance | F71: =E74 -> 0 | G71: =F74 -> 0 | H71: 0 | I71: 0 | J71: 0 | K71: 0 | L71: 0 | M71: 0
D72: Capital Additions during year (from ICM Costs)
D73: Retirements/Removals (if applicable)
D74: Closing Balance | E74: =E71+E72-E73 -> 0 | F74: =F71+F72-F73 -> 0 | G74: =G71+G72-G73 -> 0 | H74: 0 | I74: 0 | J74: 0 | K74: 0 | L74: 0 | M74: 0
C76: Accumulated Depreciation
D77: Opening Balance | F77: =E80 -> 0 | G77: =F80 -> 0 | H77: 0 | I77: 0 | J77: 0 | K77: 0 | L77: 0 | M77: 0
D78: Amortization expense during year | E78: =-E72/'1. Cost of Service_parameters'!G47/2 -> 0 | F78: =-F71/'1. Cost of Service_parameters'!G47-'2. MIST Meters Assets_Rate Base'!F72/'1. Cost of Service_parameters'!G47/2 -> 0 | G78: =-G71/'1. Cost of Service_parameters'!H47-'2. MIST Meters Assets_Rate Base'!G72/'1. Cost of Service_parameters'!H47/2 -> 0 | H78: =-H71/'1. Cost of Service_parameters'!I47-'2. MIST Meters Assets_Rate Base'!H72/'1. Cost of Service_parameters'!I47/2 -> 0 | I78: =-I71/'1. Cost of Service_parameters'!J47-'2. MIST Meters Assets_Rate Base'!I72/'1. Cost of Service_parameters'!J47/2 -> 0 | J78: =-J71/'1. Cost of Service_parameters'!K47-'2. MIST Meters Assets_Rate Base'!J72/'1. Cost of Service_parameters'!K47/2 -> 0 | K78: =-K71/'1. Cost of Service_parameters'!L47-'2. MIST Meters Assets_Rate Base'!K72/'1. Cost of Service_parameters'!L47/2 -> 0 | L78: =-L71/'1. Cost of Service_parameters'!M47-'2. MIST Meters Assets_Rate Base'!L72/'1. Cost of Service_parameters'!M47/2 -> 0 | M78: =-M71/'1. Cost of Service_parameters'!N47-'2. MIST Meters Assets_Rate Base'!M72/'1. Cost of Service_parameters'!N47/2 -> 0
D79: Retirements/Removals (if applicable)
D80: Closing Balance | E80: =E77+E78-E79 -> 0 | F80: =F77+F78-F79 -> 0 | G80: =G77+G78-G79 -> 0 | H80: 0 | I80: 0 | J80: 0 | K80: 0 | L80: 0 | M80: 0
C82: Net Book Value
D83: Opening Balance | E83: =E71+E77 -> 0 | F83: =E84 -> 0 | G83: =F84 -> 0 | H83: 0 | I83: 0 | J83: 0 | K83: 0 | L83: 0 | M83: 0
D84: Closing Balance | E84: =E74+E80 -> 0 | F84: =F74+F80 -> 0 | G84: =G74+G80 -> 0 | H84: 0 | I84: 0 | J84: 0 | K84: 0 | L84: 0 | M84: 0
D85: Net Fixed Assets (NFA) | E85: =AVERAGE(E83:E84) -> 0 | F85: =AVERAGE(F83:F84) -> 0 | G85: =AVERAGE(G83:G84) -> 0 | H85: 0 | I85: 0 | J85: 0 | K85: 0 | L85: 0 | M85: 0
B87: Net Fixed Assets - 1921
C89: Gross Book Value
D90: Opening Balance | F90: =E93 -> 0 | G90: =F93 -> 0 | H90: 0 | I90: 0 | J90: 0 | K90: 0 | L90: 0 | M90: 0
D91: Capital Additions during year (from ICM Costs) | F91: 0
D92: Retirements/Removals (if applicable)
D93: Closing Balance | E93: =E90+E91-E92 -> 0 | F93: =F90+F91-F92 -> 0 | G93: =G90+G91-G92 -> 0 | H93: 0 | I93: 0 | J93: 0 | K93: 0 | L93: 0 | M93: 0
C95: Accumulated Depreciation
D96: Opening Balance | F96: =E99 -> 0 | G96: =F99 -> 0 | H96: 0 | I96: 0 | J96: 0 | K96: 0 | L96: 0 | M96: 0
D97: Amortization expense during year | E97: =-E91/'1. Cost of Service_parameters'!G50/2 -> 0 | F97: =-F90/'1. Cost of Service_parameters'!G50 -> 0 | G97: =-G90/'1. Cost of Service_parameters'!H50 -> 0 | H97: =-H90/'1. Cost of Service_parameters'!I50 -> 0 | I97: =-I90/'1. Cost of Service_parameters'!J50 -> 0 | J97: =-J90/'1. Cost of Service_parameters'!K50 -> 0 | K97: =-K90/'1. Cost of Service_parameters'!L50 -> 0 | L97: =-L90/'1. Cost of Service_parameters'!M50 -> 0 | M97: =-M90/'1. Cost of Service_parameters'!N50 -> 0
D98: Retirements/Removals (if applicable)
D99: Closing Balance | E99: =E96+E97-E98 -> 0 | F99: =F96+F97-F98 -> 0 | G99: =G96+G97-G98 -> 0 | H99: 0 | I99: 0 | J99: 0 | K99: 0 | L99: 0 | M99: 0
C101: Net Book Value
D102: Opening Balance | E102: =E90+E96 -> 0 | F102: =E103 -> 0 | G102: =F103 -> 0 | H102: 0 | I102: 0 | J102: 0 | K102: 0 | L102: 0 | M102: 0
D103: Closing Balance | E103: =E93+E99 -> 0 | F103: =F93+F99 -> 0 | G103: =G93+G99 -> 0 | H103: 0 | I103: 0 | J103: 0 | K103: 0 | L103: 0 | M103: 0
D104: Net Fixed Assets (NFA) | E104: =AVERAGE(E102:E103) -> 0 | F104: =AVERAGE(F102:F103) -> 0 | G104: =AVERAGE(G102:G103) -> 0 | H104: 0 | I104: 0 | J104: 0 | K104: 0 | L104: 0 | M104: 0
B106: Net Fixed Assets - 1935
C108: Gross Book Value
D109: Opening Balance | F109: =E112 -> 0 | G109: =F112 -> 0 | H109: 0 | I109: 0 | J109: 0 | K109: 0 | L109: 0 | M109: 0
D110: Capital Additions during year (from ICM Costs)
D111: Retirements/Removals (if applicable)
D112: Closing Balance | E112: =E109+E110-E111 -> 0 | F112: =F109+F110-F111 -> 0 | G112: =G109+G110-G111 -> 0 | H112: 0 | I112: 0 | J112: 0 | K112: 0 | L112: 0 | M112: 0
C114: Accumulated Depreciation
D115: Opening Balance | F115: =E118 -> 0 | G115: =F118 -> 0 | H115: 0 | I115: 0 | J115: 0 | K115: 0 | L115: 0 | M115: 0
D116: Amortization expense during year | E116: =-E110/'1. Cost of Service_parameters'!G53/2 -> 0 | F116: =-F109/'1. Cost of Service_parameters'!G53-'2. MIST Meters Assets_Rate Base'!F110/'1. Cost of Service_parameters'!G53/2 -> 0 | G116: =-G109/'1. Cost of Service_parameters'!H53-'2. MIST Meters Assets_Rate Base'!G110/'1. Cost of Service_parameters'!H53/2 -> 0 | H116: =-H109/'1. Cost of Service_parameters'!I53-'2. MIST Meters Assets_Rate Base'!H110/'1. Cost of Service_parameters'!I53/2 -> 0 | I116: =-I109/'1. Cost of Service_parameters'!J53-'2. MIST Meters Assets_Rate Base'!I110/'1. Cost of Service_parameters'!J53/2 -> 0 | J116: =-J109/'1. Cost of Service_parameters'!K53-'2. MIST Meters Assets_Rate Base'!J110/'1. Cost of Service_parameters'!K53/2 -> 0 | K116: =-K109/'1. Cost of Service_parameters'!L53-'2. MIST Meters Assets_Rate Base'!K110/'1. Cost of Service_parameters'!L53/2 -> 0 | L116: =-L109/'1. Cost of Service_parameters'!M53-'2. MIST Meters Assets_Rate Base'!L110/'1. Cost of Service_parameters'!M53/2 -> 0 | M116: =-M109/'1. Cost of Service_parameters'!N53-'2. MIST Meters Assets_Rate Base'!M110/'1. Cost of Service_parameters'!N53/2 -> 0
D117: Retirements/Removals (if applicable)
D118: Closing Balance | E118: =E115+E116-E117 -> 0 | F118: =F115+F116-F117 -> 0 | G118: =G115+G116-G117 -> 0 | H118: 0 | I118: 0 | J118: 0 | K118: 0 | L118: 0 | M118: 0
C120: Net Book Value
D121: Opening Balance | E121: =E109+E115 -> 0 | F121: =E122 -> 0 | G121: =F122 -> 0 | H121: 0 | I121: 0 | J121: 0 | K121: 0 | L121: 0 | M121: 0
D122: Closing Balance | E122: =E112+E118 -> 0 | F122: =F112+F118 -> 0 | G122: =G112+G118 -> 0 | H122: 0 | I122: 0 | J122: 0 | K122: 0 | L122: 0 | M122: 0
D123: Net Fixed Assets (NFA) | E123: =AVERAGE(E121:E122) -> 0 | F123: =AVERAGE(F121:F122) -> 0 | G123: =AVERAGE(G121:G122) -> 0 | H123: 0 | I123: 0 | J123: 0 | K123: 0 | L123: 0 | M123: 0
B125: Net Fixed Assets - 1926
C127: Gross Book Value
D128: Opening Balance | F128: =E131 -> 0 | G128: =F131 -> 0 | H128: 0 | I128: 0 | J128: 0 | K128: 0 | L128: 0 | M128: 0
D129: Capital Additions during year (from ICM Costs) | F129: 0
D130: Retirements/Removals (if applicable)
D131: Closing Balance | E131: =E128+E129-E130 -> 0 | F131: =F128+F129-F130 -> 0 | G131: =G128+G129-G130 -> 0 | H131: 0 | I131: 0 | J131: 0 | K131: 0 | L131: 0 | M131: 0
C133: Accumulated Depreciation
D134: Opening Balance | F134: =E137 -> 0 | G134: =F137 -> 0 | H134: 0 | I134: 0 | J134: 0 | K134: 0 | L134: 0 | M134: 0
D135: Amortization expense during year | E135: =-E129/'1. Cost of Service_parameters'!G56/2 -> 0 | F135: =-F128/'1. Cost of Service_parameters'!G56 -> 0 | G135: =-G128/'1. Cost of Service_parameters'!H56 -> 0 | H135: =-H128/'1. Cost of Service_parameters'!I56 -> 0 | I135: =-I128/'1. Cost of Service_parameters'!J56 -> 0 | J135: =-J128/'1. Cost of Service_parameters'!K56 -> 0 | K135: =-K128/'1. Cost of Service_parameters'!L56 -> 0 | L135: =-L128/'1. Cost of Service_parameters'!M56 -> 0 | M135: =-M128/'1. Cost of Service_parameters'!N56 -> 0
D136: Retirements/Removals (if applicable)
D137: Closing Balance | E137: =E134+E135-E136 -> 0 | F137: =F134+F135-F136 -> 0 | G137: =G134+G135-G136 -> 0 | H137: 0 | I137: 0 | J137: 0 | K137: 0 | L137: 0 | M137: 0
C139: Net Book Value
D140: Opening Balance | E140: =E128+E134 -> 0 | F140: =E141 -> 0 | G140: =F141 -> 0 | H140: 0 | I140: 0 | J140: 0 | K140: 0 | L140: 0 | M140: 0
D141: Closing Balance | E141: =E131+E137 -> 0 | F141: =F131+F137 -> 0 | G141: =G131+G137 -> 0 | H141: 0 | I141: 0 | J141: 0 | K141: 0 | L141: 0 | M141: 0
D142: Net Fixed Assets (NFA) | E142: =AVERAGE(E140:E141) -> 0 | F142: =AVERAGE(F140:F141) -> 0 | G142: =AVERAGE(G140:G141) -> 0 | H142: 0 | I142: 0 | J142: 0 | K142: 0 | L142: 0 | M142: 0
B144: Net Fixed Assets - 1862
C146: Gross Book Value
D147: Opening Balance | F147: =E150 -> 0 | G147: =F150 -> 0 | H147: 0 | I147: 0 | J147: 0 | K147: 0 | L147: 0 | M147: 0
D148: Capital Additions during year (from ICM Costs) | F148: 0
D149: Retirements/Removals (if applicable)
D150: Closing Balance | E150: =E147+E148-E149 -> 0 | F150: =F147+F148-F149 -> 0 | G150: =G147+G148-G149 -> 0 | H150: 0 | I150: 0 | J150: 0 | K150: 0 | L150: 0 | M150: 0
C152: Accumulated Depreciation
D153: Opening Balance | F153: =E156 -> 0 | G153: =F156 -> 0 | H153: 0 | I153: 0 | J153: 0 | K153: 0 | L153: 0 | M153: 0
D154: Amortization expense during year | E154: =-E148/'1. Cost of Service_parameters'!G59/2 -> 0 | F154: =-F147/'1. Cost of Service_parameters'!G59 -> 0 | G154: =-G147/'1. Cost of Service_parameters'!H59 -> 0 | H154: =-H147/'1. Cost of Service_parameters'!I59 -> 0 | I154: =-I147/'1. Cost of Service_parameters'!J59 -> 0 | J154: =-J147/'1. Cost of Service_parameters'!K59 -> 0 | K154: =-K147/'1. Cost of Service_parameters'!L59 -> 0 | L154: =-L147/'1. Cost of Service_parameters'!M59 -> 0 | M154: =-M147/'1. Cost of Service_parameters'!N59 -> 0
D155: Retirements/Removals (if applicable)
D156: Closing Balance | E156: =E153+E154-E155 -> 0 | F156: =F153+F154-F155 -> 0 | G156: =G153+G154-G155 -> 0 | H156: 0 | I156: 0 | J156: 0 | K156: 0 | L156: 0 | M156: 0
C158: Net Book Value
D159: Opening Balance | E159: =E147+E153 -> 0 | F159: =E160 -> 0 | G159: =F160 -> 0 | H159: 0 | I159: 0 | J159: 0 | K159: 0 | L159: 0 | M159: 0
D160: Closing Balance | E160: =E150+E156 -> 0 | F160: =F150+F156 -> 0 | G160: =G150+G156 -> 0 | H160: 0 | I160: 0 | J160: 0 | K160: 0 | L160: 0 | M160: 0
D161: Net Fixed Assets (NFA) | E161: =AVERAGE(E159:E160) -> 0 | F161: =AVERAGE(F159:F160) -> 0 | G161: =AVERAGE(G159:G160) -> 0 | H161: 0 | I161: 0 | J161: 0 | K161: 0 | L161: 0 | M161: 0
B163: Net Fixed Assets - 1924
C165: Gross Book Value
D166: Opening Balance | F166: =E169 -> 0 | G166: =F169 -> 0 | H166: 0 | I166: 0 | J166: 0 | K166: 0 | L166: 0 | M166: 0
D167: Capital Additions during year (from ICM Costs)
D168: Retirements/Removals (if applicable)
D169: Closing Balance | E169: =E166+E167-E168 -> 0 | F169: =F166+F167-F168 -> 0 | G169: =G166+G167-G168 -> 0 | H169: 0 | I169: 0 | J169: 0 | K169: 0 | L169: 0 | M169: 0
C171: Accumulated Depreciation
D172: Opening Balance | F172: =E175 -> 0 | G172: =F175 -> 0 | H172: 0 | I172: 0 | J172: 0 | K172: 0 | L172: 0 | M172: 0
D173: Amortization expense during year | E173: =-E167/'1. Cost of Service_parameters'!G62/2 -> 0 | F173: =-F166/'1. Cost of Service_parameters'!G62-'2. MIST Meters Assets_Rate Base'!F167/'1. Cost of Service_parameters'!G62/2 -> 0 | G173: =-G166/'1. Cost of Service_parameters'!H62-'2. MIST Meters Assets_Rate Base'!G167/'1. Cost of Service_parameters'!H62/2 -> 0 | H173: =-H166/'1. Cost of Service_parameters'!I62-'2. MIST Meters Assets_Rate Base'!H167/'1. Cost of Service_parameters'!I62/2 -> 0 | I173: =-I166/'1. Cost of Service_parameters'!J62-'2. MIST Meters Assets_Rate Base'!I167/'1. Cost of Service_parameters'!J62/2 -> 0 | J173: =-J166/'1. Cost of Service_parameters'!K62-'2. MIST Meters Assets_Rate Base'!J167/'1. Cost of Service_parameters'!K62/2 -> 0 | K173: =-K166/'1. Cost of Service_parameters'!L62-'2. MIST Meters Assets_Rate Base'!K167/'1. Cost of Service_parameters'!L62/2 -> 0 | L173: =-L166/'1. Cost of Service_parameters'!M62-'2. MIST Meters Assets_Rate Base'!L167/'1. Cost of Service_parameters'!M62/2 -> 0 | M173: =-M166/'1. Cost of Service_parameters'!N62-'2. MIST Meters Assets_Rate Base'!M167/'1. Cost of Service_parameters'!N62/2 -> 0
D174: Retirements/Removals (if applicable)
D175: Closing Balance | E175: =E172+E173-E174 -> 0 | F175: =F172+F173-F174 -> 0 | G175: =G172+G173-G174 -> 0 | H175: 0 | I175: 0 | J175: 0 | K175: 0 | L175: 0 | M175: 0
C177: Net Book Value
D178: Opening Balance | E178: =E166+E172 -> 0 | F178: =E179 -> 0 | G178: =F179 -> 0 | H178: 0 | I178: 0 | J178: 0 | K178: 0 | L178: 0 | M178: 0
D179: Closing Balance | E179: =E169+E175 -> 0 | F179: =F169+F175 -> 0 | G179: =G169+G175 -> 0 | H179: 0 | I179: 0 | J179: 0 | K179: 0 | L179: 0 | M179: 0
D180: Net Fixed Assets (NFA) | E180: =AVERAGE(E178:E179) -> 0 | F180: =AVERAGE(F178:F179) -> 0 | G180: =AVERAGE(G178:G179) -> 0 | H180: 0 | I180: 0 | J180: 0 | K180: 0 | L180: 0 | M180: 0
B183: Net Fixed Assets - 1850
C185: Gross Book Value
D186: Opening Balance | F186: =E189 -> 0 | G186: =F189 -> 0 | H186: 0 | I186: 0 | J186: 0 | K186: 0 | L186: 0 | M186: 0
D187: Capital Additions during year (from ICM Costs)
D188: Retirements/Removals (if applicable)
D189: Closing Balance | E189: =E186+E187-E188 -> 0 | F189: =F186+F187-F188 -> 0 | G189: =G186+G187-G188 -> 0 | H189: 0 | I189: 0 | J189: 0 | K189: 0 | L189: 0 | M189: 0
C191: Accumulated Depreciation
D192: Opening Balance | F192: =E195 -> 0 | G192: =F195 -> 0 | H192: 0 | I192: 0 | J192: 0 | K192: 0 | L192: 0 | M192: 0
D193: Amortization expense during year | E193: =-E187/'1. Cost of Service_parameters'!G65/2 -> 0 | F193: =-F186/'1. Cost of Service_parameters'!G65-'2. MIST Meters Assets_Rate Base'!F187/'1. Cost of Service_parameters'!G65/2 -> 0 | G193: =-G186/'1. Cost of Service_parameters'!H65-'2. MIST Meters Assets_Rate Base'!G187/'1. Cost of Service_parameters'!H65/2 -> 0 | H193: =-H186/'1. Cost of Service_parameters'!I65-'2. MIST Meters Assets_Rate Base'!H187/'1. Cost of Service_parameters'!I65/2 -> 0 | I193: =-I186/'1. Cost of Service_parameters'!J65-'2. MIST Meters Assets_Rate Base'!I187/'1. Cost of Service_parameters'!J65/2 -> 0 | J193: =-J186/'1. Cost of Service_parameters'!K65-'2. MIST Meters Assets_Rate Base'!J187/'1. Cost of Service_parameters'!K65/2 -> 0 | K193: =-K186/'1. Cost of Service_parameters'!L65-'2. MIST Meters Assets_Rate Base'!K187/'1. Cost of Service_parameters'!L65/2 -> 0 | L193: =-L186/'1. Cost of Service_parameters'!M65-'2. MIST Meters Assets_Rate Base'!L187/'1. Cost of Service_parameters'!M65/2 -> 0 | M193: =-M186/'1. Cost of Service_parameters'!N65-'2. MIST Meters Assets_Rate Base'!M187/'1. Cost of Service_parameters'!N65/2 -> 0
D194: Retirements/Removals (if applicable)
D195: Closing Balance | E195: =E192+E193-E194 -> 0 | F195: =F192+F193-F194 -> 0 | G195: =G192+G193-G194 -> 0 | H195: 0 | I195: 0 | J195: 0 | K195: 0 | L195: 0 | M195: 0
C197: Net Book Value
D198: Opening Balance | E198: =E186+E192 -> 0 | F198: =E199 -> 0 | G198: =F199 -> 0 | H198: 0 | I198: 0 | J198: 0 | K198: 0 | L198: 0 | M198: 0
D199: Closing Balance | E199: =E189+E195 -> 0 | F199: =F189+F195 -> 0 | G199: =G189+G195 -> 0 | H199: 0 | I199: 0 | J199: 0 | K199: 0 | L199: 0 | M199: 0
D200: Net Fixed Assets (NFA) | E200: =AVERAGE(E198:E199) -> 0 | F200: =AVERAGE(F198:F199) -> 0 | G200: =AVERAGE(G198:G199) -> 0 | H200: 0 | I200: 0 | J200: 0 | K200: 0 | L200: 0 | M200: 0
B203: Net Fixed Assets - 1982
C205: Gross Book Value
D206: Opening Balance | F206: =E209 -> 0 | G206: =F209 -> 0 | H206: 0 | I206: 0 | J206: 0 | K206: 0 | L206: 0 | M206: 0
D207: Capital Additions during year (from ICM Costs)
D208: Retirements/Removals (if applicable)
D209: Closing Balance | E209: =E206+E207-E208 -> 0 | F209: =F206+F207-F208 -> 0 | G209: =G206+G207-G208 -> 0 | H209: 0 | I209: 0 | J209: 0 | K209: 0 | L209: 0 | M209: 0
C211: Accumulated Depreciation
D212: Opening Balance | F212: =E215 -> 0 | G212: =F215 -> 0 | H212: 0 | I212: 0 | J212: 0 | K212: 0 | L212: 0 | M212: 0
D213: Amortization expense during year | E213: =-E207/'1. Cost of Service_parameters'!G68/2 -> 0 | F213: =-F206/'1. Cost of Service_parameters'!G68-'2. MIST Meters Assets_Rate Base'!F207/'1. Cost of Service_parameters'!G68/2 -> 0 | G213: =-G206/'1. Cost of Service_parameters'!H68-'2. MIST Meters Assets_Rate Base'!G207/'1. Cost of Service_parameters'!H68/2 -> 0 | H213: =-H206/'1. Cost of Service_parameters'!I68-'2. MIST Meters Assets_Rate Base'!H207/'1. Cost of Service_parameters'!I68/2 -> 0 | I213: =-I206/'1. Cost of Service_parameters'!J68-'2. MIST Meters Assets_Rate Base'!I207/'1. Cost of Service_parameters'!J68/2 -> 0 | J213: =-J206/'1. Cost of Service_parameters'!K68-'2. MIST Meters Assets_Rate Base'!J207/'1. Cost of Service_parameters'!K68/2 -> 0 | K213: =-K206/'1. Cost of Service_parameters'!L68-'2. MIST Meters Assets_Rate Base'!K207/'1. Cost of Service_parameters'!L68/2 -> 0 | L213: =-L206/'1. Cost of Service_parameters'!M68-'2. MIST Meters Assets_Rate Base'!L207/'1. Cost of Service_parameters'!M68/2 -> 0 | M213: =-M206/'1. Cost of Service_parameters'!N68-'2. MIST Meters Assets_Rate Base'!M207/'1. Cost of Service_parameters'!N68/2 -> 0
D214: Retirements/Removals (if applicable)
D215: Closing Balance | E215: =E212+E213-E214 -> 0 | F215: =F212+F213-F214 -> 0 | G215: =G212+G213-G214 -> 0 | H215: 0 | I215: 0 | J215: 0 | K215: 0 | L215: 0 | M215: 0
C217: Net Book Value
D218: Opening Balance | E218: =E206+E212 -> 0 | F218: =E219 -> 0 | G218: =F219 -> 0 | H218: 0 | I218: 0 | J218: 0 | K218: 0 | L218: 0 | M218: 0
D219: Closing Balance | E219: =E209+E215 -> 0 | F219: =F209+F215 -> 0 | G219: =G209+G215 -> 0 | H219: 0 | I219: 0 | J219: 0 | K219: 0 | L219: 0 | M219: 0
D220: Net Fixed Assets (NFA) | E220: =AVERAGE(E218:E219) -> 0 | F220: =AVERAGE(F218:F219) -> 0 | G220: =AVERAGE(G218:G219) -> 0 | H220: 0 | I220: 0 | J220: 0 | K220: 0 | L220: 0 | M220: 0
B223: Net Fixed Assets - 1955
C225: Gross Book Value
D226: Opening Balance | F226: =E229 -> 0 | G226: =F229 -> 0 | H226: 0 | I226: 0 | J226: 0 | K226: 0 | L226: 0 | M226: 0
D227: Capital Additions during year (from ICM Costs)
D228: Retirements/Removals (if applicable)
D229: Closing Balance | E229: =E226+E227-E228 -> 0 | F229: =F226+F227-F228 -> 0 | G229: =G226+G227-G228 -> 0 | H229: 0 | I229: 0 | J229: 0 | K229: 0 | L229: 0 | M229: 0
C231: Accumulated Depreciation
D232: Opening Balance | F232: =E235 -> 0 | G232: =F235 -> 0 | H232: 0 | I232: 0 | J232: 0 | K232: 0 | L232: 0 | M232: 0
D233: Amortization expense during year | E233: =-E227/'1. Cost of Service_parameters'!G71/2 -> 0 | F233: =-F226/'1. Cost of Service_parameters'!G71-'2. MIST Meters Assets_Rate Base'!F227/'1. Cost of Service_parameters'!G71/2 -> 0 | G233: =-G226/'1. Cost of Service_parameters'!H71-'2. MIST Meters Assets_Rate Base'!G227/'1. Cost of Service_parameters'!H71/2 -> 0 | H233: =-H226/'1. Cost of Service_parameters'!I71-'2. MIST Meters Assets_Rate Base'!H227/'1. Cost of Service_parameters'!I71/2 -> 0 | I233: =-I226/'1. Cost of Service_parameters'!J71-'2. MIST Meters Assets_Rate Base'!I227/'1. Cost of Service_parameters'!J71/2 -> 0 | J233: =-J226/'1. Cost of Service_parameters'!K71-'2. MIST Meters Assets_Rate Base'!J227/'1. Cost of Service_parameters'!K71/2 -> 0 | K233: =-K226/'1. Cost of Service_parameters'!L71-'2. MIST Meters Assets_Rate Base'!K227/'1. Cost of Service_parameters'!L71/2 -> 0 | L233: =-L226/'1. Cost of Service_parameters'!M71-'2. MIST Meters Assets_Rate Base'!L227/'1. Cost of Service_parameters'!M71/2 -> 0 | M233: =-M226/'1. Cost of Service_parameters'!N71-'2. MIST Meters Assets_Rate Base'!M227/'1. Cost of Service_parameters'!N71/2 -> 0
D234: Retirements/Removals (if applicable)
D235: Closing Balance | E235: =E232+E233-E234 -> 0 | F235: =F232+F233-F234 -> 0 | G235: =G232+G233-G234 -> 0 | H235: 0 | I235: 0 | J235: 0 | K235: 0 | L235: 0 | M235: 0
C237: Net Book Value
D238: Opening Balance | E238: =E226+E232 -> 0 | F238: =E239 -> 0 | G238: =F239 -> 0 | H238: 0 | I238: 0 | J238: 0 | K238: 0 | L238: 0 | M238: 0
D239: Closing Balance | E239: =E229+E235 -> 0 | F239: =F229+F235 -> 0 | G239: =G229+G235 -> 0 | H239: 0 | I239: 0 | J239: 0 | K239: 0 | L239: 0 | M239: 0
D240: Net Fixed Assets (NFA) | E240: =AVERAGE(E238:E239) -> 0 | F240: =AVERAGE(F238:F239) -> 0 | G240: =AVERAGE(G238:G239) -> 0 | H240: 0 | I240: 0 | J240: 0 | K240: 0 | L240: 0 | M240: 0
B243: Net Fixed Assets -
C245: Gross Book Value
D246: Opening Balance | F246: =E249 -> 0 | G246: =F249 -> 0 | H246: 0 | I246: 0 | J246: 0 | K246: 0 | L246: 0 | M246: 0
D247: Capital Additions during year (from ICM Costs)
D248: Retirements/Removals (if applicable)
D249: Closing Balance | E249: =E246+E247-E248 -> 0 | F249: =F246+F247-F248 -> 0 | G249: =G246+G247-G248 -> 0 | H249: 0 | I249: 0 | J249: 0 | K249: 0 | L249: 0 | M249: 0
C251: Accumulated Depreciation
D252: Opening Balance | F252: =E255 -> 0 | G252: =F255 -> 0 | H252: 0 | I252: 0 | J252: 0 | K252: 0 | L252: 0 | M252: 0
D253: Amortization expense during year | E253: 0 | F253: 0 | G253: 0 | H253: 0 | I253: 0 | J253: 0 | K253: 0 | L253: 0 | M253: 0
D254: Retirements/Removals (if applicable)
D255: Closing Balance | E255: =E252+E253-E254 -> 0 | F255: =F252+F253-F254 -> 0 | G255: =G252+G253-G254 -> 0 | H255: 0 | I255: 0 | J255: 0 | K255: 0 | L255: 0 | M255: 0
C257: Net Book Value
D258: Opening Balance | E258: =E246+E252 -> 0 | F258: =E259 -> 0 | G258: =F259 -> 0 | H258: 0 | I258: 0 | J258: 0 | K258: 0 | L258: 0 | M258: 0
D259: Closing Balance | E259: =E249+E255 -> 0 | F259: =F249+F255 -> 0 | G259: =G249+G255 -> 0 | H259: 0 | I259: 0 | J259: 0 | K259: 0 | L259: 0 | M259: 0
D260: Incremental CAPEX | E260: =E259 -> 0 | F260: =AVERAGE(F258:F259) -> 0 | G260: =AVERAGE(G258:G259) -> 0 | H260: 0 | I260: 0 | J260: 0 | K260: 0 | L260: 0 | M260: 0
D267: Additions | E267: =E15+E34+E53+E72+E91+E110+E129+E148+E167+E187+E207+E227+E247 -> 507923.77 | F267: =F15+F34+F53+F72+F91+F110+F129+F148+F167+F187+F207+F227+F247 -> -7943.89 | G267: 463755.49 | H267: 226694.42 | I267: 355200.65 | J267: -121832.24 | K267: 0 | L267: 0 | M267: 0
D268: Net Fixed Assets (NFA) | E268: =E28+E47+E66+E85+E104+E123+E142+E161+E180+E200+E220+E240+E260 -> 253961.885 | F268: =F28+F47+F66+F85+F104+F123+F142+F161+F180+F200+F220+F240+F260 -> 503951.825 | G268: =G28+G47+G66+G85+G104+G123+G142+G161+G180+G200+G220+G240+G260 -> 731857.625 | H268: 1007379.75 | I268: 1183712.415 | J268: 1207102.46 | K268: 1050344.28 | L268: 955424.4 | M268: 860504.52
... 1 more rows

Sheet 3. UCC_Calculations
C3: MIST Meters True-up Model
A9: Sheet 3: CCA For PILs Calculation
A11: UCC/Class 47 | D11: 2018 | E11: 2019 | F11: 2020 | G11: 2021 | H11: 2022 | I11: 2023 | J11: 2024 | K11: 2025 | L11: 2026
D12: Actual | E12: Actual | F12: Actual | G12: Actual | H12: Actual | I12: Actual | J12: Actual | K12: Actual | L12: Actual
A14: Opening UCC | D14: 0 | E14: =D17-D22 -> 487606.8192 | F14: =E17-E22 -> 440654.3837 | G14: =F17-F22 -> 850607.3034 | H14: 1000185.362 | I14: 1261163.157 | J14: 1038437.865 | K14: 955362.8356 | L14: 878933.8087
A15: Capital Additions | D15: ='2. MIST Meters Assets_Rate Base'!E267-D29-D44-D59-D74 -> 507923.77 | E15: ='2. MIST Meters Assets_Rate Base'!F267-E29-E44-E59-E74 -> -7943.89 | F15: ='2. MIST Meters Assets_Rate Base'!G267-F29-F44-F59-F74 -> 463755.49 | G15: ='2. MIST Meters Assets_Rate Base'!H267-G29-G44-G59-G74 -> 226694.42 | H15: ='2. MIST Meters Assets_Rate Base'!I267-H29-H44-H59-H74 -> 355200.65 | I15: ='2. MIST Meters Assets_Rate Base'!J267-I29-I44-I59-I74 -> -121832.24 | J15: ='2. MIST Meters Assets_Rate Base'!K267-J29-J44-J59-J74 -> 0 | K15: ='2. MIST Meters Assets_Rate Base'!L267-K29-K44-K59-K74 -> 0 | L15: ='2. MIST Meters Assets_Rate Base'!M267-L29-L44-L59-L74 -> 0
A16: Retirements/Removals (if applicable) | D16: ='2. MIST Meters Assets_Rate Base'!E16 -> 0
A17: UCC Before Half Year Rule | D17: =SUM(D14:D15)-D16 -> 507923.77 | E17: =SUM(E14:E15)-E16 -> 479662.9292 | F17: =SUM(F14:F15)-F16 -> 904409.8737 | G17: 1077301.723 | H17: 1355386.012 | I17: 1139330.917 | J17: 1038437.865 | K17: 955362.8356 | L17: 878933.8087
A18: Half Year Rule (1/2 Additions - Disposals) | D18: =IF(((D15-D16)/2)<0, 0, (D15-D16)/2) -> 253961.885 | E18: =IF(((E15-E16)/2)<0, 0, (E15-E16)/2) -> 0 | F18: =IF(((F15-F16)/2)<0, 0, (F15-F16)/2) -> 231877.745 | G18: =IF(((G15-G16)/2)<0, 0, (G15-G16)/2) -> 113347.21 | H18: 177600.325 | I18: 0 | J18: 0 | K18: 0 | L18: 0
A19: Reduced UCC | D19: =D18+D14 -> 253961.885 | E19: =E18+E14 -> 487606.8192 | F19: =F18+F14 -> 672532.1287 | G19: =G18+G14 -> 963954.5134 | H19: 1177785.687 | I19: 1261163.157 | J19: 1038437.865 | K19: 955362.8356 | L19: 878933.8087
A20: CCA Rate Class | D20: ='1. Cost of Service_parameters'!G96 -> 47 | E20: ='1. Cost of Service_parameters'!H96 -> 47 | F20: ='1. Cost of Service_parameters'!I96 -> 47 | G20: ='1. Cost of Service_parameters'!J96 -> 47 | H20: ='1. Cost of Service_parameters'!K96 -> 47 | I20: ='1. Cost of Service_parameters'!L96 -> 47 | J20: ='1. Cost of Service_parameters'!M96 -> 47 | K20: ='1. Cost of Service_parameters'!N96 -> 47 | L20: ='1. Cost of Service_parameters'!O96 -> 47
A21: CCA Rate | D21: ='1. Cost of Service_parameters'!G97 -> 0.08 | E21: ='1. Cost of Service_parameters'!H97 -> 0.08 | F21: ='1. Cost of Service_parameters'!I97 -> 0.08 | G21: ='1. Cost of Service_parameters'!J97 -> 0.08 | H21: ='1. Cost of Service_parameters'!K97 -> 0.08 | I21: ='1. Cost of Service_parameters'!L97 -> 0.08 | J21: ='1. Cost of Service_parameters'!M97 -> 0.08 | K21: ='1. Cost of Service_parameters'!N97 -> 0.08 | L21: ='1. Cost of Service_parameters'!O97 -> 0.08
A22: CCA | D22: =D19*D21 -> 20316.9508 | E22: =E19*E21 -> 39008.54554 | F22: 53802.57029 | G22: 77116.36107 | H22: 94222.85498 | I22: 100893.0526 | J22: 83075.02918 | K22: 76429.02684 | L22: 70314.7047
A23: Closing UCC | D23: =IF((D17-D22)<0, 0, D17-D22) -> 487606.8192 | E23: =IF((E17-E22)<0, 0, E17-E22) -> 440654.3837 | F23: =IF((F17-F22)<0, 0, F17-F22) -> 850607.3034 | G23: 1000185.362 | H23: 1261163.157 | I23: 1038437.865 | J23: 955362.8356 | K23: 878933.8087 | L23: 808619.104
A25: UCC/Class 8 | D25: =D11 -> 2018 | E25: 2019 | F25: =F11 -> 2020 | G25: 2021 | H25: 2022 | I25: 2023 | J25: 2024 | K25: 2025 | L25: 2026
D26: Actual | E26: Actual | F26: =F12 -> Actual | G26: Actual | H26: Actual | I26: Actual | J26: Actual | K26: Actual | L26: Actual
A28: Opening UCC | D28: 0 | E28: =D31-D36 -> 0 | F28: =E31-E36 -> 0 | G28: 0 | H28: 0 | I28: 0 | J28: 0 | K28: 0 | L28: 0
A29: Capital Additions | D29: ='2. MIST Meters Assets_Rate Base'!E227+'2. MIST Meters Assets_Rate Base'!E207+'2. MIST Meters Assets_Rate Base'!E148+'2. MIST Meters Assets_Rate Base'!E110 -> 0 | E29: ='2. MIST Meters Assets_Rate Base'!F227+'2. MIST Meters Assets_Rate Base'!F207+'2. MIST Meters Assets_Rate Base'!F148+'2. MIST Meters Assets_Rate Base'!F110 -> 0 | F29: ='2. MIST Meters Assets_Rate Base'!G227+'2. MIST Meters Assets_Rate Base'!G207+'2. MIST Meters Assets_Rate Base'!G148+'2. MIST Meters Assets_Rate Base'!G110 -> 0 | G29: ='2. MIST Meters Assets_Rate Base'!H227+'2. MIST Meters Assets_Rate Base'!H207+'2. MIST Meters Assets_Rate Base'!H148+'2. MIST Meters Assets_Rate Base'!H110 -> 0 | H29: ='2. MIST Meters Assets_Rate Base'!I227+'2. MIST Meters Assets_Rate Base'!I207+'2. MIST Meters Assets_Rate Base'!I148+'2. MIST Meters Assets_Rate Base'!I110 -> 0 | I29: ='2. MIST Meters Assets_Rate Base'!J227+'2. MIST Meters Assets_Rate Base'!J207+'2. MIST Meters Assets_Rate Base'!J148+'2. MIST Meters Assets_Rate Base'!J110 -> 0 | J29: ='2. MIST Meters Assets_Rate Base'!K227+'2. MIST Meters Assets_Rate Base'!K207+'2. MIST Meters Assets_Rate Base'!K148+'2. MIST Meters Assets_Rate Base'!K110 -> 0 | K29: ='2. MIST Meters Assets_Rate Base'!L227+'2. MIST Meters Assets_Rate Base'!L207+'2. MIST Meters Assets_Rate Base'!L148+'2. MIST Meters Assets_Rate Base'!L110 -> 0 | L29: ='2. MIST Meters Assets_Rate Base'!M227+'2. MIST Meters Assets_Rate Base'!M207+'2. MIST Meters Assets_Rate Base'!M148+'2. MIST Meters Assets_Rate Base'!M110 -> 0
A30: Retirements/Removals (if applicable)
A31: UCC Before Half Year Rule | D31: =SUM(D28:D29)-D30 -> 0 | E31: =SUM(E28:E29)-E30 -> 0 | F31: =SUM(F28:F29)-F30 -> 0 | G31: 0 | H31: 0 | I31: 0 | J31: 0 | K31: 0 | L31: 0
A32: Half Year Rule (1/2 Additions - Disposals) | D32: =IF((SUM(D29:D29)/2)<0, 0, SUM(D29:D29)/2) -> 0 | E32: =IF((SUM(E29:E29)/2)<0, 0, SUM(E29:E29)/2) -> 0 | F32: =IF((SUM(F29:F29)/2)<0, 0, SUM(F29:F29)/2) -> 0 | G32: 0 | H32: 0 | I32: 0 | J32: 0 | K32: 0 | L32: 0
A33: Reduced UCC | D33: =D32+D28 -> 0 | E33: =E32+E28 -> 0 | F33: =F32+F28 -> 0 | G33: 0 | H33: 0 | I33: 0 | J33: 0 | K33: 0 | L33: 0
A34: CCA Rate Class | D34: 8 | E34: 8 | F34: 8 | G34: 8 | H34: 8 | I34: 8 | J34: 8 | K34: 8 | L34: 8
A35: CCA Rate | D35: 0.2 | E35: 0.2 | F35: 0.2 | G35: 0.2 | H35: 0.2 | I35: 0.2 | J35: 0.2 | K35: 0.2 | L35: 0.2
A36: CCA | D36: =D35*D33 -> 0 | E36: =E35*E33 -> 0 | F36: =F35*F33 -> 0 | G36: 0 | H36: 0 | I36: 0 | J36: 0 | K36: 0 | L36: 0
A37: Closing UCC | D37: =IF((D31-D36)<0, 0, D31-D36) -> 0 | E37: =IF((E31-E36)<0, 0, E31-E36) -> 0 | F37: =IF((F31-F36)<0, 0, F31-F36) -> 0 | G37: 0 | H37: 0 | I37: 0 | J37: 0 | K37: 0 | L37: 0
A40: UCC/Class 10 | D40: 2014 | E40: 2015 | F40: 2016 | G40: 2017 | H40: 2018 | I40: 2019 | J40: 2020 | K40: 2021 | L40: 2022
D41: Audited Actual | E41: Forecast | F41: Forecast | G41: Forecast | H41: Forecast | I41: Forecast | J41: Forecast | K41: Forecast | L41: Forecast
A43: Opening UCC | D43: 0 | E43: =D46-D51 -> 0 | F43: =E46-E51 -> 0 | G43: 0 | H43: 0 | I43: 0 | J43: 0 | K43: 0 | L43: 0
A44: Capital Additions | D44: ='2. MIST Meters Assets_Rate Base'!E53 -> 0 | E44: ='2. MIST Meters Assets_Rate Base'!F53 -> 0 | F44: ='2. MIST Meters Assets_Rate Base'!G53 -> 0 | G44: ='2. MIST Meters Assets_Rate Base'!H53 -> 0 | H44: ='2. MIST Meters Assets_Rate Base'!I53 -> 0 | I44: ='2. MIST Meters Assets_Rate Base'!J53 -> 0 | J44: ='2. MIST Meters Assets_Rate Base'!K53 -> 0 | K44: ='2. MIST Meters Assets_Rate Base'!L53 -> 0 | L44: ='2. MIST Meters Assets_Rate Base'!M53 -> 0
A45: Retirements/Removals (if applicable)
A46: UCC Before Half Year Rule | D46: =SUM(D43:D44)-D45 -> 0 | E46: =SUM(E43:E44)-E45 -> 0 | F46: =SUM(F43:F44)-F45 -> 0 | G46: 0 | H46: 0 | I46: 0 | J46: 0 | K46: 0 | L46: 0
A47: Half Year Rule (1/2 Additions - Disposals) | D47: =IF((SUM(D44:D44)/2)<0, 0, SUM(D44:D44)/2) -> 0 | E47: =IF((SUM(E44:E44)/2)<0, 0, SUM(E44:E44)/2) -> 0 | F47: =IF((SUM(F44:F44)/2)<0, 0, SUM(F44:F44)/2) -> 0 | G47: 0 | H47: 0 | I47: 0 | J47: 0 | K47: 0 | L47: 0
A48: Reduced UCC | D48: =D47+D43 -> 0 | E48: =E47+E43 -> 0 | F48: =F47+F43 -> 0 | G48: 0 | H48: 0 | I48: 0 | J48: 0 | K48: 0 | L48: 0
A49: CCA Rate Class | D49: 10 | E49: 10 | F49: 10 | G49: 10 | H49: 10 | I49: 10 | J49: 10 | K49: 10 | L49: 10
A50: CCA Rate | D50: 0.3 | E50: 0.3 | F50: 0.3 | G50: 0.3 | H50: 0.3 | I50: 0.3 | J50: 0.3 | K50: 0.3 | L50: 0.3
A51: CCA | D51: =D50*D48 -> 0 | E51: =E50*E48 -> 0 | F51: =F50*F48 -> 0 | G51: 0 | H51: 0 | I51: 0 | J51: 0 | K51: 0 | L51: 0
A52: Closing UCC | D52: =IF((D46-D51)<0, 0, D46-D51) -> 0 | E52: =IF((E46-E51)<0, 0, E46-E51) -> 0 | F52: =IF((F46-F51)<0, 0, F46-F51) -> 0 | G52: 0 | H52: 0 | I52: 0 | J52: 0 | K52: 0 | L52: 0
A55: UCC/Class 50 | D55: 2014 | E55: 2015 | F55: 2016 | G55: 2017 | H55: 2018 | I55: 2019 | J55: 2020 | K55: 2021 | L55: 2022
D56: Audited Actual | E56: Forecast | F56: Forecast | G56: Forecast | H56: Forecast | I56: Forecast | J56: Forecast | K56: Forecast | L56: Forecast
A58: Opening UCC | D58: 0 | E58: =D61-D66 -> 0 | F58: =E61-E66 -> 0 | G58: 0 | H58: 0 | I58: 0 | J58: 0 | K58: 0 | L58: 0
A59: Capital Additions | D59: ='2. MIST Meters Assets_Rate Base'!E91+'2. MIST Meters Assets_Rate Base'!E167 -> 0 | E59: ='2. MIST Meters Assets_Rate Base'!F91+'2. MIST Meters Assets_Rate Base'!F167 -> 0 | F59: ='2. MIST Meters Assets_Rate Base'!G91+'2. MIST Meters Assets_Rate Base'!G167 -> 0 | G59: ='2. MIST Meters Assets_Rate Base'!H91+'2. MIST Meters Assets_Rate Base'!H167 -> 0 | H59: ='2. MIST Meters Assets_Rate Base'!I91+'2. MIST Meters Assets_Rate Base'!I167 -> 0 | I59: ='2. MIST Meters Assets_Rate Base'!J91+'2. MIST Meters Assets_Rate Base'!J167 -> 0 | J59: ='2. MIST Meters Assets_Rate Base'!K91+'2. MIST Meters Assets_Rate Base'!K167 -> 0 | K59: ='2. MIST Meters Assets_Rate Base'!L91+'2. MIST Meters Assets_Rate Base'!L167 -> 0 | L59: ='2. MIST Meters Assets_Rate Base'!M91+'2. MIST Meters Assets_Rate Base'!M167 -> 0
A60: Retirements/Removals (if applicable)
A61: UCC Before Half Year Rule | D61: =SUM(D58:D59)-D60 -> 0 | E61: =SUM(E58:E59)-E60 -> 0 | F61: =SUM(F58:F59)-F60 -> 0 | G61: 0 | H61: 0 | I61: 0 | J61: 0 | K61: 0 | L61: 0
A62: Half Year Rule (1/2 Additions - Disposals) | D62: =IF((SUM(D59:D59)/2)<0, 0, SUM(D59:D59)/2) -> 0 | E62: =IF((SUM(E59:E59)/2)<0, 0, SUM(E59:E59)/2) -> 0 | F62: =IF((SUM(F59:F59)/2)<0, 0, SUM(F59:F59)/2) -> 0 | G62: 0 | H62: 0 | I62: 0 | J62: 0 | K62: 0 | L62: 0
A63: Reduced UCC | D63: =D62+D58 -> 0 | E63: =E62+E58 -> 0 | F63: =F62+F58 -> 0 | G63: 0 | H63: 0 | I63: 0 | J63: 0 | K63: 0 | L63: 0
A64: CCA Rate Class | D64: 50 | E64: 50 | F64: 50 | G64: 50 | H64: 50 | I64: 50 | J64: 50 | K64: 50 | L64: 50
A65: CCA Rate | D65: 0.55 | E65: 0.55 | F65: 0.55 | G65: 0.55 | H65: 0.55 | I65: 0.55 | J65: 0.55 | K65: 0.55 | L65: 0.55
A66: CCA | D66: =D65*D63 -> 0 | E66: =E65*E63 -> 0 | F66: =F65*F63 -> 0 | G66: 0 | H66: 0 | I66: 0 | J66: 0 | K66: 0 | L66: 0
A67: Closing UCC | D67: =IF((D61-D66)<0, 0, D61-D66) -> 0 | E67: =IF((E61-E66)<0, 0, E61-E66) -> 0 | F67: =IF((F61-F66)<0, 0, F61-F66) -> 0 | G67: 0 | H67: 0 | I67: 0 | J67: 0 | K67: 0 | L67: 0
A70: UCC/Class 12 | D70: 2014 | E70: 2015 | F70: 2016 | G70: 2017 | H70: 2018 | I70: 2019 | J70: 2020 | K70: 2021 | L70: 2022
D71: Audited Actual | E71: Forecast | F71: Forecast | G71: Forecast | H71: Forecast | I71: Forecast | J71: Forecast | K71: Forecast | L71: Forecast
A73: Opening UCC | D73: 0 | E73: =D76-D81 -> 0 | F73: =E76-E81 -> 0 | G73: 0 | H73: 0 | I73: 0 | J73: 0 | K73: 0 | L73: 0
A74: Capital Additions | D74: ='2. MIST Meters Assets_Rate Base'!E129 -> 0 | E74: ='2. MIST Meters Assets_Rate Base'!F129 -> 0 | F74: ='2. MIST Meters Assets_Rate Base'!G129 -> 0 | G74: ='2. MIST Meters Assets_Rate Base'!H129 -> 0 | H74: ='2. MIST Meters Assets_Rate Base'!I129 -> 0 | I74: ='2. MIST Meters Assets_Rate Base'!J129 -> 0 | J74: ='2. MIST Meters Assets_Rate Base'!K129 -> 0 | K74: ='2. MIST Meters Assets_Rate Base'!L129 -> 0 | L74: ='2. MIST Meters Assets_Rate Base'!M129 -> 0
A75: Retirements/Removals (if applicable)
A76: UCC Before Half Year Rule | D76: =SUM(D73:D74)-D75 -> 0 | E76: =SUM(E73:E74)-E75 -> 0 | F76: =SUM(F73:F74)-F75 -> 0 | G76: 0 | H76: 0 | I76: 0 | J76: 0 | K76: 0 | L76: 0
A77: Half Year Rule (1/2 Additions - Disposals) | D77: =IF((SUM(D74:D74)/2)<0, 0, SUM(D74:D74)/2) -> 0 | E77: =IF((SUM(E74:E74)/2)<0, 0, SUM(E74:E74)/2) -> 0 | F77: =IF((SUM(F74:F74)/2)<0, 0, SUM(F74:F74)/2) -> 0 | G77: 0 | H77: 0 | I77: 0 | J77: 0 | K77: 0 | L77: 0
A78: Reduced UCC | D78: =D77+D73 -> 0 | E78: =E77+E73 -> 0 | F78: =F77+F73 -> 0 | G78: 0 | H78: 0 | I78: 0 | J78: 0 | K78: 0 | L78: 0
A79: CCA Rate Class | D79: 12 | E79: 12 | F79: 12 | G79: 12 | H79: 12 | I79: 12 | J79: 12 | K79: 12 | L79: 12
A80: CCA Rate | D80: 1 | E80: 1 | F80: 1 | G80: 1 | H80: 1 | I80: 1 | J80: 1 | K80: 1 | L80: 1
A81: CCA | D81: =D80*D78 -> 0 | E81: =E80*E78 -> 0 | F81: =F80*F78 -> 0 | G81: 0 | H81: 0 | I81: 0 | J81: 0 | K81: 0 | L81: 0
A82: Closing UCC | D82: =IF((D76-D81)<0, 0, D76-D81) -> 0 | E82: =IF((E76-E81)<0, 0, E76-E81) -> 0 | F82: =IF((F76-F81)<0, 0, F76-F81) -> 0 | G82: 0 | H82: 0 | I82: 0 | J82: 0 | K82: 0 | L82: 0
B86: Capital Additions | D86: =SUM(D74,D59,D44,D29,D15) -> 507923.77 | E86: =SUM(E74,E59,E44,E29,E15) -> -7943.89 | F86: =SUM(F74,F59,F44,F29,F15) -> 463755.49 | G86: 226694.42 | H86: 355200.65 | I86: -121832.24 | J86: 0 | K86: 0 | L86: 0
B88: CCA | D88: =SUM(D81,D66,D51,D36,D22,) -> 20316.9508 | E88: =SUM(E81,E66,E51,E36,E22,) -> 39008.54554 | F88: =SUM(F81,F66,F51,F36,F22,) -> 53802.57029 | G88: 77116.36107 | H88: 94222.85498 | I88: 100893.0526 | J88: 83075.02918 | K88: 76429.02684 | L88: 70314.7047

Sheet 4. Fund Adder Revenues
H4: MIST Meters True-up Model
B9: Sheet 4: MIST Meters Fund Adder Revenues
J12: Account 1557 - MIST Meters deferral
B14: Prescribed Interest Rates | C14: Approved Deferral and Variance Accounts | D14: CWIP | F14: Date | G14: Year | H14: Quarter | J14: Opening Balance (Principal) | K14: Funding Adder Revenues | L14: Interest Rate | M14: Interest | N14: Principal & Interest (Cumm.)
B16: 2018 Q1 | C16: 0.015 | D16: 0.0299 | F16: 2018-01-01 | G16: =YEAR(F16) -> 2018 | H16: =IF(MONTH(F16)=0,"",IF(MONTH(F16)<4,"Q1",IF(MONTH(F16)<7,"Q2",IF(MONTH(F16)<10,"Q3","Q4")))) -> Q1 | I16: =CONCATENATE(G16," ",H16) -> 2018 Q1 | J16: 0 | L16: =VLOOKUP(I16,$B$14:$D$51,2) -> 0.015 | M16: =ROUND(J16*L16/12,2) -> 0 | N16: =K16+M16 -> 0
B17: 2018 Q2 | C17: 0.0189 | D17: 0.0335 | F17: 2018-02-01 | G17: =YEAR(F17) -> 2018 | H17: =IF(MONTH(F17)=0,"",IF(MONTH(F17)<4,"Q1",IF(MONTH(F17)<7,"Q2",IF(MONTH(F17)<10,"Q3","Q4")))) -> Q1 | I17: =CONCATENATE(G17," ",H17) -> 2018 Q1 | J17: =J16+K16 -> 0 | L17: 0.015 | M17: =ROUND(J17*L17/12,2) -> 0 | N17: =N16+K17+M17 -> 0
B18: 2018 Q3 | C18: 0.0189 | D18: 0.0335 | F18: 2018-03-01 | G18: 2018 | H18: Q1 | I18: 2018 Q1 | J18: =J17+K17 -> 0 | L18: 0.015 | M18: 0 | N18: =N17+K18+M18 -> 0
B19: 2018 Q4 | C19: 0.0217 | D19: 0.0335 | F19: 2018-04-01 | G19: 2018 | H19: Q2 | I19: 2018 Q2 | J19: 0 | L19: 0.0189 | M19: 0 | N19: 0
B20: 2019 Q1 | C20: 0.0245 | D20: 0.0382 | F20: 2018-05-01 | G20: 2018 | H20: Q2 | I20: 2018 Q2 | J20: 0 | L20: 0.0189 | M20: 0 | N20: 0
B21: 2019 Q2 | C21: 0.0218 | D21: 0.0339 | F21: 2018-06-01 | G21: 2018 | H21: Q2 | I21: 2018 Q2 | J21: 0 | L21: 0.0189 | M21: 0 | N21: 0
B22: 2019 Q3 | C22: 0.0218 | D22: 0.0288 | F22: 2018-07-01 | G22: 2018 | H22: Q3 | I22: 2018 Q3 | J22: 0 | L22: 0.0189 | M22: 0 | N22: 0
B23: 2019 Q4 | C23: 0.0218 | D23: 0.0288 | F23: 2018-08-01 | G23: 2018 | H23: Q3 | I23: 2018 Q3 | J23: 0 | L23: 0.0189 | M23: 0 | N23: 0
B24: 2020 Q1 | C24: 0.0218 | D24: 0.0288 | F24: 2018-09-01 | G24: 2018 | H24: Q3 | I24: 2018 Q3 | J24: 0 | L24: 0.0189 | M24: 0 | N24: 0
B25: 2020 Q2 | C25: 0.0218 | D25: 0.0248 | F25: 2018-10-01 | G25: 2018 | H25: Q4 | I25: 2018 Q4 | J25: 0 | L25: 0.0217 | M25: 0 | N25: 0
B26: 2020 Q3 | C26: 0.0057 | D26: 0.0248 | F26: 2018-11-01 | G26: 2018 | H26: Q4 | I26: 2018 Q4 | J26: 0 | L26: 0.0217 | M26: 0 | N26: 0
B27: 2020 Q4 | C27: 0.0057 | D27: 0.0203 | F27: 2018-12-01 | G27: 2018 | H27: Q4 | I27: 2018 Q4 | J27: 0 | L27: 0.0217 | M27: 0 | N27: 0
B28: 2021 Q1 | C28: 0.0057 | D28: 0.0203 | F28: 2019-01-01 | G28: 2019 | H28: Q1 | I28: 2019 Q1 | J28: 0 | L28: 0.0245 | M28: 0 | N28: 0
B29: 2021 Q2 | C29: 0.0057 | D29: 0.0229 | F29: 2019-02-01 | G29: 2019 | H29: Q1 | I29: 2019 Q1 | J29: 0 | L29: 0.0245 | M29: 0 | N29: 0
B30: 2021 Q3 | C30: 0.0057 | D30: 0.0229 | F30: 2019-03-01 | G30: 2019 | H30: Q1 | I30: 2019 Q1 | J30: 0 | L30: 0.0245 | M30: 0 | N30: 0
B31: 2021 Q4 | C31: 0.0057 | D31: 0.0229 | F31: 2019-04-01 | G31: 2019 | H31: Q2 | I31: 2019 Q2 | J31: 0 | L31: 0.0218 | M31: 0 | N31: 0
B32: 2022 Q1 | C32: 0.0057 | D32: 0.0272 | F32: 2019-05-01 | G32: 2019 | H32: Q2 | I32: 2019 Q2 | J32: 0 | L32: 0.0218 | M32: 0 | N32: 0
B33: 2022 Q2 | C33: 0.0102 | D33: 0.0331 | F33: 2019-06-01 | G33: 2019 | H33: Q2 | I33: 2019 Q2 | J33: 0 | L33: 0.0218 | M33: 0 | N33: 0
B34: 2022 Q3 | C34: 0.022 | D34: 0.0466 | F34: 2019-07-01 | G34: 2019 | H34: Q3 | I34: 2019 Q3 | J34: 0 | L34: 0.0218 | M34: 0 | N34: 0
B35: 2022 Q4 | C35: 0.0387 | D35: 0.0501 | F35: 2019-08-01 | G35: 2019 | H35: Q3 | I35: 2019 Q3 | J35: 0 | L35: 0.0218 | M35: 0 | N35: 0
B36: 2023 Q1 | C36: 0.0473 | D36: 0.0501 | F36: 2019-09-01 | G36: 2019 | H36: Q3 | I36: 2019 Q3 | J36: 0 | L36: 0.0218 | M36: 0 | N36: 0
B37: 2023 Q2 | C37: 0.0498 | D37: 0.0501 | F37: 2019-10-01 | G37: 2019 | H37: Q4 | I37: 2019 Q4 | J37: 0 | L37: 0.0218 | M37: 0 | N37: 0
B38: 2023 Q3 | C38: 0.0498 | D38: 0.0501 | F38: 2019-11-01 | G38: 2019 | H38: Q4 | I38: 2019 Q4 | J38: 0 | L38: 0.0218 | M38: 0 | N38: 0
B39: 2023 Q4 | C39: 0.0549 | D39: 0.0548 | F39: 2019-12-01 | G39: 2019 | H39: Q4 | I39: 2019 Q4 | J39: 0 | L39: 0.0218 | M39: 0 | N39: 0
B40: 2024 Q1 | C40: 0.0549 | D40: 0.0548 | F40: 2020-01-01 | G40: =YEAR(F40) -> 2020 | H40: =IF(MONTH(F40)=0,"",IF(MONTH(F40)<4,"Q1",IF(MONTH(F40)<7,"Q2",IF(MONTH(F40)<10,"Q3","Q4")))) -> Q1 | I40: =CONCATENATE(G40," ",H40) -> 2020 Q1 | J40: =J39+K39 -> 0 | L40: =VLOOKUP(I40,$B$14:$D$51,2) -> 0.0218 | M40: =ROUND(J40*L40/12,2) -> 0 | N40: =N39+K40+M40 -> 0
B41: 2024 Q2 | C41: 0.0549 | D41: 0.0598 | F41: 2020-02-01 | G41: 2020 | H41: Q1 | I41: 2020 Q1 | J41: 0 | L41: 0.0218 | M41: 0 | N41: 0
B42: 2024 Q3 | C42: 0.052 | D42: 0.0598 | F42: 2020-03-01 | G42: 2020 | H42: Q1 | I42: 2020 Q1 | J42: 0 | L42: 0.0218 | M42: 0 | N42: 0
B43: 2024 Q4 | C43: 0.044 | D43: 0.0455 | F43: 2020-04-01 | G43: 2020 | H43: Q2 | I43: 2020 Q2 | J43: 0 | L43: 0.0218 | M43: 0 | N43: 0
B44: 2025 Q1 | C44: 0.0364 | D44: 0.0423 | F44: 2020-05-01 | G44: 2020 | H44: Q2 | I44: 2020 Q2 | J44: 0 | L44: 0.0218 | M44: 0 | N44: 0
B45: 2025 Q2 | C45: 0.0316 | D45: 0.0423 | F45: 2020-06-01 | G45: 2020 | H45: Q2 | I45: 2020 Q2 | J45: 0 | L45: 0.0218 | M45: 0 | N45: 0
B46: 2025 Q3 | C46: 0.0316 | D46: 0.0423 | F46: 2020-07-01 | G46: 2020 | H46: Q3 | I46: 2020 Q3 | J46: 0 | L46: 0.0057 | M46: 0 | N46: 0
B47: 2025 Q4 | C47: 0.0316 | D47: 0.0423 | F47: 2020-08-01 | G47: 2020 | H47: Q3 | I47: 2020 Q3 | J47: 0 | L47: 0.0057 | M47: 0 | N47: 0
B48: 2026 Q1 | C48: 0.0316 | D48: 0.0423 | F48: 2020-09-01 | G48: 2020 | H48: Q3 | I48: 2020 Q3 | J48: 0 | L48: 0.0057 | M48: 0 | N48: 0
B49: 2026 Q2 | C49: 0.0316 | D49: 0.0423 | F49: 2020-10-01 | G49: 2020 | H49: Q4 | I49: 2020 Q4 | J49: 0 | L49: 0.0057 | M49: 0 | N49: 0
B50: 2026 Q3 | C50: 0.0316 | D50: 0.0423 | F50: 2020-11-01 | G50: 2020 | H50: Q4 | I50: 2020 Q4 | J50: 0 | L50: 0.0057 | M50: 0 | N50: 0
B51: 2026 Q4 | C51: 0.0316 | D51: 0.0423 | F51: 2020-12-01 | G51: 2020 | H51: Q4 | I51: 2020 Q4 | J51: 0 | L51: 0.0057 | M51: 0 | N51: 0
F52: 2021-01-01 | G52: 2021 | H52: Q1 | I52: 2021 Q1 | J52: 0 | L52: 0.0057 | M52: 0 | N52: 0
F53: 2021-02-01 | G53: 2021 | H53: Q1 | I53: 2021 Q1 | J53: 0 | L53: 0.0057 | M53: 0 | N53: 0
F54: 2021-03-01 | G54: 2021 | H54: Q1 | I54: 2021 Q1 | J54: 0 | L54: 0.0057 | M54: 0 | N54: 0
F55: 2021-04-01 | G55: 2021 | H55: Q2 | I55: 2021 Q2 | J55: 0 | L55: 0.0057 | M55: 0 | N55: 0
F56: 2021-05-01 | G56: 2021 | H56: Q2 | I56: 2021 Q2 | J56: 0 | L56: 0.0057 | M56: 0 | N56: 0
F57: 2021-06-01 | G57: 2021 | H57: Q2 | I57: 2021 Q2 | J57: 0 | L57: 0.0057 | M57: 0 | N57: 0
F58: 2021-07-01 | G58: 2021 | H58: Q3 | I58: 2021 Q3 | J58: 0 | L58: 0.0057 | M58: 0 | N58: 0
F59: 2021-08-01 | G59: 2021 | H59: Q3 | I59: 2021 Q3 | J59: 0 | L59: 0.0057 | M59: 0 | N59: 0
F60: 2021-09-01 | G60: 2021 | H60: Q3 | I60: 2021 Q3 | J60: 0 | L60: 0.0057 | M60: 0 | N60: 0
F61: 2021-10-01 | G61: 2021 | H61: Q4 | I61: 2021 Q4 | J61: 0 | L61: 0.0057 | M61: 0 | N61: 0
F62: 2021-11-01 | G62: 2021 | H62: Q4 | I62: 2021 Q4 | J62: 0 | L62: 0.0057 | M62: 0 | N62: 0
F63: 2021-12-01 | G63: 2021 | H63: Q4 | I63: 2021 Q4 | J63: 0 | L63: 0.0057 | M63: 0 | N63: 0
F64: 2022-01-01 | G64: 2022 | H64: Q1 | I64: 2022 Q1 | J64: 0 | L64: 0.0057 | M64: 0 | N64: 0
F65: 2022-02-01 | G65: 2022 | H65: Q1 | I65: 2022 Q1 | J65: 0 | L65: 0.0057 | M65: 0 | N65: 0
F66: 2022-03-01 | G66: 2022 | H66: Q1 | I66: 2022 Q1 | J66: 0 | L66: 0.0057 | M66: 0 | N66: 0
F67: 2022-04-01 | G67: 2022 | H67: Q2 | I67: 2022 Q2 | J67: 0 | L67: 0.0102 | M67: 0 | N67: 0
F68: 2022-05-01 | G68: 2022 | H68: Q2 | I68: 2022 Q2 | J68: 0 | L68: 0.0102 | M68: 0 | N68: 0
F69: 2022-06-01 | G69: 2022 | H69: Q2 | I69: 2022 Q2 | J69: 0 | L69: 0.0102 | M69: 0 | N69: 0
F70: 2022-07-01 | G70: 2022 | H70: Q3 | I70: 2022 Q3 | J70: 0 | L70: 0.022 | M70: 0 | N70: 0
F71: 2022-08-01 | G71: 2022 | H71: Q3 | I71: 2022 Q3 | J71: 0 | L71: 0.022 | M71: 0 | N71: 0
F72: 2022-09-01 | G72: 2022 | H72: Q3 | I72: 2022 Q3 | J72: 0 | L72: 0.022 | M72: 0 | N72: 0
F73: 2022-10-01 | G73: 2022 | H73: Q4 | I73: 2022 Q4 | J73: 0 | L73: 0.0387 | M73: 0 | N73: 0
F74: 2022-11-01 | G74: 2022 | H74: Q4 | I74: 2022 Q4 | J74: 0 | L74: 0.0387 | M74: 0 | N74: 0
F75: 2022-12-01 | G75: 2022 | H75: Q4 | I75: 2022 Q4 | J75: 0 | L75: 0.0387 | M75: 0 | N75: 0
F76: 2023-01-01 | G76: 2023 | H76: Q1 | I76: 2023 Q1 | J76: 0 | L76: 0.0473 | M76: 0 | N76: 0
F77: 2023-02-01 | G77: 2023 | H77: Q1 | I77: 2023 Q1 | J77: 0 | L77: 0.0473 | M77: 0 | N77: 0
F78: 2023-03-01 | G78: 2023 | H78: Q1 | I78: 2023 Q1 | J78: 0 | L78: 0.0473 | M78: 0 | N78: 0
F79: 2023-04-01 | G79: 2023 | H79: Q2 | I79: 2023 Q2 | J79: 0 | L79: 0.0498 | M79: 0 | N79: 0
F80: 2023-05-01 | G80: 2023 | H80: Q2 | I80: 2023 Q2 | J80: 0 | L80: 0.0498 | M80: 0 | N80: 0
F81: 2023-06-01 | G81: 2023 | H81: Q2 | I81: 2023 Q2 | J81: 0 | L81: 0.0498 | M81: 0 | N81: 0
F82: 2023-07-01 | G82: 2023 | H82: Q3 | I82: 2023 Q3 | J82: 0 | L82: 0.0498 | M82: 0 | N82: 0
F83: 2023-08-01 | G83: 2023 | H83: Q3 | I83: 2023 Q3 | J83: 0 | L83: 0.0498 | M83: 0 | N83: 0
F84: 2023-09-01 | G84: 2023 | H84: Q3 | I84: 2023 Q3 | J84: 0 | L84: 0.0498 | M84: 0 | N84: 0
F85: 2023-10-01 | G85: 2023 | H85: Q4 | I85: 2023 Q4 | J85: 0 | L85: 0.0549 | M85: 0 | N85: 0
F86: 2023-11-01 | G86: 2023 | H86: Q4 | I86: 2023 Q4 | J86: 0 | L86: 0.0549 | M86: 0 | N86: 0
F87: 2023-12-01 | G87: 2023 | H87: Q4 | I87: 2023 Q4 | J87: 0 | L87: 0.0549 | M87: 0 | N87: 0
F88: 2024-01-01 | G88: 2024 | H88: Q1 | I88: 2024 Q1 | J88: 0 | L88: 0.0549 | M88: 0 | N88: 0
F89: 2024-02-01 | G89: 2024 | H89: Q1 | I89: 2024 Q1 | J89: 0 | L89: 0.0549 | M89: 0 | N89: 0
F90: 2024-03-01 | G90: 2024 | H90: Q1 | I90: 2024 Q1 | J90: 0 | L90: 0.0549 | M90: 0 | N90: 0
F91: 2024-04-01 | G91: 2024 | H91: Q2 | I91: 2024 Q2 | J91: 0 | L91: 0.0549 | M91: 0 | N91: 0
F92: 2024-05-01 | G92: 2024 | H92: Q2 | I92: 2024 Q2 | J92: 0 | L92: 0.0549 | M92: 0 | N92: 0
F93: 2024-06-01 | G93: 2024 | H93: Q2 | I93: 2024 Q2 | J93: 0 | L93: 0.0549 | M93: 0 | N93: 0
F94: 2024-07-01 | G94: 2024 | H94: Q3 | I94: 2024 Q3 | J94: 0 | L94: 0.052 | M94: 0 | N94: 0
F95: 2024-08-01 | G95: 2024 | H95: Q3 | I95: 2024 Q3 | J95: 0 | L95: 0.052 | M95: 0 | N95: 0
F96: 2024-09-01 | G96: 2024 | H96: Q3 | I96: 2024 Q3 | J96: 0 | L96: 0.052 | M96: 0 | N96: 0
F97: 2024-10-01 | G97: 2024 | H97: Q4 | I97: 2024 Q4 | J97: 0 | L97: 0.044 | M97: 0 | N97: 0
F98: 2024-11-01 | G98: 2024 | H98: Q4 | I98: 2024 Q4 | J98: 0 | L98: 0.044 | M98: 0 | N98: 0
F99: 2024-12-01 | G99: 2024 | H99: Q4 | I99: 2024 Q4 | J99: 0 | L99: 0.044 | M99: 0 | N99: 0
F100: 2025-01-01 | G100: 2025 | H100: Q1 | I100: 2025 Q1 | J100: 0 | L100: 0.0364 | M100: 0 | N100: 0
F101: 2025-02-01 | G101: 2025 | H101: Q1 | I101: 2025 Q1 | J101: 0 | L101: 0.0364 | M101: 0 | N101: 0
F102: 2025-03-01 | G102: 2025 | H102: Q1 | I102: 2025 Q1 | J102: 0 | L102: 0.0364 | M102: 0 | N102: 0
F103: 2025-04-01 | G103: 2025 | H103: Q2 | I103: 2025 Q2 | J103: 0 | L103: 0.0316 | M103: 0 | N103: 0
F104: 2025-05-01 | G104: =YEAR(F104) -> 2025 | H104: =IF(MONTH(F104)=0,"",IF(MONTH(F104)<4,"Q1",IF(MONTH(F104)<7,"Q2",IF(MONTH(F104)<10,"Q3","Q4")))) -> Q2 | I104: =CONCATENATE(G104," ",H104) -> 2025 Q2 | J104: =J103+K103 -> 0 | L104: =VLOOKUP(I104,$B$14:$D$51,2) -> 0.0316 | M104: =ROUND(J104*L104/12,2) -> 0 | N104: =N103+K104+M104 -> 0
F105: 2025-06-01 | G105: 2025 | H105: Q2 | I105: 2025 Q2 | J105: 0 | L105: 0.0316 | M105: 0 | N105: 0
F106: 2025-07-01 | G106: 2025 | H106: Q3 | I106: 2025 Q3 | J106: 0 | L106: 0.0316 | M106: 0 | N106: 0
F107: 2025-08-01 | G107: 2025 | H107: Q3 | I107: 2025 Q3 | J107: 0 | L107: 0.0316 | M107: 0 | N107: 0
F108: 2025-09-01 | G108: 2025 | H108: Q3 | I108: 2025 Q3 | J108: 0 | L108: 0.0316 | M108: 0 | N108: 0
F109: 2025-10-01 | G109: 2025 | H109: Q4 | I109: 2025 Q4 | J109: 0 | L109: 0.0316 | M109: 0 | N109: 0
F110: 2025-11-01 | G110: 2025 | H110: Q4 | I110: 2025 Q4 | J110: 0 | L110: 0.0316 | M110: 0 | N110: 0
F111: 2025-12-01 | G111: 2025 | H111: Q4 | I111: 2025 Q4 | J111: 0 | L111: 0.0316 | M111: 0 | N111: 0
F112: 2026-01-01 | G112: 2026 | H112: Q1 | I112: 2026 Q1 | J112: 0 | L112: 0.0316 | M112: 0 | N112: 0
F113: 2026-02-01 | G113: 2026 | H113: Q1 | I113: 2026 Q1 | J113: 0 | L113: 0.0316 | M113: 0 | N113: 0
F114: 2026-03-01 | G114: 2026 | H114: Q1 | I114: 2026 Q1 | J114: 0 | L114: 0.0316 | M114: 0 | N114: 0
F115: 2026-04-01 | G115: 2026 | H115: Q2 | I115: 2026 Q2 | J115: 0 | L115: 0.0316 | M115: 0 | N115: 0
F116: 2026-05-01 | G116: 2026 | H116: Q2 | I116: 2026 Q2 | J116: 0 | L116: 0.0316 | M116: 0 | N116: 0
F117: 2026-06-01 | G117: 2026 | H117: Q2 | I117: 2026 Q2 | J117: 0 | L117: 0.0316 | M117: 0 | N117: 0
F118: 2026-07-01 | G118: 2026 | H118: Q3 | I118: 2026 Q3 | J118: 0 | L118: 0.0316 | M118: 0 | N118: 0
F119: 2026-08-01 | G119: 2026 | H119: Q3 | I119: 2026 Q3 | J119: 0 | L119: 0.0316 | M119: 0 | N119: 0
F120: 2026-09-01 | G120: 2026 | H120: Q3 | I120: 2026 Q3 | J120: 0 | L120: 0.0316 | M120: 0 | N120: 0
F121: 2026-10-01 | G121: 2026 | H121: Q4 | I121: 2026 Q4 | J121: 0 | L121: 0.0316 | M121: 0 | N121: 0
F122: 2026-11-01 | G122: 2026 | H122: Q4 | I122: 2026 Q4 | J122: 0 | L122: 0.0316 | M122: 0 | N122: 0
F123: 2026-12-01 | G123: 2026 | H123: Q4 | I123: 2026 Q4 | J123: 0 | L123: 0.0316 | M123: 0 | N123: 0
F125: Total Funding Adder Revenues Collected | K125: =SUM(K16:K39) -> 0 | M125: =SUM(M16:M39) -> 0 | N125: =K125+M125 -> 0
B127: NOTE: Funding adder revenues are up to December 2014 actuals

Sheet 5. MIST Meters_IRR
D4: MIST Meters True-up Model
B9: Sheet 5: Revenue Requirement Calculations
B14: Return on Rate Base | E14: 2018 | H14: 2019 | K14: 2020 | N14: 2021 | Q14: 2022 | T14: 2023 | W14: 2024 | Z14: 2025 | AC14: 2026
B15: Average Fixed Assets | E15: ='2. MIST Meters Assets_Rate Base'!E268-'2. MIST Meters Assets_Rate Base'!E269 -> 253961.885 | H15: ='2. MIST Meters Assets_Rate Base'!F268-'2. MIST Meters Assets_Rate Base'!F269 -> 503951.825 | K15: ='2. MIST Meters Assets_Rate Base'!G268-'2. MIST Meters Assets_Rate Base'!G269 -> 731857.625 | N15: ='2. MIST Meters Assets_Rate Base'!H268-'2. MIST Meters Assets_Rate Base'!H269 -> 1146785.41 | Q15: ='2. MIST Meters Assets_Rate Base'!I268-'2. MIST Meters Assets_Rate Base'!I269 -> 1273536.495 | T15: ='2. MIST Meters Assets_Rate Base'!J268-'2. MIST Meters Assets_Rate Base'!J269 -> 1303866.7 | W15: ='2. MIST Meters Assets_Rate Base'!K268-'2. MIST Meters Assets_Rate Base'!K269 -> 1145264.16 | Z15: ='2. MIST Meters Assets_Rate Base'!L268-'2. MIST Meters Assets_Rate Base'!L269 -> 1050344.28 | AC15: ='2. MIST Meters Assets_Rate Base'!M268-'2. MIST Meters Assets_Rate Base'!M269 -> 955424.4 | AD15: B
B16: Depreciation Expense | E16: =-'2. MIST Meters Assets_Rate Base'!E269 -> 0 | H16: =-'2. MIST Meters Assets_Rate Base'!F269 -> 0 | K16: =-'2. MIST Meters Assets_Rate Base'!G269 -> 0 | N16: =-'2. MIST Meters Assets_Rate Base'!H269 -> 139405.66 | Q16: =-'2. MIST Meters Assets_Rate Base'!I269 -> 89824.08 | T16: =-'2. MIST Meters Assets_Rate Base'!J269 -> 96764.24 | W16: =-'2. MIST Meters Assets_Rate Base'!K269 -> 94919.88 | Z16: =-'2. MIST Meters Assets_Rate Base'!L269 -> 94919.88 | AC16: =-'2. MIST Meters Assets_Rate Base'!M269 -> 94919.88 | AD16: C
B17: Net Fixed Assets to be included in Rate Base | E17: =E15-E16 -> 253961.885 | H17: =H15-H16 -> 503951.825 | K17: =K15-K16 -> 731857.625 | N17: =N15-N16 -> 1007379.75 | Q17: =Q15-Q16 -> 1183712.415 | T17: =T15-T16 -> 1207102.46 | W17: =W15-W16 -> 1050344.28 | Z17: =Z15-Z16 -> 955424.4 | AC17: =AC15-AC16 -> 860504.52 | AD17: D = B - C
B19: Deemed ShortTerm Debt % | C19: ='1. Cost of Service_parameters'!G14 -> 0.04 | D19: E | E19: =E17*C19 -> 10158.4754 | F19: ='1. Cost of Service_parameters'!H14 -> 0.04 | H19: =H17*F19 -> 20158.073 | I19: ='1. Cost of Service_parameters'!I14 -> 0.04 | K19: =K17*I19 -> 29274.305 | L19: ='1. Cost of Service_parameters'!J14 -> 0.04 | N19: =N17*L19 -> 40295.19 | O19: ='1. Cost of Service_parameters'!K14 -> 0.04 | Q19: =Q17*O19 -> 47348.4966 | R19: ='1. Cost of Service_parameters'!L14 -> 0.04 | T19: =T17*R19 -> 48284.0984 | U19: ='1. Cost of Service_parameters'!M14 -> 0.04 | W19: =W17*U19 -> 42013.7712 | X19: ='1. Cost of Service_parameters'!N14 -> 0.04 | Z19: =Z17*X19 -> 38216.976 | AA19: ='1. Cost of Service_parameters'!O14 -> 0.04 | AC19: =AC17*AA19 -> 34420.1808 | AD19: G = D * E
B20: Deemed Long Term Debt % | C20: ='1. Cost of Service_parameters'!G15 -> 0.56 | D20: F | E20: =E17*C20 -> 142218.6556 | F20: ='1. Cost of Service_parameters'!H15 -> 0.56 | H20: =H17*F20 -> 282213.022 | I20: ='1. Cost of Service_parameters'!I15 -> 0.56 | K20: =K17*I20 -> 409840.27 | L20: ='1. Cost of Service_parameters'!J15 -> 0.56 | N20: =N17*L20 -> 564132.66 | O20: ='1. Cost of Service_parameters'!K15 -> 0.56 | Q20: =Q17*O20 -> 662878.9524 | R20: ='1. Cost of Service_parameters'!L15 -> 0.56 | T20: =T17*R20 -> 675977.3776 | U20: ='1. Cost of Service_parameters'!M15 -> 0.56 | W20: =W17*U20 -> 588192.7968 | X20: ='1. Cost of Service_parameters'!N15 -> 0.56 | Z20: =Z17*X20 -> 535037.664 | AA20: ='1. Cost of Service_parameters'!O15 -> 0.56 | AC20: =AC17*AA20 -> 481882.5312 | AD20: H = D * F
B22: Short Term Interest | C22: ='1. Cost of Service_parameters'!G21 -> 0.0216 | D22: I | E22: =E19*C22 -> 219.4230686 | F22: ='1. Cost of Service_parameters'!H21 -> 0.0216 | H22: =H19*F22 -> 435.4143768 | I22: ='1. Cost of Service_parameters'!I21 -> 0.0216 | K22: =K19*I22 -> 632.324988 | L22: ='1. Cost of Service_parameters'!J21 -> 0.0216 | N22: =N19*L22 -> 870.376104 | O22: ='1. Cost of Service_parameters'!K21 -> 0.0216 | Q22: =Q19*O22 -> 1022.727527 | R22: ='1. Cost of Service_parameters'!L21 -> 0.0216 | T22: =T19*R22 -> 1042.936525 | U22: ='1. Cost of Service_parameters'!M21 -> 0.0216 | W22: =W19*U22 -> 907.4974579 | X22: ='1. Cost of Service_parameters'!N21 -> 0.0216 | Z22: =Z19*X22 -> 825.4866816 | AA22: ='1. Cost of Service_parameters'!O21 -> 0.0216 | AC22: =AC19*AA22 -> 743.4759053 | AD22: K = G * I
B23: Long Term Interest | C23: ='1. Cost of Service_parameters'!G22 -> 0.0607 | D23: J | E23: =E20*C23 -> 8632.672395 | F23: ='1. Cost of Service_parameters'!H22 -> 0.0607 | H23: =H20*F23 -> 17130.33044 | I23: ='1. Cost of Service_parameters'!I22 -> 0.0607 | K23: =K20*I23 -> 24877.30439 | L23: ='1. Cost of Service_parameters'!J22 -> 0.0607 | N23: =N20*L23 -> 34242.85246 | O23: ='1. Cost of Service_parameters'!K22 -> 0.0607 | Q23: =Q20*O23 -> 40236.75241 | R23: ='1. Cost of Service_parameters'!L22 -> 0.0607 | T23: =T20*R23 -> 41031.82682 | U23: ='1. Cost of Service_parameters'!M22 -> 0.0607 | W23: =W20*U23 -> 35703.30277 | X23: ='1. Cost of Service_parameters'!N22 -> 0.0607 | Z23: =Z20*X23 -> 32476.7862 | AA23: ='1. Cost of Service_parameters'!O22 -> 0.0607 | AC23: =AC20*AA23 -> 29250.26964 | AD23: L = H * J
B25: Return on Rate Base - Interest | E25: =SUM(E22:E23) -> 8852.095464 | H25: =SUM(H22:H23) -> 17565.74481 | K25: =SUM(K22:K23) -> 25509.62938 | N25: =SUM(N22:N23) -> 35113.22857 | Q25: =SUM(Q22:Q23) -> 41259.47994 | T25: =SUM(T22:T23) -> 42074.76335 | W25: =SUM(W22:W23) -> 36610.80022 | Z25: =SUM(Z22:Z23) -> 33302.27289 | AC25: =SUM(AC22:AC23) -> 29993.74555 | AD25: M = K + L
AJ27: aaa
B28: Deemed Equity % | C28: ='1. Cost of Service_parameters'!G16 -> 0.4 | D28: N | E28: =E17*C28 -> 101584.754 | F28: ='1. Cost of Service_parameters'!H16 -> 0.4 | H28: =H17*F28 -> 201580.73 | I28: ='1. Cost of Service_parameters'!I16 -> 0.4 | K28: =K17*I28 -> 292743.05 | L28: ='1. Cost of Service_parameters'!J16 -> 0.4 | N28: =N17*L28 -> 402951.9 | O28: ='1. Cost of Service_parameters'!K16 -> 0.4 | Q28: =Q17*O28 -> 473484.966 | R28: ='1. Cost of Service_parameters'!L16 -> 0.4 | T28: =T17*R28 -> 482840.984 | U28: ='1. Cost of Service_parameters'!M16 -> 0.4 | W28: =W17*U28 -> 420137.712 | X28: ='1. Cost of Service_parameters'!N16 -> 0.4 | Z28: =Z17*X28 -> 382169.76 | AA28: ='1. Cost of Service_parameters'!O16 -> 0.4 | AC28: =AC17*AA28 -> 344201.808 | AD28: P = D * N
B30: Return on Rate Base -Equity | C30: ='1. Cost of Service_parameters'!G23 -> 0.093 | D30: O | E30: =E28*C30 -> 9447.382122 | F30: ='1. Cost of Service_parameters'!H23 -> 0.093 | H30: =H28*F30 -> 18747.00789 | I30: ='1. Cost of Service_parameters'!I23 -> 0.093 | K30: =K28*I30 -> 27225.10365 | L30: ='1. Cost of Service_parameters'!J23 -> 0.093 | N30: =N28*L30 -> 37474.5267 | O30: ='1. Cost of Service_parameters'!K23 -> 0.093 | Q30: =Q28*O30 -> 44034.10184 | R30: ='1. Cost of Service_parameters'!L23 -> 0.093 | T30: =T28*R30 -> 44904.21151 | U30: ='1. Cost of Service_parameters'!M23 -> 0.093 | W30: =W28*U30 -> 39072.80722 | X30: ='1. Cost of Service_parameters'!N23 -> 0.093 | Z30: =Z28*X30 -> 35541.78768 | AA30: ='1. Cost of Service_parameters'!O23 -> 0.093 | AC30: =AC28*AA30 -> 32010.76814 | AD30: Q = P * O
B32: Return on Rate Base - Total | E32: =E25+E30 -> 18299.47759 | H32: =H25+H30 -> 36312.7527 | K32: =K25+K30 -> 52734.73303 | N32: =N25+N30 -> 72587.75527 | Q32: =Q25+Q30 -> 85293.58178 | T32: =T25+T30 -> 86978.97486 | W32: =W25+W30 -> 75683.60744 | Z32: =Z25+Z30 -> 68844.06057 | AC32: =AC25+AC30 -> 62004.51369 | AD32: R = M + Q
B36: Amortization Expense
B38: Amortization Expense - Incremental | D38: C | E38: =E16 -> 0 | H38: =H16 -> 0 | K38: =K16 -> 0 | N38: =N16 -> 139405.66 | Q38: =Q16 -> 89824.08 | T38: =T16 -> 96764.24 | W38: =W16 -> 94919.88 | Z38: =Z16 -> 94919.88 | AC38: =AC16 -> 94919.88 | AD38: S
B41: Grossed up PIL's
B43: Regulatory Taxable Income | D43: O | E43: =E30 -> 9447.382122 | H43: =H30 -> 18747.00789 | K43: =K30 -> 27225.10365 | N43: =N30 -> 37474.5267 | Q43: =Q30 -> 44034.10184 | T43: =T30 -> 44904.21151 | W43: =W30 -> 39072.80722 | Z43: =Z30 -> 35541.78768 | AC43: =AC30 -> 32010.76814 | AD43: T
B45: Add Back Amortization Expense | D45: S | E45: =E38 -> 0 | H45: =H38 -> 0 | K45: =K38 -> 0 | N45: =N38 -> 139405.66 | Q45: =Q38 -> 89824.08 | T45: =T38 -> 96764.24 | W45: =W38 -> 94919.88 | Z45: =Z38 -> 94919.88 | AC45: =AC38 -> 94919.88 | AD45: U
B47: Deduct CCA | E47: ='3. UCC_Calculations'!D88 -> 20316.9508 | H47: ='3. UCC_Calculations'!E88 -> 39008.54554 | K47: ='3. UCC_Calculations'!F88 -> 53802.57029 | N47: ='3. UCC_Calculations'!G88 -> 77116.36107 | Q47: ='3. UCC_Calculations'!H88 -> 94222.85498 | T47: ='3. UCC_Calculations'!I88 -> 100893.0526 | W47: ='3. UCC_Calculations'!J88 -> 83075.02918 | Z47: ='3. UCC_Calculations'!K88 -> 76429.02684 | AC47: ='3. UCC_Calculations'!L88 -> 70314.7047 | AD47: V
B49: Incremental Taxable Income | E49: =E43+E45-E47 -> -10869.56868 | H49: =H43+H45-H47 -> -20261.53765 | K49: =K43+K45-K47 -> -26577.46664 | N49: =N43+N45-N47 -> 99763.82563 | Q49: =Q43+Q45-Q47 -> 39635.32685 | T49: =T43+T45-T47 -> 40775.39893 | W49: =W43+W45-W47 -> 50917.65804 | Z49: =Z43+Z45-Z47 -> 54032.64084 | AC49: =AC43+AC45-AC47 -> 56615.94345 | AD49: W = T + U - V
B51: Current Tax Rate (F1.1 Z-Factor Tax Changes) | C51: 0.265 | D51: X | F51: 0.265 | I51: 0.265 | L51: 0.265 | O51: 0.265 | R51: 0.265 | U51: 0.265 | X51: 0.265 | AA51: 0.265
B53: PIL's Before Gross Up | E53: =E49*C51 -> -2880.4357 | H53: =H49*F51 -> -5369.307476 | K53: =K49*I51 -> -7043.02866 | N53: =N49*L51 -> 26437.41379 | Q53: =Q49*O51 -> 10503.36162 | T53: =T49*R51 -> 10805.48072 | W53: =W49*U51 -> 13493.17938 | Z53: =Z49*X51 -> 14318.64982 | AC53: =AC49*AA51 -> 15003.22501 | AD53: Y = W * X
B55: Incremental Grossed Up PIL's | E55: =E53/(1-C51) -> -3918.960136 | H55: =H53/(1-F51) -> -7305.18024 | K55: =K53/(1-I51) -> -9582.351919 | N55: =N53/(1-L51) -> 35969.27047 | Q55: =Q53/(1-O51) -> 14290.28791 | T55: =T53/(1-R51) -> 14701.33431 | W55: =W53/(1-U51) -> 18358.06718 | Z55: =Z53/(1-X51) -> 19481.15622 | AC55: =AC53/(1-AA51) -> 20412.55104 | AD55: Z = Y / ( 1 - X )
B58: Incremental Revenue Requirement
B59: Return on Rate Base - Total | D59: Q | E59: =E32 -> 18299.47759 | H59: =H32 -> 36312.7527 | K59: =K32 -> 52734.73303 | N59: =N32 -> 72587.75527 | Q59: =Q32 -> 85293.58178 | T59: =T32 -> 86978.97486 | W59: =W32 -> 75683.60744 | Z59: =Z32 -> 68844.06057 | AC59: =AC32 -> 62004.51369 | AD59: AF
B60: Amortization Expense - Total | D60: S | E60: =E38 -> 0 | H60: =H38 -> 0 | K60: =K38 -> 0 | N60: =N38 -> 139405.66 | Q60: =Q38 -> 89824.08 | T60: =T38 -> 96764.24 | W60: =W38 -> 94919.88 | Z60: =Z38 -> 94919.88 | AC60: =AC38 -> 94919.88 | AD60: AG
B61: Incremental Grossed Up PIL's | D61: Z | E61: =E55 -> -3918.960136 | H61: =H55 -> -7305.18024 | K61: =K55 -> -9582.351919 | N61: =N55 -> 35969.27047 | Q61: =Q55 -> 14290.28791 | T61: =T55 -> 14701.33431 | W61: =W55 -> 18358.06718 | Z61: =Z55 -> 19481.15622 | AC61: =AC55 -> 20412.55104 | AD61: AH
B63: Incremental Revenue Requirement | E63: =SUM(E59:E61) -> 14380.51745 | H63: =SUM(H59:H61) -> 29007.57246 | K63: =SUM(K59:K61) -> 43152.38111 | N63: =SUM(N59:N61) -> 247962.6857 | Q63: =SUM(Q59:Q61) -> 189407.9497 | T63: =SUM(T59:T61) -> 198444.5492 | W63: =SUM(W59:W61) -> 188961.5546 | Z63: =SUM(Z59:Z61) -> 183245.0968 | AC63: =SUM(AC59:AC61) -> 177336.9447 | AD63: AJ = AF + AG + AH + AI

Sheet 6. True-up Summary
D4: MIST Meters True-up Model
B9: Sheet 6: MIST Meters Incremental Revenue Requirement
E12: 2018 | G12: 2019 | I12: 2020 | K12: 2021 | M12: 2022 | O12: 2023 | Q12: 2024 | S12: 2025 | U12: 2026 | W12: Total
C14: Deferred and forecasted MIST Meters Revenue Requirement (from Sheet 5) | E14: ='5. MIST Meters_IRR'!E63 -> 14380.51745 | G14: ='5. MIST Meters_IRR'!H63 -> 29007.57246 | I14: ='5. MIST Meters_IRR'!K63 -> 43152.38111 | K14: ='5. MIST Meters_IRR'!N63 -> 247962.6857 | M14: ='5. MIST Meters_IRR'!Q63 -> 189407.9497 | O14: ='5. MIST Meters_IRR'!T63 -> 198444.5492 | Q14: ='5. MIST Meters_IRR'!W63 -> 188961.5546 | S14: ='5. MIST Meters_IRR'!Z63 -> 183245.0968 | U14: ='5. MIST Meters_IRR'!AC63 -> 177336.9447 | W14: =SUM(E14:U14) -> 1271899.252
C17: MIST Meters Funding Adder Revenues (from Sheet 4) | E17: 0 | G17: 0 | I17: 0 | K17: 0 | M17: 0 | O17: 0 | Q17: 0 | S17: 0 | U17: 0 | W17: =SUM(E17:G17) -> 0
C19: MIST Meters Funding Adder Interest (from Sheet 4) | E19: =SUM('4. Fund Adder Revenues'!M19:M27) -> 0 | G19: =SUM('4. Fund Adder Revenues'!M28:M39) -> 0 | I19: =SUM('4. Fund Adder Revenues'!O28:O39) -> 0 | K19: =SUM('4. Fund Adder Revenues'!Q28:Q39) -> 0 | M19: =SUM('4. Fund Adder Revenues'!S28:S39) -> 0 | O19: =SUM('4. Fund Adder Revenues'!U28:U39) -> 0 | Q19: =SUM('4. Fund Adder Revenues'!W28:W39) -> 0 | S19: =SUM('4. Fund Adder Revenues'!Y28:Y39) -> 0 | U19: =SUM('4. Fund Adder Revenues'!AA28:AA39) -> 0 | W19: =SUM(E19:G19) -> 0
C21: Net Deferred Revenue Requirement | E21: =E14-E17-E19 -> 14380.51745 | F21: =F14-F17-F19 -> 0 | G21: =G14-G17-G19 -> 29007.57246 | I21: =I14-I17-I19 -> 43152.38111 | K21: =K14-K17-K19 -> 247962.6857 | M21: =M14-M17-M19 -> 189407.9497 | O21: =O14-O17-O19 -> 198444.5492 | Q21: =Q14-Q17-Q19 -> 188961.5546 | S21: =S14-S17-S19 -> 183245.0968 | U21: =U14-U17-U19 -> 177336.9447 | W21: =SUM(E21:U21) -> 1271899.252
